Body Name,Service Area,Expenses Type,Invoice Payment Date,Transaction Number,Supplier Name,Net Amount
Manchester City Council,Manchester Leisure,Advertising,10-Oct-22,1907885870,Voodoo Agency Ltd,"3,950.00"
Manchester City Council,Childrens & Education Services,Agency staff provision,10-Oct-22,5105837400,Gatenby Sanderson,"5,310.00"
Manchester City Council,Chief Executives,Agency staff provision,21-Oct-22,5105839240,Gatenby Sanderson,"1,888.00"
Manchester City Council,Chief Executives,Agency staff provision,27-Oct-22,5105840146,NES UK Limited,"12,771.67"
Manchester City Council,Chief Executives,Agency staff provision,25-Oct-22,5105839582,Osborne Richardson,"7,251.30"
Manchester City Council,Chief Executives,Agency staff provision,28-Oct-22,5105840446,Michael Page International,"9,000.00"
Manchester City Council,Corporate Services,Agency staff provision,25-Oct-22,5105839577,Michael Page International,"1,218.00"
Manchester City Council,Manchester Leisure,Agency staff provision,07-Oct-22,5105837180,Michael Page International,"1,160.00"
Manchester City Council,Manchester Leisure,Agency staff provision,07-Oct-22,5105837192,Michael Page International,"1,160.00"
Manchester City Council,Manchester Leisure,Agency staff provision,31-Oct-22,5105838507,Michael Page International,"1,131.00"
Manchester City Council,Manchester Leisure,Agency staff provision,07-Oct-22,5105837191,Michael Page International,"1,073.00"
Manchester City Council,Corporate Services,Agency staff provision,25-Oct-22,5105839576,Michael Page International,"1,044.00"
Manchester City Council,Corporate Services,Agency staff provision,07-Oct-22,5105837173,Michael Page International,"1,029.50"
Manchester City Council,Corporate Services,Agency staff provision,07-Oct-22,5105837175,Michael Page International,"1,029.50"
Manchester City Council,Corporate Services,Agency staff provision,07-Oct-22,5105837178,Michael Page International,"1,029.50"
Manchester City Council,Corporate Services,Agency staff provision,19-Oct-22,5105838960,Michael Page International,"1,029.50"
Manchester City Council,Corporate Services,Agency staff provision,07-Oct-22,5105837148,Michael Page International,"1,015.00"
Manchester City Council,Corporate Services,Agency staff provision,07-Oct-22,5105837150,Michael Page International,"1,015.00"
Manchester City Council,Corporate Services,Agency staff provision,19-Oct-22,5105838959,Michael Page International,"1,015.00"
Manchester City Council,Corporate Services,Agency staff provision,31-Oct-22,5105840694,Michael Page International,"1,015.00"
Manchester City Council,Corporate Services,Agency staff provision,31-Oct-22,5105840675,Michael Page International,928.00
Manchester City Council,Manchester Leisure,Agency staff provision,31-Oct-22,5105840891,Michael Page International,928.00
Manchester City Council,Corporate Services,Agency staff provision,07-Oct-22,5105837172,Michael Page International,638.00
Manchester City Council,Chief Executives,Agency staff provision,25-Oct-22,5105839721,Venn Group Ltd,"5,410.24"
Manchester City Council,Chief Executives,Agency staff provision,24-Oct-22,5105838493,Sellick Partnership (Legal) Ltd,"33,771.80"
Manchester City Council,Chief Executives,Agency staff provision,10-Oct-22,5105837361,Adecco Uk Ltd,"2,000.00"
Manchester City Council,Chief Executives,Agency staff provision,20-Oct-22,5105839015,Adecco Uk Ltd,"2,000.00"
Manchester City Council,Chief Executives,Agency staff provision,31-Oct-22,5105840748,Adecco Uk Ltd,"2,000.00"
Manchester City Council,Chief Executives,Agency staff provision,20-Oct-22,5105839016,Adecco Uk Ltd,"1,600.00"
Manchester City Council,Chief Executives,Agency staff provision,31-Oct-22,5105840753,Adecco Uk Ltd,"1,600.00"
Manchester City Council,Chief Executives,Agency staff provision,27-Oct-22,5105840336,Eden Brown Synergy,"35,752.51"
Manchester City Council,Chief Executives,Agency staff provision,21-Oct-22,5105839303,Eden Brown Synergy,"32,946.32"
Manchester City Council,Chief Executives,Agency staff provision,31-Oct-22,5105840596,Search Consultancy Ltd,"5,363.86"
Manchester City Council,Chief Executives,Agency staff provision,31-Oct-22,5105840595,Search Consultancy Ltd,"3,303.92"
Manchester City Council,Chief Executives,Agency staff provision,21-Oct-22,5105839111,Deekay Technical Recruitment Ltd,"22,040.76"
Manchester City Council,Manchester Leisure,Agency staff provision,13-Oct-22,5105837971,University Of Manchester,"17,143.00"
Manchester City Council,Manchester Leisure,Agency staff provision,13-Oct-22,5105837972,University Of Manchester,"5,916.00"
Manchester City Council,Chief Executives,Agency staff provision,18-Oct-22,5105838953,Hays Personnel,"20,416.69"
Manchester City Council,Chief Executives,Agency staff provision,18-Oct-22,5105838645,Capita Resourcing Limited,"13,875.00"
Manchester City Council,Chief Executives,Agency staff provision,31-Oct-22,5105840858,Capita Resourcing Limited,"9,250.00"
Manchester City Council,Chief Executives,Agency staff provision,10-Oct-22,5105836620,Triad Resourcing,"19,320.00"
Manchester City Council,Chief Executives,Agency staff provision,17-Oct-22,5105837924,Liquid Personnel Ltd,"58,988.11"
Manchester City Council,Housing Revenue Account,Agency staff provision,13-Oct-22,5105837964,Step Enterprise Ltd,"5,613.45"
Manchester City Council,Chief Executives,Agency staff provision,07-Oct-22,5105837210,Ashberry Recruitment Ltd,"6,478.97"
Manchester City Council,Chief Executives,Agency staff provision,26-Oct-22,5105839852,Ashberry Recruitment Ltd,"4,999.96"
Manchester City Council,Chief Executives,Agency staff provision,26-Oct-22,5105839853,Ashberry Recruitment Ltd,"4,964.68"
Manchester City Council,Chief Executives,Agency staff provision,26-Oct-22,5105839851,Access Computer Consulting plc,"9,606.78"
Manchester City Council,Chief Executives,Agency staff provision,14-Oct-22,5105837618,Cadence Resourcing Ltd,"59,400.00"
Manchester City Council,Chief Executives,Agency staff provision,26-Oct-22,5105839801,Buckingham Futures Limited,"5,052.72"
Manchester City Council,Chief Executives,Agency staff provision,28-Oct-22,5105840338,NonStop Recruitment Ltd,"12,259.48"
Manchester City Council,Childrens & Education Services,Agency staff provision,12-Oct-22,5105837638,Prospero Teaching,650.00
Manchester City Council,Childrens & Education Services,Agency staff provision,31-Oct-22,5105840887,Prospero Teaching,650.00
Manchester City Council,Childrens & Education Services,Agency staff provision,25-Oct-22,5105839612,Prospero Teaching,600.00
Manchester City Council,Childrens & Education Services,Agency staff provision,25-Oct-22,5105839613,Prospero Teaching,600.00
Manchester City Council,Childrens & Education Services,Agency staff provision,12-Oct-22,5105837639,Prospero Teaching,520.00
Manchester City Council,Childrens & Education Services,Agency staff provision,12-Oct-22,5105837640,Prospero Teaching,520.00
Manchester City Council,Chief Executives,Agency staff provision,14-Oct-22,5105838091,G2V Recruitment Grp t/a Vivid Resou,"8,132.40"
Manchester City Council,Chief Executives,Agency staff provision,12-Oct-22,5105837725,Isherwood Legal Limited,960.00
Manchester City Council,Chief Executives,Agency staff provision,12-Oct-22,5105837637,Isherwood Legal Limited,780.00
Manchester City Council,Chief Executives,Agency staff provision,14-Oct-22,5105838370,Isherwood Legal Limited,720.00
Manchester City Council,Chief Executives,Agency staff provision,05-Oct-22,5105836923,The Oyster Partnership Limited,"10,989.00"
Manchester City Council,Chief Executives,Agency staff provision,21-Oct-22,5105839119,The Oyster Partnership Limited,"9,990.00"
Manchester City Council,Chief Executives,Agency staff provision,05-Oct-22,5105836921,The Oyster Partnership Limited,"9,155.10"
Manchester City Council,Chief Executives,Agency staff provision,21-Oct-22,5105839117,The Oyster Partnership Limited,"6,770.45"
Manchester City Council,Chief Executives,Agency staff provision,18-Oct-22,5105838562,New Street Consulting Group,"7,200.00"
Manchester City Council,Manchester Leisure,Building Materials for direct delivery,14-Oct-22,5105838332,Failsworth Electrical Ltd,"1,384.00"
Manchester City Council,Manchester Leisure,Building Materials for direct delivery,31-Oct-22,5105839077,Failsworth Electrical Ltd,"1,384.00"
Manchester City Council,Manchester Leisure,Building Materials for direct delivery,31-Oct-22,5105839076,Failsworth Electrical Ltd,"-1,384.00"
Manchester City Council,Manchester Leisure,Building Materials for direct delivery,31-Oct-22,5105838195,Chambers & Perkins,"1,117.71"
Manchester City Council,Manchester Leisure,Building Materials for direct delivery,20-Oct-22,5105838602,HMG Paints Ltd,999.75
Manchester City Council,Manchester Leisure,Building Materials for direct delivery,21-Oct-22,5105839242,Rigby Taylor Ltd,"7,475.00"
Manchester City Council,Manchester Leisure,Building Materials for direct delivery,11-Oct-22,5105837261,Rigby Taylor Ltd,"1,625.44"
Manchester City Council,Manchester Leisure,Building Materials for direct delivery,31-Oct-22,5105840773,Rigby Taylor Ltd,992.00
Manchester City Council,Manchester Leisure,Building Materials for direct delivery,31-Oct-22,5105840615,Rigby Taylor Ltd,771.60
Manchester City Council,Manchester Leisure,Building Materials for direct delivery,11-Oct-22,5105837487,Rigby Taylor Ltd,"-1,625.44"
Manchester City Council,Highways Services,Building Materials for direct delivery,25-Oct-22,5105839442,William Smith Sons (Barnard Castle),"1,187.84"
Manchester City Council,Highways Services,Building Materials for direct delivery,31-Oct-22,5105840788,Kloeckner Metals UK,"1,833.00"
Manchester City Council,Highways Services,Building Materials for direct delivery,25-Oct-22,5105839511,TARMAC,"4,456.75"
Manchester City Council,Highways Services,Building Materials for direct delivery,07-Oct-22,5105837237,TARMAC,"3,196.07"
Manchester City Council,Highways Services,Building Materials for direct delivery,25-Oct-22,5105839513,TARMAC,"2,698.80"
Manchester City Council,Highways Services,Building Materials for direct delivery,25-Oct-22,5105839506,TARMAC,"1,916.71"
Manchester City Council,Highways Services,Building Materials for direct delivery,07-Oct-22,5105837239,TARMAC,"1,867.68"
Manchester City Council,Highways Services,Building Materials for direct delivery,07-Oct-22,5105837235,TARMAC,"1,846.67"
Manchester City Council,Highways Services,Building Materials for direct delivery,25-Oct-22,5105839520,TARMAC,"1,178.97"
Manchester City Council,Highways Services,Building Materials for direct delivery,20-Oct-22,5105839020,TARMAC,922.17
Manchester City Council,Highways Services,Building Materials for direct delivery,25-Oct-22,5105839507,TARMAC,905.82
Manchester City Council,Highways Services,Building Materials for direct delivery,07-Oct-22,5105837238,TARMAC,742.40
Manchester City Council,Highways Services,Building Materials for direct delivery,25-Oct-22,5105839515,TARMAC,737.60
Manchester City Council,Highways Services,Building Materials for direct delivery,20-Oct-22,5105839021,TARMAC,721.39
Manchester City Council,Highways Services,Building Materials for direct delivery,07-Oct-22,5105837240,TARMAC,652.40
Manchester City Council,Highways Services,Building Materials for direct delivery,12-Oct-22,5105837721,TARMAC,625.67
Manchester City Council,Manchester Leisure,Building Materials for direct delivery,19-Oct-22,5105838975,Arboricultural Services Treework,600.00
Manchester City Council,Highways Services,Building Materials for direct delivery,25-Oct-22,5105839865,Glasdon U.K. Limited,"1,289.29"
Manchester City Council,Highways Services,Building Materials for direct delivery,12-Oct-22,5105837039,Compass Minerals UK Ltd,640.19
Manchester City Council,Manchester Leisure,Building Materials for direct delivery,27-Oct-22,5105836530,Egan Reid Stationery Co Ltd,532.00
Manchester City Council,Highways Services,Building Materials for direct delivery,31-Oct-22,5105838348,Manchester Safety Services Ltd,"1,438.20"
Manchester City Council,Highways Services,Building Materials for direct delivery,21-Oct-22,5105839290,Ecomix Concrete Ltd,"1,060.00"
Manchester City Council,Highways Services,Building Materials for direct delivery,21-Oct-22,5105839301,Ecomix Concrete Ltd,"1,000.00"
Manchester City Council,Highways Services,Building Materials for direct delivery,21-Oct-22,5105839302,Ecomix Concrete Ltd,"1,000.00"
Manchester City Council,Highways Services,Building Materials for direct delivery,28-Oct-22,5105840673,Ecomix Concrete Ltd,"1,000.00"
Manchester City Council,Highways Services,Building Materials for direct delivery,21-Oct-22,5105839289,Benchmark Building Supplies Ltd,"1,276.62"
Manchester City Council,Highways Services,Building Materials for direct delivery,21-Oct-22,5105839288,Benchmark Building Supplies Ltd,829.50
Manchester City Council,Manchester Leisure,Building Materials for direct delivery,05-Oct-22,5105836793,MCPC Systems UK Ltd,"1,650.00"
Manchester City Council,Manchester Leisure,Building Materials for direct delivery,10-Oct-22,5105837415,UPS Building & Maintenance Ltd,"1,100.00"
Manchester City Council,Manchester Leisure,Building Materials for direct delivery,10-Oct-22,5105837415,UPS Building & Maintenance Ltd,657.80
Manchester City Council,Manchester Leisure,Building Materials for direct delivery,10-Oct-22,5105837414,UPS Building & Maintenance Ltd,-657.80
Manchester City Council,Manchester Leisure,Building Materials for direct delivery,10-Oct-22,5105837414,UPS Building & Maintenance Ltd,"-1,100.00"
Manchester City Council,Manchester Leisure,Building Materials for direct delivery,05-Oct-22,5105836887,Abbey Hey Allotment Society,"2,200.37"
Manchester City Council,Manchester Leisure,Building Materials for direct delivery,03-Oct-22,1907889741,R&A Scamp Quality Daffodils,"1,000.00"
Manchester City Council,Housing General Fund,Building Works,25-Oct-22,1907912879,Prism Medical UK Carefree Division,"3,302.24"
Manchester City Council,Childrens Services,Building Works,06-Oct-22,5105836978,Our Lady's RC High School,"319,349.29"
Manchester City Council,Housing General Fund,Building Works,25-Oct-22,1907912893,Stannah Lift Services Ltd,"7,329.00"
Manchester City Council,Housing General Fund,Building Works,25-Oct-22,1907912887,Stannah Lift Services Ltd,"7,164.00"
Manchester City Council,Housing General Fund,Building Works,07-Oct-22,1907899274,Stannah Lift Services Ltd,"7,064.00"
Manchester City Council,Housing General Fund,Building Works,25-Oct-22,1907912885,Stannah Lift Services Ltd,"6,781.00"
Manchester City Council,Housing General Fund,Building Works,25-Oct-22,1907912891,Stannah Lift Services Ltd,"6,305.00"
Manchester City Council,Housing General Fund,Building Works,25-Oct-22,1907912882,Stannah Lift Services Ltd,"6,258.00"
Manchester City Council,Housing General Fund,Building Works,25-Oct-22,1907912881,Stannah Lift Services Ltd,"5,726.00"
Manchester City Council,Housing General Fund,Building Works,07-Oct-22,1907899263,Stannah Lift Services Ltd,"5,489.00"
Manchester City Council,Housing General Fund,Building Works,25-Oct-22,1907912880,Stannah Lift Services Ltd,"5,374.00"
Manchester City Council,Housing General Fund,Building Works,07-Oct-22,1907899265,Stannah Lift Services Ltd,"4,100.00"
Manchester City Council,Housing General Fund,Building Works,07-Oct-22,1907899275,Stannah Lift Services Ltd,"3,675.00"
Manchester City Council,Housing General Fund,Building Works,25-Oct-22,1907912894,Stannah Lift Services Ltd,"3,655.00"
Manchester City Council,Housing General Fund,Building Works,07-Oct-22,1907899264,Stannah Lift Services Ltd,"3,549.00"
Manchester City Council,Housing General Fund,Building Works,07-Oct-22,1907899270,Stannah Lift Services Ltd,"3,322.00"
Manchester City Council,Housing General Fund,Building Works,07-Oct-22,1907899272,Stannah Lift Services Ltd,"3,265.00"
Manchester City Council,Housing General Fund,Building Works,07-Oct-22,1907899276,Stannah Lift Services Ltd,"3,009.00"
Manchester City Council,Housing General Fund,Building Works,07-Oct-22,1907899261,Stannah Lift Services Ltd,"2,990.00"
Manchester City Council,Housing General Fund,Building Works,25-Oct-22,1907912888,Stannah Lift Services Ltd,"2,954.00"
Manchester City Council,Housing General Fund,Building Works,25-Oct-22,1907912892,Stannah Lift Services Ltd,"2,948.00"
Manchester City Council,Housing General Fund,Building Works,25-Oct-22,1907912895,Stannah Lift Services Ltd,"2,853.00"
Manchester City Council,Housing General Fund,Building Works,07-Oct-22,1907899273,Stannah Lift Services Ltd,"2,683.00"
Manchester City Council,Housing General Fund,Building Works,25-Oct-22,5105839726,Manchester Care & Repair Ltd,"71,092.00"
Manchester City Council,Housing General Fund,Building Works,07-Oct-22,1907899268,Hoist & Shower Chair Company,"2,798.00"
Manchester City Council,Housing General Fund,Building Works,25-Oct-22,1907912886,Hoist & Shower Chair Company,"2,763.00"
Manchester City Council,Housing General Fund,Building Works,25-Oct-22,1907912883,Hoist & Shower Chair Company,"2,678.00"
Manchester City Council,Housing General Fund,Building Works,07-Oct-22,1907899269,Hoist & Shower Chair Company,"2,675.50"
Manchester City Council,Housing General Fund,Building Works,07-Oct-22,1907899271,Hoist & Shower Chair Company,"2,633.00"
Manchester City Council,Housing General Fund,Building Works,07-Oct-22,1907899262,Hoist & Shower Chair Company,"2,420.50"
Manchester City Council,Housing General Fund,Building Works,25-Oct-22,1907912884,Hoist & Shower Chair Company,"2,293.00"
Manchester City Council,Housing General Fund,Building Works,07-Oct-22,1907899266,Hoist & Shower Chair Company,"2,270.00"
Manchester City Council,Childrens Services,Building Works,17-Oct-22,5105838412,M/cr Creative & Media Academy,"245,835.00"
Manchester City Council,Childrens Services,Building Works,07-Oct-22,5105837326,M/cr Creative & Media Academy,"57,449.30"
Manchester City Council,Childrens Services,Building Works,19-Oct-22,5105838464,Sir Robert McAlpine Limited,"1,816,041.41"
Manchester City Council,Housing General Fund,Building Works,20-Oct-22,5105837928,Wythenshawe Community Housing Group,"111,635.89"
Manchester City Council,Housing General Fund,Building Works,12-Oct-22,5105837862,One Manchester Limited,"300,447.21"
Manchester City Council,Housing General Fund,Building Works,31-Oct-22,5105839433,One Manchester Limited,"244,088.11"
Manchester City Council,Housing General Fund,Building Works,25-Oct-22,1907912890,UPS Building & Maintenance Ltd,"14,693.55"
Manchester City Council,Housing General Fund,Building Works,07-Oct-22,1907899267,UPS Building & Maintenance Ltd,"10,559.25"
Manchester City Council,Housing General Fund,Building Works,07-Oct-22,1907899347,Muse Developments Ltd,"540,322.00"
Manchester City Council,Housing General Fund,Building Works,06-Oct-22,1907891380,Redacted Personal Information,"5,169.51"
Manchester City Council,Housing General Fund,Building Works,06-Oct-22,1907891378,Redacted Personal Information,500.00
Manchester City Council,Chief Executives,Building Works,28-Oct-22,1907915999,Manchester Life Strategic Developme,"679,760.75"
Manchester City Council,Housing General Fund,Building Works,06-Oct-22,1907891370,Redacted Personal Information,"26,974.00"
Manchester City Council,Childrens & Education Services,Carer Support Payments ,17-Oct-22,5105838417,Mosscare Housing Ltd,"60,700.09"
Manchester City Council,Childrens & Education Services,Carer Support Payments ,17-Oct-22,5105838418,Mosscare Housing Ltd,"34,093.87"
Manchester City Council,Childrens & Education Services,Carer Support Payments ,25-Oct-22,5105839679,ABL Health Ltd,"4,400.00"
Manchester City Council,Childrens & Education Services,Carer Support Payments ,25-Oct-22,5105839505,Care Solutions Recruitment,"18,968.20"
Manchester City Council,Corporate Services,Cash Collection,14-Oct-22,5105838361,NSL Ltd,"5,647.84"
Manchester City Council,Hospitality + Trading Services,Cash Collection,25-Oct-22,1907899911,G4S Cash Solutions (Uk) Ltd,"1,564.29"
Manchester City Council,Manchester Leisure,Cash Collection,31-Oct-22,5105840703,Bolton Mbc,"18,624.94"
Manchester City Council,Manchester Leisure,Cash Collection,31-Oct-22,5105839683,Bolton Mbc,"8,694.87"
Manchester City Council,Manchester Leisure,Cash Collection,31-Oct-22,5105840449,APCOA PARKING UK Ltd,"17,199.90"
Manchester City Council,Manchester Leisure,Cleaning Equipment and Materials,03-Oct-22,5105836476,Redgate Holdings Ltd,"13,100.80"
Manchester City Council,Manchester Leisure,Cleaning Equipment and Materials,28-Oct-22,5105840462,Redgate Holdings Ltd,"11,212.50"
Manchester City Council,Adult Social Care,Cleaning Equipment and Materials,25-Oct-22,5105839425,Concept Care,534.00
Manchester City Council,Adult Social Care,Cleaning Equipment and Materials,05-Oct-22,5105836885,BES Rehab,"1,718.10"
Manchester City Council,Regeneration Finance,Cleaning Equipment and Materials,20-Oct-22,5105838949,Arrow County Supplies,"1,856.80"
Manchester City Council,Regeneration Finance,Cleaning Equipment and Materials,20-Oct-22,5105838961,Arrow County Supplies,753.96
Manchester City Council,Regeneration Finance,Cleaning Equipment and Materials,07-Oct-22,5105837225,Arrow County Supplies,748.05
Manchester City Council,Adult Social Care,Cleaning Equipment and Materials,26-Oct-22,5105840077,Arrow County Supplies,"-2,814.18"
Manchester City Council,Highways Services,Compensation Payments,17-Oct-22,1907904966,Scott Rees & Co,"1,250.00"
Manchester City Council,Highways Services,Compensation Payments,31-Oct-22,1907910248,Redacted Personal Information,"2,250.00"
Manchester City Council,Corporate Services,Compensation Payments,14-Oct-22,1907903944,Driscoll Kingston & Co Ltd Client,900.00
Manchester City Council,Childrens & Education Services,Compensation Payments,21-Oct-22,1907911506,Farleys Solicitors LLP,"10,000.00"
Manchester City Council,Highways Services,Compensation Payments,17-Oct-22,1907904968,IRWIN MICHELL SOLICITORS LTD,"3,118.58"
Manchester City Council,Hospitality + Trading Services,Compensation Payments,28-Oct-22,1907915460,Irwin Mitchell LLP,"36,445.07"
Manchester City Council,Highways Services,Compensation Payments,31-Oct-22,1907916130,Redacted Personal Information,"1,800.00"
Manchester City Council,Highways Services,Compensation Payments,31-Oct-22,1907916127,RUSSELL WORTH LIMITED,"5,253.50"
Manchester City Council,Highways Services,Compensation Payments,25-Oct-22,1907912915,Russell Worth Solicitors Ltd,"4,850.00"
Manchester City Council,Environment and Operations,Construction Works,19-Oct-22,5105839002,Bethell Construction Ltd,"139,190.46"
Manchester City Council,Environment and Operations,Construction Works,19-Oct-22,5105839003,Bethell Construction Ltd,"87,243.64"
Manchester City Council,Environment and Operations,Construction Works,19-Oct-22,5105839001,Bethell Construction Ltd,"83,344.90"
Manchester City Council,Environment and Operations,Construction Works,19-Oct-22,5105839007,Bethell Construction Ltd,"71,884.22"
Manchester City Council,Environment and Operations,Construction Works,31-Oct-22,5105840286,Dowhigh Ltd,"48,550.00"
Manchester City Council,Environment and Operations,Construction Works,31-Oct-22,5105840841,J.Hopkins (Contractors) Ltd.,"168,200.00"
Manchester City Council,Environment and Operations,Construction Works,10-Oct-22,5105837464,J.Hopkins (Contractors) Ltd.,"134,260.41"
Manchester City Council,Environment and Operations,Construction Works,31-Oct-22,5105839393,J.Hopkins (Contractors) Ltd.,"71,600.00"
Manchester City Council,Environment and Operations,Construction Works,17-Oct-22,5105837328,J.Hopkins (Contractors) Ltd.,"70,095.65"
Manchester City Council,Environment and Operations,Construction Works,10-Oct-22,5105837465,J.Hopkins (Contractors) Ltd.,"68,236.96"
Manchester City Council,Environment and Operations,Construction Works,06-Oct-22,5105837069,J.Hopkins (Contractors) Ltd.,"57,175.80"
Manchester City Council,Environment and Operations,Construction Works,31-Oct-22,5105839896,J.Hopkins (Contractors) Ltd.,"53,715.12"
Manchester City Council,Environment and Operations,Construction Works,31-Oct-22,5105840261,J.Hopkins (Contractors) Ltd.,"49,400.00"
Manchester City Council,Environment and Operations,Construction Works,24-Oct-22,5105839363,J.Hopkins (Contractors) Ltd.,"40,544.45"
Manchester City Council,Environment and Operations,Construction Works,31-Oct-22,5105839895,J.Hopkins (Contractors) Ltd.,"40,402.73"
Manchester City Council,Environment and Operations,Construction Works,31-Oct-22,5105839897,J.Hopkins (Contractors) Ltd.,"39,755.24"
Manchester City Council,Environment and Operations,Construction Works,31-Oct-22,5105839390,J.Hopkins (Contractors) Ltd.,"35,750.00"
Manchester City Council,Environment and Operations,Construction Works,31-Oct-22,5105840274,J.Hopkins (Contractors) Ltd.,"32,750.00"
Manchester City Council,Environment and Operations,Construction Works,31-Oct-22,5105840264,J.Hopkins (Contractors) Ltd.,"32,340.67"
Manchester City Council,Environment and Operations,Construction Works,31-Oct-22,5105839392,J.Hopkins (Contractors) Ltd.,"29,208.71"
Manchester City Council,Environment and Operations,Construction Works,31-Oct-22,5105840265,J.Hopkins (Contractors) Ltd.,"28,900.00"
Manchester City Council,Environment and Operations,Construction Works,31-Oct-22,5105839366,J.Hopkins (Contractors) Ltd.,"28,107.89"
Manchester City Council,Environment and Operations,Construction Works,06-Oct-22,5105837071,J.Hopkins (Contractors) Ltd.,"25,549.07"
Manchester City Council,Environment and Operations,Construction Works,31-Oct-22,5105839385,J.Hopkins (Contractors) Ltd.,"21,800.26"
Manchester City Council,Environment and Operations,Construction Works,31-Oct-22,5105839371,J.Hopkins (Contractors) Ltd.,"20,550.00"
Manchester City Council,Environment and Operations,Construction Works,17-Oct-22,5105837329,J.Hopkins (Contractors) Ltd.,"20,471.65"
Manchester City Council,Environment and Operations,Construction Works,31-Oct-22,5105840268,J.Hopkins (Contractors) Ltd.,"19,945.18"
Manchester City Council,Environment and Operations,Construction Works,31-Oct-22,5105840842,J.Hopkins (Contractors) Ltd.,"19,450.00"
Manchester City Council,Environment and Operations,Construction Works,31-Oct-22,5105839379,J.Hopkins (Contractors) Ltd.,"17,650.00"
Manchester City Council,Environment and Operations,Construction Works,31-Oct-22,5105839383,J.Hopkins (Contractors) Ltd.,"17,569.24"
Manchester City Council,Environment and Operations,Construction Works,06-Oct-22,5105837073,J.Hopkins (Contractors) Ltd.,"16,700.00"
Manchester City Council,Environment and Operations,Construction Works,31-Oct-22,5105839369,J.Hopkins (Contractors) Ltd.,"16,300.00"
Manchester City Council,Environment and Operations,Construction Works,31-Oct-22,5105840262,J.Hopkins (Contractors) Ltd.,"14,587.17"
Manchester City Council,Environment and Operations,Construction Works,31-Oct-22,5105840280,J.Hopkins (Contractors) Ltd.,"13,210.87"
Manchester City Council,Environment and Operations,Construction Works,31-Oct-22,5105839386,J.Hopkins (Contractors) Ltd.,"11,200.00"
Manchester City Council,Environment and Operations,Construction Works,31-Oct-22,5105840270,J.Hopkins (Contractors) Ltd.,"10,508.90"
Manchester City Council,Environment and Operations,Construction Works,31-Oct-22,5105839364,J.Hopkins (Contractors) Ltd.,"10,452.98"
Manchester City Council,Environment and Operations,Construction Works,31-Oct-22,5105839391,J.Hopkins (Contractors) Ltd.,"9,275.78"
Manchester City Council,Environment and Operations,Construction Works,31-Oct-22,5105839381,J.Hopkins (Contractors) Ltd.,"9,160.64"
Manchester City Council,Environment and Operations,Construction Works,06-Oct-22,5105837075,J.Hopkins (Contractors) Ltd.,"8,553.13"
Manchester City Council,Environment and Operations,Construction Works,31-Oct-22,5105840277,J.Hopkins (Contractors) Ltd.,"7,991.22"
Manchester City Council,Environment and Operations,Construction Works,31-Oct-22,5105839384,J.Hopkins (Contractors) Ltd.,"7,921.20"
Manchester City Council,Environment and Operations,Construction Works,31-Oct-22,5105840263,J.Hopkins (Contractors) Ltd.,"7,821.80"
Manchester City Council,Environment and Operations,Construction Works,31-Oct-22,5105839367,J.Hopkins (Contractors) Ltd.,"5,300.00"
Manchester City Council,Environment and Operations,Construction Works,31-Oct-22,5105839373,J.Hopkins (Contractors) Ltd.,"5,171.84"
Manchester City Council,Environment and Operations,Construction Works,31-Oct-22,5105839368,J.Hopkins (Contractors) Ltd.,"4,161.76"
Manchester City Council,Environment and Operations,Construction Works,31-Oct-22,5105840267,J.Hopkins (Contractors) Ltd.,"3,315.55"
Manchester City Council,Environment and Operations,Construction Works,31-Oct-22,5105840843,J.Hopkins (Contractors) Ltd.,"3,262.45"
Manchester City Council,Environment and Operations,Construction Works,13-Oct-22,5105837957,J.Hopkins (Contractors) Ltd.,"2,660.62"
Manchester City Council,Environment and Operations,Construction Works,31-Oct-22,5105839389,J.Hopkins (Contractors) Ltd.,"2,261.10"
Manchester City Council,Environment and Operations,Construction Works,31-Oct-22,5105840240,J.Hopkins (Contractors) Ltd.,"1,685.01"
Manchester City Council,Environment and Operations,Construction Works,31-Oct-22,5105839387,J.Hopkins (Contractors) Ltd.,"1,273.74"
Manchester City Council,Environment and Operations,Construction Works,31-Oct-22,5105839376,J.Hopkins (Contractors) Ltd.,828.80
Manchester City Council,Environment and Operations,Construction Works,06-Oct-22,5105837074,J.Hopkins (Contractors) Ltd.,"-8,553.13"
Manchester City Council,Environment and Operations,Construction Works,06-Oct-22,5105837072,J.Hopkins (Contractors) Ltd.,"-16,700.00"
Manchester City Council,Environment and Operations,Construction Works,24-Oct-22,5105839362,J.Hopkins (Contractors) Ltd.,"-40,544.45"
Manchester City Council,Environment and Operations,Construction Works,18-Oct-22,5105838705,Vodafone (Ex C&W),"4,000.00"
Manchester City Council,Environment and Operations,Construction Works,21-Oct-22,5105839178,Amey Highways Lighting (Manchester),"8,674.99"
Manchester City Council,Environment and Operations,Construction Works,21-Oct-22,5105839210,Amey Highways Lighting (Manchester),"8,674.99"
Manchester City Council,Environment and Operations,Construction Works,05-Oct-22,5105836808,Amey Highways Lighting (Manchester),"4,994.00"
Manchester City Council,Environment and Operations,Construction Works,21-Oct-22,5105839209,Amey Highways Lighting (Manchester),"-8,674.99"
Manchester City Council,Environment and Operations,Construction Works,31-Oct-22,5105840786,Transport for Greater Manchester,"12,000.00"
Manchester City Council,Environment and Operations,Construction Works,05-Oct-22,5105836886,Transport for Greater Manchester,900.00
Manchester City Council,Environment and Operations,Construction Works,21-Oct-22,5105837829,Rosgal Ltd,"102,319.13"
Manchester City Council,Environment and Operations,Construction Works,11-Oct-22,5105837468,Rosgal Ltd,"26,329.68"
Manchester City Council,Environment and Operations,Construction Works,31-Oct-22,5105837155,Rosgal Ltd,"21,000.00"
Manchester City Council,Environment and Operations,Construction Works,05-Oct-22,5105836600,GMCA,"10,257.58"
Manchester City Council,Environment and Operations,Construction Works,05-Oct-22,5105836565,GMCA,"9,090.99"
Manchester City Council,Environment and Operations,Construction Works,31-Oct-22,5105840864,GMCA,"7,038.13"
Manchester City Council,Environment and Operations,Construction Works,07-Oct-22,5105837027,GMCA,"6,368.68"
Manchester City Council,Environment and Operations,Construction Works,31-Oct-22,5105840506,GMCA,"6,227.67"
Manchester City Council,Environment and Operations,Construction Works,31-Oct-22,5105840358,GMCA,"6,132.70"
Manchester City Council,Environment and Operations,Construction Works,07-Oct-22,5105837023,GMCA,680.63
Manchester City Council,Environment and Operations,Construction Works,14-Oct-22,5105836916,Virgin Media Limited,"35,263.46"
Manchester City Council,Environment and Operations,Construction Works,31-Oct-22,5105837438,Turner & Townsend Project,"5,900.70"
Manchester City Council,Environment and Operations,Construction Works,06-Oct-22,5105837000,Wilde Consultants Ltd,"9,320.39"
Manchester City Council,Environment and Operations,Construction Works,06-Oct-22,5105836999,Wilde Consultants Ltd,"8,806.00"
Manchester City Council,Environment and Operations,Construction Works,06-Oct-22,5105837063,Wilde Consultants Ltd,"5,353.36"
Manchester City Council,Environment and Operations,Construction Works,31-Oct-22,5105840671,Wilde Consultants Ltd,"5,106.25"
Manchester City Council,Environment and Operations,Construction Works,05-Oct-22,5105836748,Wilde Consultants Ltd,"4,978.78"
Manchester City Council,Environment and Operations,Construction Works,26-Oct-22,5105837047,Wilde Consultants Ltd,"3,722.04"
Manchester City Council,Environment and Operations,Construction Works,06-Oct-22,5105837062,Wilde Consultants Ltd,"2,649.00"
Manchester City Council,Environment and Operations,Construction Works,26-Oct-22,5105837045,Wilde Consultants Ltd,"2,148.19"
Manchester City Council,Environment and Operations,Construction Works,26-Oct-22,5105839624,Wilde Consultants Ltd,"2,074.85"
Manchester City Council,Environment and Operations,Construction Works,06-Oct-22,5105836998,Wilde Consultants Ltd,"1,372.73"
Manchester City Council,Environment and Operations,Construction Works,26-Oct-22,5105837041,Wilde Consultants Ltd,"1,219.25"
Manchester City Council,Environment and Operations,Construction Works,26-Oct-22,5105837042,Wilde Consultants Ltd,"1,060.20"
Manchester City Council,Environment and Operations,Construction Works,26-Oct-22,5105837043,Wilde Consultants Ltd,524.79
Manchester City Council,Environment and Operations,Construction Works,06-Oct-22,5105837064,Wilde Consultants Ltd,"-6,234.37"
Manchester City Council,Environment and Operations,Construction Works,31-Oct-22,5105839648,Steer Davies & Geave Limited,"1,450.01"
Manchester City Council,Environment and Operations,Construction Works,10-Oct-22,5105837226,Steer Davies & Geave Limited,"1,131.26"
Manchester City Council,Environment and Operations,Construction Works,06-Oct-22,5105836858,Steer Davies & Geave Limited,"1,050.00"
Manchester City Council,Environment and Operations,Construction Works,07-Oct-22,5105837078,Civic Engineers,"4,567.00"
Manchester City Council,Environment and Operations,Construction Works,31-Oct-22,5105837113,JSM Construction Ltd,"12,865.94"
Manchester City Council,Environment and Operations,Construction Works,19-Oct-22,5105838530,Kiely Bros Ltd,"53,092.89"
Manchester City Council,Environment and Operations,Construction Works,13-Oct-22,5105837988,Kiely Bros Ltd,"9,300.00"
Manchester City Council,Environment and Operations,Construction Works,13-Oct-22,5105837989,Kiely Bros Ltd,"5,700.00"
Manchester City Council,Environment and Operations,Construction Works,31-Oct-22,5105839444,Box Clever Theatre Company,"2,750.00"
Manchester City Council,Environment and Operations,Construction Works,31-Oct-22,5105839445,Box Clever Theatre Company,"2,750.00"
Manchester City Council,Environment and Operations,Construction Works,31-Oct-22,5105839446,Box Clever Theatre Company,"2,750.00"
Manchester City Council,Environment and Operations,Construction Works,31-Oct-22,5105840623,Balfour Beatty Living Places Ltd,"5,230.51"
Manchester City Council,Environment and Operations,Construction Works,31-Oct-22,5105840625,Balfour Beatty Living Places Ltd,"4,111.94"
Manchester City Council,Environment and Operations,Construction Works,24-Oct-22,5105838962,Cycloan Educ & Restorative Approach,"1,060.00"
Manchester City Council,Environment and Operations,Construction Works,28-Oct-22,5105838763,Waterman Aspen Ltd,"9,750.00"
Manchester City Council,Environment and Operations,Construction Works,26-Oct-22,5105838541,SWECO UK Limited,"3,255.75"
Manchester City Council,Environment and Operations,Construction Works,31-Oct-22,5105840237,N D Oliver & Co Ltd,600.00
Manchester City Council,Environment and Operations,Construction Works,31-Oct-22,5105838830,Pell Frischmann Consultants Ltd,"51,250.00"
Manchester City Council,Environment and Operations,Construction Works,24-Oct-22,5105839030,Vivacity Labs Ltd.,"17,242.50"
Manchester City Council,Environment and Operations,Construction Works,12-Oct-22,5105837698,Hawkins Brown Design Ltd,"10,000.00"
Manchester City Council,Adult Social Care,"Consumable items eg Toilet rolls, soap etc",05-Oct-22,5105836925,All 4 Pets Limited,930.00
Manchester City Council,Adult Social Care,"Consumable items eg Toilet rolls, soap etc",27-Oct-22,5105840100,All 4 Pets Limited,900.00
Manchester City Council,Adult Social Care,"Consumable items eg Toilet rolls, soap etc",05-Oct-22,5105836926,All 4 Pets Limited,697.50
Manchester City Council,Adult Social Care,"Consumable items eg Toilet rolls, soap etc",27-Oct-22,5105840182,All 4 Pets Limited,675.00
Manchester City Council,Regeneration Finance,"Consumable items eg Toilet rolls, soap etc",31-Oct-22,5105840375,Wilkinson Bros,650.00
Manchester City Council,Manchester Leisure,"Consumable items eg Toilet rolls, soap etc",04-Oct-22,1907892685,ABSOLUTEPRODUCT.CO,"1,285.80"
Manchester City Council,Childrens & Education Services,"Consumable items eg Toilet rolls, soap etc",04-Oct-22,1907892525,C2E829300801A UKVI,"3,199.00"
Manchester City Council,Childrens & Education Services,"Consumable items eg Toilet rolls, soap etc",04-Oct-22,1907892514,C2E829300828O UKVI,"3,199.00"
Manchester City Council,Manchester Leisure,"Consumable items eg Toilet rolls, soap etc",04-Oct-22,1907892614,SQ *CARDIFF,"1,091.24"
Manchester City Council,Manchester Leisure,"Consumable items eg Toilet rolls, soap etc",04-Oct-22,1907892552,SQ *HEDONIST,858.00
Manchester City Council,Manchester Leisure,"Consumable items eg Toilet rolls, soap etc",04-Oct-22,1907892584,SQ *MILLISTRATIONS,970.99
Manchester City Council,Manchester Leisure,Contract Cleaning External,12-Oct-22,1907902785,Clearview Event Services Limited,"26,339.58"
Manchester City Council,Manchester Leisure,Contract Cleaning External,31-Oct-22,5105837015,Master Moves Ltd,599.69
Manchester City Council,Regeneration Finance,Contract Cleaning External,13-Oct-22,5105837958,Yorkshire Purchasing,"1,630.64"
Manchester City Council,Childrens & Education Services,Contract Cleaning External,07-Oct-22,5105837084,Tiddlywinks Day Nursery,"1,548.00"
Manchester City Council,Childrens & Education Services,Contract Cleaning External,18-Oct-22,5105838591,Superkids Levenshulme Ltd,"1,170.00"
Manchester City Council,Childrens & Education Services,Contract Cleaning External,18-Oct-22,5105838674,Superkids Levenshulme Ltd,"1,170.00"
Manchester City Council,Hospitality + Trading Services,Contract Cleaning External,14-Oct-22,5105838013,Biffa Municipal Limited,982.10
Manchester City Council,Adult Social Care,Contract Cleaning External,31-Oct-22,5105838871,Arrow County Supplies,899.50
Manchester City Council,Adult Social Care,Contract Cleaning External,17-Oct-22,5105838543,YD Healthcare Ltd,945.00
Manchester City Council,Regeneration Finance,Contract Cleaning External,18-Oct-22,5105838603,Westgrove Support Services Ltd,"8,324.77"
Manchester City Council,Regeneration Finance,Contract Cleaning External,07-Oct-22,5105837156,Westgrove Support Services Ltd,719.20
Manchester City Council,Regeneration Finance,Contract Cleaning External,07-Oct-22,5105837217,Westgrove Support Services Ltd,658.00
Manchester City Council,Manchester Leisure,Contract Cleaning External,18-Oct-22,5105838711,aAFD Services Ltd,"4,777.08"
Manchester City Council,Housing Revenue Account,Council Dwelling Adaptations,31-Oct-22,5105840326,DLP Services (Northern) Ltd,"59,016.70"
Manchester City Council,Housing Revenue Account,Council Dwelling Adaptations,11-Oct-22,5105837526,Moores Furniture Group Limited,"5,668.49"
Manchester City Council,Housing Revenue Account,Council Dwelling Adaptations,07-Oct-22,5105837223,Moores Furniture Group Limited,"5,204.24"
Manchester City Council,Housing Revenue Account,Council Dwelling Adaptations,25-Oct-22,5105839693,Moores Furniture Group Limited,"4,856.22"
Manchester City Council,Housing Revenue Account,Council Dwelling Adaptations,11-Oct-22,5105837526,Moores Furniture Group Limited,"2,034.38"
Manchester City Council,Housing Revenue Account,Council Dwelling Adaptations,03-Oct-22,5105836438,Master Moves Ltd,859.20
Manchester City Council,Housing Revenue Account,Council Dwelling Adaptations,25-Oct-22,5105839690,Rexel UK Ltd,"18,756.47"
Manchester City Council,Housing Revenue Account,Council Dwelling Adaptations,18-Oct-22,5105838737,Rexel UK Ltd,"10,186.73"
Manchester City Council,Housing Revenue Account,Council Dwelling Adaptations,31-Oct-22,5105838700,Rexel UK Ltd,"9,913.02"
Manchester City Council,Housing Revenue Account,Council Dwelling Adaptations,18-Oct-22,5105838739,Rexel UK Ltd,"5,341.70"
Manchester City Council,Housing Revenue Account,Council Dwelling Adaptations,18-Oct-22,5105838654,Rexel UK Ltd,"3,263.73"
Manchester City Council,Housing Revenue Account,Council Dwelling Adaptations,18-Oct-22,5105838738,Rexel UK Ltd,"1,520.40"
Manchester City Council,Housing Revenue Account,Council Dwelling Adaptations,18-Oct-22,5105836958,Rexel UK Ltd,"-3,387.59"
Manchester City Council,Housing Revenue Account,Council Dwelling Adaptations,27-Oct-22,5105840285,Emanuel Whittaker Ltd,"142,952.12"
Manchester City Council,Housing Revenue Account,Council Dwelling Adaptations,31-Oct-22,5105840836,Stannah Lift Services Ltd,"5,170.00"
Manchester City Council,Housing Revenue Account,Council Dwelling Adaptations,18-Oct-22,5105838652,Pts Plumbing Trade Supplies,"3,732.50"
Manchester City Council,Housing Revenue Account,Council Dwelling Adaptations,25-Oct-22,5105839686,Pts Plumbing Trade Supplies,"1,364.90"
Manchester City Council,Housing Revenue Account,Council Dwelling Adaptations,10-Oct-22,5105837389,Pts Plumbing Trade Supplies,"1,109.81"
Manchester City Council,Housing Revenue Account,Council Dwelling Adaptations,31-Oct-22,5105839234,Pts Plumbing Trade Supplies,666.33
Manchester City Council,Housing Revenue Account,Council Dwelling Adaptations,31-Oct-22,5105839232,Pts Plumbing Trade Supplies,629.71
Manchester City Council,Housing Revenue Account,Council Dwelling Adaptations,27-Oct-22,5105840282,"Jackson, Jackson & Sons Ltd","90,515.27"
Manchester City Council,Housing Revenue Account,Council Dwelling Adaptations,31-Oct-22,5105836687,EQUANS Regeneration Limited,"146,543.12"
Manchester City Council,Housing Revenue Account,Council Dwelling Adaptations,18-Oct-22,5105838650,Rothwell Plumbing Services Ltd,"5,074.75"
Manchester City Council,Housing Revenue Account,Council Dwelling Adaptations,18-Oct-22,5105838802,Nova Group Ltd,"8,745.73"
Manchester City Council,Housing Revenue Account,Council Dwelling Adaptations,18-Oct-22,5105838806,Nova Group Ltd,"7,754.10"
Manchester City Council,Housing Revenue Account,Council Dwelling Adaptations,18-Oct-22,5105838803,Nova Group Ltd,661.30
Manchester City Council,Housing Revenue Account,Council Dwelling Adaptations,21-Oct-22,5105838425,Cadent Gas Ltd.,"1,445.00"
Manchester City Council,Housing Revenue Account,Council Dwelling Adaptations,05-Oct-22,5105836892,A Connolly Limited,"94,958.02"
Manchester City Council,Housing Revenue Account,Council Dwelling Adaptations,31-Oct-22,5105840844,A Connolly Limited,"73,410.60"
Manchester City Council,Housing Revenue Account,Council Dwelling Adaptations,04-Oct-22,1907892578,PAYPAL (UK) P CARD ONLY,500.00
Manchester City Council,Housing Revenue Account,Council Dwelling Adaptations,25-Oct-22,5105839696,Procare Shower & Bathroom Centre Lt,"5,337.12"
Manchester City Council,Housing Revenue Account,Council Dwelling Adaptations,19-Oct-22,5105839005,Procare Shower & Bathroom Centre Lt,"5,094.96"
Manchester City Council,Housing Revenue Account,Council Dwelling Adaptations,19-Oct-22,5105839004,Procare Shower & Bathroom Centre Lt,"4,532.90"
Manchester City Council,Housing Revenue Account,Council Dwelling Adaptations,19-Oct-22,5105839006,Procare Shower & Bathroom Centre Lt,"1,023.28"
Manchester City Council,Housing Revenue Account,Council Dwelling Adaptations,26-Oct-22,5105839893,Mantis Energy LTD,"44,858.37"
Manchester City Council,Housing Revenue Account,Council Dwelling Adaptations,04-Oct-22,1907892417,AIRBNB * HMDEW99B4Z,"1,631.37"
Manchester City Council,Housing Revenue Account,Council Dwelling Adaptations,04-Oct-22,1907892357,SCOTTISHPOWER.COM,638.00
Manchester City Council,Housing Revenue Account,Council Dwelling Fees,07-Oct-22,5105837024,Shield Environmental Services,795.00
Manchester City Council,Chief Executives,CRB Fees,13-Oct-22,5105837978,Disclosure & Barring Service,"22,326.00"
Manchester City Council,Regeneration Finance,CRB Fees,31-Oct-22,5105840801,Complete Background Screening Ltd,"1,040.00"
Manchester City Council,Chief Executives,CRB Fees,27-Oct-22,5105840259,Complete Background Screening Ltd,"1,012.50"
Manchester City Council,Chief Executives,CRB Fees,27-Oct-22,5105840260,Complete Background Screening Ltd,693.00
Manchester City Council,Manchester Leisure,Environmental Services,31-Oct-22,5105840783,CPD Property Services,675.00
Manchester City Council,Manchester Leisure,Environmental Services,31-Oct-22,1907916208,Mr. John Caulfield,617.00
Manchester City Council,Manchester Leisure,Equipment Operating Lease,28-Oct-22,5105840528,Ricoh UK Ltd.,"4,442.79"
Manchester City Council,Manchester Leisure,Equipment Operating Lease,28-Oct-22,5105840541,Ricoh UK Ltd.,"4,442.79"
Manchester City Council,Manchester Leisure,Equipment Operating Lease,28-Oct-22,5105840542,Ricoh UK Ltd.,"4,442.79"
Manchester City Council,Chief Executives,Equipment Operating Lease,28-Oct-22,5105839211,Ricoh UK Ltd.,"3,168.05"
Manchester City Council,Chief Executives,Equipment Operating Lease,28-Oct-22,5105839213,Ricoh UK Ltd.,"3,168.05"
Manchester City Council,Chief Executives,Equipment Operating Lease,31-Oct-22,5105840543,Ricoh UK Ltd.,"3,168.05"
Manchester City Council,Childrens & Education Services,Expenditure re Internal Trading Ordered Externally,31-Oct-22,5105840660,Language Line Ltd,529.60
Manchester City Council,Manchester Leisure,Expenditure re Internal Trading Ordered Externally,31-Oct-22,5105840808,Trafford Media & Communication Ltd,600.00
Manchester City Council,Chief Executives,Expenditure re Internal Trading Ordered Externally,28-Oct-22,5105840329,Civica Election Services,"15,611.62"
Manchester City Council,Chief Executives,Expenditure re Internal Trading Ordered Externally,10-Oct-22,5105837430,Civica Election Services,"10,357.94"
Manchester City Council,Chief Executives,Expenditure re Internal Trading Ordered Externally,10-Oct-22,5105837429,Civica Election Services,"4,477.67"
Manchester City Council,Regeneration Finance,External repairs and maintenance for buildings,06-Oct-22,5105836800,Assa Abloy Ltd T/A Traka,"2,295.10"
Manchester City Council,Manchester Leisure,External repairs and maintenance for buildings,11-Oct-22,5105837513,Laing O'Rourke Construction Ltd,"16,199.04"
Manchester City Council,Regeneration Finance,External repairs and maintenance for buildings,28-Oct-22,5105840249,P Mcguinness & Co Ltd,605.00
Manchester City Council,Manchester Leisure,External repairs and maintenance for buildings,20-Oct-22,5105838967,Keebuilders Uk Ltd,600.00
Manchester City Council,Regeneration Finance,External repairs and maintenance for buildings,25-Oct-22,5105839656,Jacobs UK Ltd,"1,590.00"
Manchester City Council,Corporate Services,External repairs and maintenance for buildings,31-Oct-22,5105837332,Pennington Choices Ltd,"-4,892.44"
Manchester City Council,Manchester Leisure,External repairs and maintenance for buildings,07-Oct-22,5105837194,ISG Construction Limited,"119,187.33"
Manchester City Council,Manchester Leisure,External repairs and maintenance for buildings,07-Oct-22,5105837193,ISG Construction Limited,"-123,550.59"
Manchester City Council,Adult Social Care,External repairs and maintenance for buildings,07-Oct-22,5105837205,Sheridan Lifts Ltd,"4,877.85"
Manchester City Council,Regeneration Finance,External repairs and maintenance for buildings,10-Oct-22,5105836954,EQUANS Services Limited,"67,500.00"
Manchester City Council,Regeneration Finance,External repairs and maintenance for buildings,10-Oct-22,5105837378,Access UK Ltd,638.74
Manchester City Council,Adult Social Care,External repairs and maintenance for buildings,28-Oct-22,5105840554,T F Jones Property Services Ltd,961.94
Manchester City Council,Adult Social Care,External repairs and maintenance for buildings,31-Oct-22,5105840559,T F Jones Property Services Ltd,692.94
Manchester City Council,Adult Social Care,External repairs and maintenance for buildings,14-Oct-22,5105838112,T F Jones Property Services Ltd,645.60
Manchester City Council,Adult Social Care,External repairs and maintenance for buildings,28-Oct-22,5105840367,T F Jones Property Services Ltd,645.60
Manchester City Council,Adult Social Care,External repairs and maintenance for buildings,17-Oct-22,5105838477,T F Jones Property Services Ltd,636.99
Manchester City Council,Adult Social Care,External repairs and maintenance for buildings,14-Oct-22,5105838113,T F Jones Property Services Ltd,591.80
Manchester City Council,Adult Social Care,External repairs and maintenance for buildings,28-Oct-22,5105840382,T F Jones Property Services Ltd,538.00
Manchester City Council,Adult Social Care,External repairs and maintenance for buildings,17-Oct-22,5105838476,T F Jones Property Services Ltd,532.62
Manchester City Council,Adult Social Care,External repairs and maintenance for buildings,28-Oct-22,5105840316,T F Jones Property Services Ltd,531.54
Manchester City Council,Adult Social Care,External repairs and maintenance for buildings,11-Oct-22,5105837568,T F Jones Property Services Ltd,512.18
Manchester City Council,Regeneration Finance,External repairs and maintenance for buildings,24-Oct-22,5105839278,SMS Solar Maintenance Services,"3,687.12"
Manchester City Council,Regeneration Finance,External repairs and maintenance for buildings,07-Oct-22,5105837153,SMS Solar Maintenance Services,"1,055.80"
Manchester City Council,Manchester Leisure,External repairs and maintenance for buildings,28-Oct-22,5105840327,Norman Ashworth Limited,"25,994.00"
Manchester City Council,Manchester Leisure,External repairs and maintenance for buildings,31-Oct-22,5105840627,Jones Melling Limited,"21,920.00"
Manchester City Council,Manchester Leisure,External repairs and maintenance for buildings,04-Oct-22,5105836722,My Sports Turf,"8,200.00"
Manchester City Council,Corporate Services,Fees,18-Oct-22,1907903585,Marston Group Limited,"98,822.00"
Manchester City Council,Corporate Services,Fees,18-Oct-22,1907904156,Marston Group Limited,"77,452.60"
Manchester City Council,Corporate Services,Fees,18-Oct-22,1907904153,Marston Group Limited,"18,523.80"
Manchester City Council,Corporate Services,Fees,18-Oct-22,1907903669,Marston Group Limited,"10,859.55"
Manchester City Council,Corporate Services,Fees,31-Oct-22,1700140395,Marston Group Limited,"-22,583.95"
Manchester City Council,Corporate Services,Fees,31-Oct-22,1700140408,Marston Group Limited,"-23,586.75"
Manchester City Council,Corporate Services,Fees,31-Oct-22,1700140408,Marston Group Limited,"23,586.75"
Manchester City Council,Corporate Services,Fees,31-Oct-22,1700140395,Marston Group Limited,"22,583.95"
Manchester City Council,Corporate Services,Fees,18-Oct-22,1907903669,Marston Group Limited,"-10,859.55"
Manchester City Council,Corporate Services,Fees,18-Oct-22,1907904153,Marston Group Limited,"-18,523.80"
Manchester City Council,Corporate Services,Fees,18-Oct-22,1907904156,Marston Group Limited,"-77,452.60"
Manchester City Council,Corporate Services,Fees,18-Oct-22,1907903585,Marston Group Limited,"-98,822.00"
Manchester City Council,Corporate Services,Fees,28-Oct-22,1907910247,Jacobs,"26,602.20"
Manchester City Council,Corporate Services,Fees,28-Oct-22,1907910247,Jacobs,"-26,602.20"
Manchester City Council,Corporate Services,Fees,18-Oct-22,1907898983,Newlyn Plc,"27,618.60"
Manchester City Council,Corporate Services,Fees,18-Oct-22,1907898982,Newlyn Plc,"22,360.05"
Manchester City Council,Corporate Services,Fees,28-Oct-22,1907911375,Newlyn Plc,"12,467.40"
Manchester City Council,Corporate Services,Fees,18-Oct-22,1907899913,Newlyn Plc,"4,468.50"
Manchester City Council,Corporate Services,Fees,18-Oct-22,1907899913,Newlyn Plc,"-4,468.50"
Manchester City Council,Corporate Services,Fees,28-Oct-22,1907911375,Newlyn Plc,"-12,467.40"
Manchester City Council,Corporate Services,Fees,18-Oct-22,1907898982,Newlyn Plc,"-22,360.05"
Manchester City Council,Corporate Services,Fees,18-Oct-22,1907898983,Newlyn Plc,"-27,618.60"
Manchester City Council,Corporate Services,Fees,28-Oct-22,1907911219,Bristow & Sutor,"11,388.95"
Manchester City Council,Corporate Services,Fees,28-Oct-22,1907911213,Bristow & Sutor,"8,839.15"
Manchester City Council,Corporate Services,Fees,28-Oct-22,1907911213,Bristow & Sutor,"-8,839.15"
Manchester City Council,Corporate Services,Fees,28-Oct-22,1907911219,Bristow & Sutor,"-11,388.95"
Manchester City Council,Corporate Services,Fees,26-Oct-22,5105839943,Pannone Corporate LLP,"7,442.66"
Manchester City Council,Corporate Services,Fees,26-Oct-22,5105839943,Pannone Corporate LLP,"5,492.34"
Manchester City Council,Corporate Services,Fees,24-Oct-22,5105839411,Pannone Corporate LLP,745.00
Manchester City Council,Corporate Services,Fees,24-Oct-22,5105839400,Pannone Corporate LLP,718.00
Manchester City Council,Corporate Services,Fees,28-Oct-22,1907911227,CDER GROUP LIMITED,"1,718.55"
Manchester City Council,Corporate Services,Fees,28-Oct-22,1907911227,CDER GROUP LIMITED,"-1,718.55"
Manchester City Council,Chief Executives,Funeral and coroner related services,27-Oct-22,5105840304,Uni Hospital of South Mcr,"2,951.00"
Manchester City Council,Chief Executives,Funeral and coroner related services,27-Oct-22,5105840102,Northern Care Alliance NHS FT,"4,521.00"
Manchester City Council,Chief Executives,Funeral and coroner related services,27-Oct-22,5105840103,Northern Care Alliance NHS FT,"1,644.00"
Manchester City Council,Chief Executives,Funeral and coroner related services,21-Oct-22,5105839123,Central Mcr Uni Hospital t/a,"24,039.86"
Manchester City Council,Chief Executives,Funeral and coroner related services,21-Oct-22,5105839123,Central Mcr Uni Hospital t/a,"27,315.72"
Manchester City Council,Hospitality + Trading Services,Funeral and coroner related services,31-Oct-22,5105839416,G E Robinson & Co Ltd,"11,416.00"
Manchester City Council,Chief Executives,Funeral and coroner related services,25-Oct-22,5105839644,Kane Funeral Services,"8,910.00"
Manchester City Council,Adult Social Care,Funeral and coroner related services,25-Oct-22,5105839705,Greater Manchester Funeral Service,"4,017.00"
Manchester City Council,Adult Social Care,Funeral and coroner related services,25-Oct-22,5105839778,Greater Manchester Funeral Service,764.00
Manchester City Council,Adult Social Care,Funeral and coroner related services,26-Oct-22,5105839996,Greater Manchester Funeral Service,"2,740.00"
Manchester City Council,Adult Social Care,Funeral and coroner related services,25-Oct-22,5105839768,Greater Manchester Funeral Service,"2,605.00"
Manchester City Council,Adult Social Care,Funeral and coroner related services,31-Oct-22,5105840706,Greater Manchester Funeral Service,"2,563.00"
Manchester City Council,Adult Social Care,Funeral and coroner related services,27-Oct-22,5105840023,Greater Manchester Funeral Service,"1,455.00"
Manchester City Council,Adult Social Care,Funeral and coroner related services,31-Oct-22,5105840700,Greater Manchester Funeral Service,"1,427.00"
Manchester City Council,Adult Social Care,Funeral and coroner related services,24-Oct-22,1700140380,Medlock House Ltd,"22,981.00"
Manchester City Council,Hospitality + Trading Services,Funeral and coroner related services,31-Oct-22,5105838533,George Hill Oldham Limited,"8,870.06"
Manchester City Council,Hospitality + Trading Services,Funeral and coroner related services,11-Oct-22,1907898564,Redacted Personal Information,"1,078.66"
Manchester City Council,Hospitality + Trading Services,Goods purchased for resale in Council outlets,31-Oct-22,5105838607,Teleshore (Uk) Ltd,"2,670.00"
Manchester City Council,Manchester Leisure,Goods purchased for resale in Council outlets,21-Oct-22,5105839092,Cornflower Ltd,"1,080.00"
Manchester City Council,Manchester Leisure,Goods purchased for resale in Council outlets,21-Oct-22,5105839091,Macmillan Distribution Ltd,742.34
Manchester City Council,Manchester Leisure,Goods purchased for resale in Council outlets,03-Oct-22,5105836492,Lord Mayor of M/cr Charity Appeal,701.10
Manchester City Council,Hospitality + Trading Services,Goods purchased for resale in Council outlets,18-Oct-22,5105838664,Treasured Memories Ltd,974.55
Manchester City Council,Manchester Leisure,Goods purchased for resale in Council outlets,17-Oct-22,5105838423,Stone Marketing Ltd,728.16
Manchester City Council,Hospitality + Trading Services,Goods purchased for resale in Council outlets,26-Oct-22,5105839811,Albert Jones Memorials,"4,806.00"
Manchester City Council,Hospitality + Trading Services,Goods purchased for resale in Council outlets,26-Oct-22,5105839815,Albert Jones Memorials,"4,005.00"
Manchester City Council,Hospitality + Trading Services,Goods purchased for resale in Council outlets,26-Oct-22,5105839816,Albert Jones Memorials,"2,223.80"
Manchester City Council,Hospitality + Trading Services,Goods purchased for resale in Council outlets,26-Oct-22,5105839813,Albert Jones Memorials,"-4,806.00"
Manchester City Council,Manchester Leisure,Goods purchased for resale in Council outlets,11-Oct-22,5105837475,I Drew This,542.50
Manchester City Council,Hospitality + Trading Services,Goods purchased for resale in Council outlets,25-Oct-22,5105839568,Obitus,"1,160.00"
Manchester City Council,Manchester Leisure,Goods purchased for resale in Council outlets,19-Oct-22,1907904161,BAVEUK LTD,840.00
Manchester City Council,Manchester Leisure,Goods purchased for resale in Council outlets,03-Oct-22,1907879114,Epic Print Limited,"1,736.69"
Manchester City Council,Manchester Leisure,Goods purchased for resale in Council outlets,03-Oct-22,1907879016,EvaD Ould-Okojie,856.00
Manchester City Council,Manchester Leisure,Goods purchased for resale in Council outlets,25-Oct-22,1907904158,Soapsmith Limited,"1,904.00"
Manchester City Council,Manchester Leisure,Goods purchased for resale in Council outlets,03-Oct-22,1907891353,The Salford Rum Company Ltd,730.00
Manchester City Council,Manchester Leisure,Grant and subscriptions awarded,24-Oct-22,5105839378,Barlow Moor Community Association,"2,360.43"
Manchester City Council,Manchester Leisure,Grant and subscriptions awarded,12-Oct-22,5105837664,St John Ambulance Supplies,"1,300.00"
Manchester City Council,Manchester Leisure,Grant and subscriptions awarded,31-Oct-22,5105840708,Riverside ECHG,"40,000.00"
Manchester City Council,Adult Social Care,Grant and subscriptions awarded,11-Oct-22,5105837266,Riverside ECHG,"25,662.00"
Manchester City Council,Manchester Leisure,Grant and subscriptions awarded,31-Oct-22,5105840710,Riverside ECHG,"-40,000.00"
Manchester City Council,Childrens & Education Services,Grant and subscriptions awarded,31-Oct-22,5105836809,Moss Side Millennium Powerhouse Ltd,500.00
Manchester City Council,Adult Social Care,Grant and subscriptions awarded,07-Oct-22,5105837185,LGBT Foundation,"26,598.50"
Manchester City Council,Manchester Leisure,Grant and subscriptions awarded,17-Oct-22,5105838398,Manchester Young Lives,"60,000.00"
Manchester City Council,Adult Social Care,Grant and subscriptions awarded,20-Oct-22,5105839086,Wai Yin Society,"29,800.00"
Manchester City Council,Regeneration Finance,Grant and subscriptions awarded,17-Oct-22,5105838399,Wai Yin Society,"2,547.00"
Manchester City Council,Adult Social Care,Grant and subscriptions awarded,31-Oct-22,5105840693,Caritas Diocese of Salford,"21,041.20"
Manchester City Council,Adult Social Care,Grant and subscriptions awarded,31-Oct-22,5105840455,Caritas Diocese of Salford,"1,716.00"
Manchester City Council,Adult Social Care,Grant and subscriptions awarded,27-Oct-22,5105840076,Caritas Diocese of Salford,"1,236.00"
Manchester City Council,Chief Executives,Grant and subscriptions awarded,31-Oct-22,5105837920,Zion Arts Centre Ltd,"65,000.00"
Manchester City Council,Chief Executives,Grant and subscriptions awarded,07-Oct-22,5105837232,Zion Arts Centre Ltd,"46,122.00"
Manchester City Council,Corporate Services,Grant and subscriptions awarded,03-Oct-22,5105836490,Tameside Metropolitan Bouough,512.95
Manchester City Council,Manchester Leisure,Grant and subscriptions awarded,04-Oct-22,5105836682,Wythenshawe Forum Trust Ltd,"-25,000.00"
Manchester City Council,Chief Executives,Grant and subscriptions awarded,12-Oct-22,5105837646,Community Arts North West,"6,250.00"
Manchester City Council,Adult Social Care,Grant and subscriptions awarded,20-Oct-22,5105839013,Independent Choices Gtr Manchester,"5,500.00"
Manchester City Council,Manchester Leisure,Grant and subscriptions awarded,24-Oct-22,5105839332,Charlestown Primary School,"1,000.00"
Manchester City Council,Adult Social Care,Grant and subscriptions awarded,24-Oct-22,5105839335,Manchester People First,"36,939.93"
Manchester City Council,Chief Executives,Grant and subscriptions awarded,20-Oct-22,5105839052,Venture Arts Ltd,"3,687.50"
Manchester City Council,Adult Social Care,Grant and subscriptions awarded,28-Oct-22,5105840491,Manchester Refugee Support Network,"12,500.00"
Manchester City Council,Adult Social Care,Grant and subscriptions awarded,20-Oct-22,5105839023,The Booth Centre,"22,500.00"
Manchester City Council,Adult Social Care,Grant and subscriptions awarded,18-Oct-22,5105838605,The Booth Centre,"10,121.00"
Manchester City Council,Chief Executives,Grant and subscriptions awarded,13-Oct-22,5105837902,Brighter Sound Ltd,"41,050.00"
Manchester City Council,Chief Executives,Grant and subscriptions awarded,13-Oct-22,5105837901,Brighter Sound Ltd,"5,000.00"
Manchester City Council,Manchester Leisure,Grant and subscriptions awarded,13-Oct-22,5105837927,Manchester Alliance For,"10,000.00"
Manchester City Council,Manchester Leisure,Grant and subscriptions awarded,13-Oct-22,5105837926,Manchester Alliance For,"3,300.00"
Manchester City Council,Manchester Leisure,Grant and subscriptions awarded,31-Oct-22,5105839333,Brooklands Church of The Nazarene,"1,130.99"
Manchester City Council,Manchester Leisure,Grant and subscriptions awarded,06-Oct-22,5105836964,Indian Association (Manchester),-668.46
Manchester City Council,Manchester Leisure,Grant and subscriptions awarded,31-Oct-22,5105840866,Residents of Gordon St Area,"1,000.00"
Manchester City Council,Manchester Leisure,Grant and subscriptions awarded,31-Oct-22,5105840626,NEPHRA residents Association,"3,440.00"
Manchester City Council,Manchester Leisure,Grant and subscriptions awarded,31-Oct-22,5105840590,Newton Heath Eco Youth,"1,500.00"
Manchester City Council,Manchester Leisure,Grant and subscriptions awarded,10-Oct-22,5105836611,Friends of Debdale Park,714.00
Manchester City Council,Chief Executives,Grant and subscriptions awarded,10-Oct-22,1907899892,Eurocities ASBL,"14,539.29"
Manchester City Council,Chief Executives,Grant and subscriptions awarded,04-Oct-22,5105836619,National Football Museum,"116,666.66"
Manchester City Council,Manchester Leisure,Grant and subscriptions awarded,17-Oct-22,5105838415,Levenshulme Community Association,500.00
Manchester City Council,Manchester Leisure,Grant and subscriptions awarded,17-Oct-22,5105838415,Levenshulme Community Association,500.00
Manchester City Council,Adult Social Care,Grant and subscriptions awarded,28-Oct-22,5105840386,Manchester Womens Aid,"41,590.00"
Manchester City Council,Regeneration Finance,Grant and subscriptions awarded,25-Oct-22,5105839777,Somali Golden Centre of Opps,"3,000.00"
Manchester City Council,Manchester Leisure,Grant and subscriptions awarded,07-Oct-22,5105837058,Whalley Range Youth Opps Asc WHIZ,"10,000.00"
Manchester City Council,Manchester Leisure,Grant and subscriptions awarded,07-Oct-22,5105837059,Whalley Range Youth Opps Asc WHIZ,"10,000.00"
Manchester City Council,Regeneration Finance,Grant and subscriptions awarded,17-Oct-22,5105838400,First Asian Support Trust,"2,949.98"
Manchester City Council,Chief Executives,Grant and subscriptions awarded,18-Oct-22,5105838563,Awaaz Manchester,"2,000.00"
Manchester City Council,Manchester Leisure,Grant and subscriptions awarded,31-Oct-22,5105840820,Manchester Youth Academy,"30,000.00"
Manchester City Council,Regeneration Finance,Grant and subscriptions awarded,13-Oct-22,5105837898,GAYDIO Community Interest Company,"1,099.00"
Manchester City Council,Manchester Leisure,Grant and subscriptions awarded,28-Oct-22,5105840422,Gorton Events Committee,"1,499.00"
Manchester City Council,Chief Executives,Grant and subscriptions awarded,28-Oct-22,5105839087,Waters Edge Arts Ltd,"3,750.00"
Manchester City Council,Regeneration Finance,Grant and subscriptions awarded,27-Oct-22,5105840177,Impact For All,"2,149.00"
Manchester City Council,Manchester Leisure,Grant and subscriptions awarded,04-Oct-22,5105836629,Manchester Youth Zone,"100,000.00"
Manchester City Council,Manchester Leisure,Grant and subscriptions awarded,03-Oct-22,5105836462,Manchester Youth Zone,"3,168.00"
Manchester City Council,Manchester Leisure,Grant and subscriptions awarded,07-Oct-22,5105836778,Northmoor Together,"2,320.00"
Manchester City Council,Manchester Leisure,Grant and subscriptions awarded,12-Oct-22,5105837816,Castlefield Forum,500.00
Manchester City Council,Manchester Leisure,Grant and subscriptions awarded,05-Oct-22,5105836903,Northern Moor Gardening Society,615.00
Manchester City Council,Manchester Leisure,Grant and subscriptions awarded,03-Oct-22,5105836410,Friends of Ladybarn Park Group,"1,374.70"
Manchester City Council,Adult Social Care,Grant and subscriptions awarded,17-Oct-22,1907889172,Department of Health,"20,700.00"
Manchester City Council,Regeneration Finance,Grant and subscriptions awarded,17-Oct-22,5105838420,Somali Advice Link,"3,000.00"
Manchester City Council,Manchester Leisure,Grant and subscriptions awarded,21-Oct-22,5105839183,The Byrons Social Club,"1,010.00"
Manchester City Council,Manchester Leisure,Grant and subscriptions awarded,25-Oct-22,5105839458,Friends of Blackley Cemetery,"4,000.00"
Manchester City Council,Adult Social Care,Grant and subscriptions awarded,31-Oct-22,5105840655,Manchester Mind,"18,117.50"
Manchester City Council,Manchester Leisure,Grant and subscriptions awarded,14-Oct-22,5105838117,West Gorton Community Partnership,"1,130.00"
Manchester City Council,Regeneration Finance,Grant and subscriptions awarded,13-Oct-22,5105837910,North Manchester Community,"1,751.88"
Manchester City Council,Chief Executives,Grant and subscriptions awarded,18-Oct-22,5105838660,Reform Radio CIC,"4,500.00"
Manchester City Council,Regeneration Finance,Grant and subscriptions awarded,17-Oct-22,5105838494,Reform Radio CIC,"1,667.00"
Manchester City Council,Chief Executives,Grant and subscriptions awarded,31-Oct-22,5105840893,Quarantine,"3,250.00"
Manchester City Council,Regeneration Finance,Grant and subscriptions awarded,25-Oct-22,5105839591,Your Employment Service CIC (YES),"1,790.00"
Manchester City Council,Chief Executives,Grant and subscriptions awarded,04-Oct-22,5105836674,The Manchester Men's Room,"2,986.00"
Manchester City Council,Childrens & Education Services,Grant and subscriptions awarded,20-Oct-22,5105839045,Wild in Art Limited,"20,000.00"
Manchester City Council,Manchester Leisure,Grant and subscriptions awarded,06-Oct-22,5105836946,Danforth Grove R A,"1,000.00"
Manchester City Council,Adult Social Care,Grant and subscriptions awarded,11-Oct-22,5105837558,Street Support Network Ltd,"6,000.00"
Manchester City Council,Manchester Leisure,Grant and subscriptions awarded,06-Oct-22,5105836945,Levenshulme Old Library Group CIO,500.00
Manchester City Council,Adult Social Care,Grant and subscriptions awarded,17-Oct-22,5105837249,SSG Sustainable Living,"95,928.00"
Manchester City Council,Adult Social Care,Grant and subscriptions awarded,14-Oct-22,5105838267,Caribbean & African,"30,000.00"
Manchester City Council,Adult Social Care,Grant and subscriptions awarded,21-Oct-22,5105839216,On The Out CIC,"25,613.00"
Manchester City Council,Adult Social Care,Grant and subscriptions awarded,18-Oct-22,5105838610,On The Out CIC,"17,122.92"
Manchester City Council,Adult Social Care,Grant and subscriptions awarded,31-Oct-22,5105840515,On The Out CIC,"17,122.92"
Manchester City Council,Childrens & Education Services,Grant and subscriptions awarded,05-Oct-22,5105836787,Friends Of Hulme Park,"1,000.00"
Manchester City Council,Manchester Leisure,Grant and subscriptions awarded,31-Oct-22,5105839162,Manchester Active,"135,000.00"
Manchester City Council,Chief Executives,Grant and subscriptions awarded,25-Oct-22,5105839422,Manchester City of Literature,"25,000.00"
Manchester City Council,Manchester Leisure,Grant and subscriptions awarded,18-Oct-22,5105838657,Women Arise,650.00
Manchester City Council,Manchester Leisure,Grant and subscriptions awarded,17-Oct-22,5105838416,Royal Mills Residents Association,500.00
Manchester City Council,Manchester Leisure,Grant and subscriptions awarded,06-Oct-22,5105836944,Levenshulme Inspire Foundation,"1,800.00"
Manchester City Council,Adult Social Care,Grant and subscriptions awarded,06-Oct-22,5105836948,Caritas (St Aidens),"18,674.00"
Manchester City Council,Adult Social Care,Grant and subscriptions awarded,18-Oct-22,5105836730,Divrse Ltd,"62,775.00"
Manchester City Council,Adult Social Care,Grant and subscriptions awarded,19-Oct-22,5105838719,Divrse Ltd,"58,590.00"
Manchester City Council,Adult Social Care,Grant and subscriptions awarded,19-Oct-22,5105838719,Divrse Ltd,"4,185.00"
Manchester City Council,Adult Social Care,Grant and subscriptions awarded,17-Oct-22,5105837094,Divrse Ltd,"4,140.00"
Manchester City Council,Adult Social Care,Grant and subscriptions awarded,18-Oct-22,5105838717,Divrse Ltd,"4,140.00"
Manchester City Council,Adult Social Care,Grant and subscriptions awarded,19-Oct-22,5105838716,Divrse Ltd,"4,140.00"
Manchester City Council,Adult Social Care,Grant and subscriptions awarded,17-Oct-22,5105838408,Divrse Ltd,"-4,140.00"
Manchester City Council,Adult Social Care,Grant and subscriptions awarded,18-Oct-22,5105838715,Divrse Ltd,"-4,140.00"
Manchester City Council,Adult Social Care,Grant and subscriptions awarded,18-Oct-22,5105838718,Divrse Ltd,"-4,140.00"
Manchester City Council,Adult Social Care,Grant and subscriptions awarded,18-Oct-22,5105838714,Divrse Ltd,"-62,775.00"
Manchester City Council,Manchester Leisure,Grant and subscriptions awarded,25-Oct-22,5105839593,Green Fingers Moston Community,"3,001.50"
Manchester City Council,Manchester Leisure,Grant and subscriptions awarded,25-Oct-22,5105839593,Green Fingers Moston Community,"1,498.50"
Manchester City Council,Manchester Leisure,Grant and subscriptions awarded,07-Oct-22,5105837147,Chorlton Pride,"2,500.00"
Manchester City Council,Manchester Leisure,Grant and subscriptions awarded,18-Oct-22,5105838671,High Bank Bowling and Social Club,600.00
Manchester City Council,Manchester Leisure,Grant and subscriptions awarded,19-Oct-22,5105839009,The Peter Quinn Friendship Group,"1,000.00"
Manchester City Council,Chief Executives,Grant and subscriptions awarded,14-Oct-22,5105838288,Factory of Creativity,"30,000.00"
Manchester City Council,Manchester Leisure,Grant and subscriptions awarded,14-Oct-22,1907902805,Redacted Personal Information,750.00
Manchester City Council,Chief Executives,Grant and subscriptions awarded,28-Oct-22,1907916001,THE LAW SOCIETY,"30,098.00"
Manchester City Council,Regeneration Finance,Grant Payments,18-Oct-22,5105838644,Oxford University Press,650.00
Manchester City Council,Corporate Services,Grant Payments,25-Oct-22,5105839449,Cleapss,"4,623.00"
Manchester City Council,Regeneration Finance,Grant Payments,25-Oct-22,5105839408,Open Awards,901.00
Manchester City Council,Regeneration Finance,Grant Payments,25-Oct-22,5105839407,Open Awards,578.00
Manchester City Council,Manchester Leisure,Grant Payments,14-Oct-22,5105838337,HouseMark Ltd,"12,500.00"
Manchester City Council,Regeneration Finance,Grant Payments,04-Oct-22,5105836655,Maths Watch Limited,500.00
Manchester City Council,Housing Revenue Account,Grant Payments,17-Oct-22,5105838422,The Housing Ombudsman,"71,410.40"
Manchester City Council,Corporate Services,Grant Payments,04-Oct-22,5105836699,Constructing Excellence Limited,"-16,650.00"
Manchester City Council,Adult Social Care,Grant Payments,11-Oct-22,5105837614,Workforce HCM Limited,"28,480.00"
Manchester City Council,Childrens & Education Services,Grant Payments,14-Oct-22,1907903990,Paypoint,"12,053.48"
Manchester City Council,Childrens & Education Services,Grant Payments,28-Oct-22,1907915477,Paypoint,"7,817.13"
Manchester City Council,Childrens & Education Services,Grant Payments,05-Oct-22,1907892689,Paypoint,"7,779.29"
Manchester City Council,Childrens & Education Services,Grant Payments,18-Oct-22,1907904957,Paypoint,"7,446.44"
Manchester City Council,Childrens & Education Services,Grant Payments,31-Oct-22,1907916233,Paypoint,"7,002.20"
Manchester City Council,Corporate Services,Grant Payments,24-Oct-22,1907904002,Comms Creatives Ltd,"1,998.00"
Manchester City Council,Childrens & Education Services,Home Care ,26-Oct-22,5105839060,Staff Resources Ltd,"22,715.00"
Manchester City Council,Childrens & Education Services,Home Care ,26-Oct-22,5105839059,Staff Resources Ltd,"15,930.00"
Manchester City Council,Childrens & Education Services,Home Care ,26-Oct-22,5105839058,Staff Resources Ltd,"14,625.00"
Manchester City Council,Childrens & Education Services,Home Care ,04-Oct-22,5105836705,WALKING TOGETHER,"1,200.00"
Manchester City Council,Chief Executives,I T Provision,26-Oct-22,5105838353,Iron Mountain,521.21
Manchester City Council,Chief Executives,I T Provision,26-Oct-22,5105839944,Iron Mountain,-521.21
Manchester City Council,Manchester Leisure,I T Provision,31-Oct-22,5105839109,Idox Software Ltd,"8,437.50"
Manchester City Council,Regeneration Finance,I T Provision,11-Oct-22,5105837565,Idox Software Ltd,"1,900.00"
Manchester City Council,Regeneration Finance,I T Provision,07-Oct-22,5105837317,Idox Software Ltd,"1,500.00"
Manchester City Council,Regeneration Finance,I T Provision,31-Oct-22,5105837560,Idox Software Ltd,950.00
Manchester City Council,Corporate Services,I T Provision,28-Oct-22,5105840369,Blazie,600.00
Manchester City Council,Corporate Services,I T Provision,20-Oct-22,5105838527,Riba Enterprises Ltd,"110,904.00"
Manchester City Council,Manchester Leisure,I T Provision,12-Oct-22,5105837658,BT PLC,"3,213.99"
Manchester City Council,Manchester Leisure,I T Provision,21-Oct-22,5105839180,BT PLC,"3,195.68"
Manchester City Council,Manchester Leisure,I T Provision,27-Oct-22,5105840079,Civica UK Ltd,784.43
Manchester City Council,Manchester Leisure,I T Provision,20-Oct-22,5105838970,British Telecommunications Plc,"-3,195.68"
Manchester City Council,Corporate Services,I T Provision,05-Oct-22,5105836990,Insight Direct (Uk) Ltd,"12,948.32"
Manchester City Council,Chief Executives,I T Provision,27-Oct-22,5105839479,Insight Direct (Uk) Ltd,"3,314.80"
Manchester City Council,Regeneration Finance,I T Provision,31-Oct-22,5105840637,Insight Direct (Uk) Ltd,"3,232.32"
Manchester City Council,Regeneration Finance,I T Provision,17-Oct-22,5105838505,Insight Direct (Uk) Ltd,"2,038.09"
Manchester City Council,Regeneration Finance,I T Provision,21-Oct-22,5105837955,Insight Direct (Uk) Ltd,816.76
Manchester City Council,Chief Executives,I T Provision,28-Oct-22,5105840215,Insight Direct (Uk) Ltd,679.20
Manchester City Council,Corporate Services,I T Provision,05-Oct-22,5105837031,Insight Direct (Uk) Ltd,"-12,948.32"
Manchester City Council,Regeneration Finance,I T Provision,24-Oct-22,5105839260,Locata (Housing Services) Ltd,"11,200.00"
Manchester City Council,Regeneration Finance,I T Provision,06-Oct-22,5105836969,Locata (Housing Services) Ltd,"6,117.75"
Manchester City Council,Regeneration Finance,I T Provision,06-Oct-22,5105836970,Locata (Housing Services) Ltd,"1,300.00"
Manchester City Council,Regeneration Finance,I T Provision,03-Oct-22,5105836397,Locata (Housing Services) Ltd,"1,112.50"
Manchester City Council,Regeneration Finance,I T Provision,03-Oct-22,5105836422,Locata (Housing Services) Ltd,"1,112.50"
Manchester City Council,Manchester Leisure,I T Provision,25-Oct-22,5105839598,Local Data Company,"6,380.00"
Manchester City Council,Adult Social Care,I T Provision,07-Oct-22,5105837250,Percy Westhead & Company,"8,437.50"
Manchester City Council,Highways Services,I T Provision,31-Oct-22,5105839073,Symology Limited,"21,375.94"
Manchester City Council,Adult Social Care,I T Provision,31-Oct-22,5105840886,The Networking People (TNP) Ltd,787.00
Manchester City Council,Childrens & Education Services,I T Provision,18-Oct-22,5105838720,Allied Publicity Services (M\cr) Lt,"2,219.37"
Manchester City Council,Childrens & Education Services,I T Provision,21-Oct-22,5105839110,Valtech Limited,"1,040.36"
Manchester City Council,Childrens & Education Services,I T Provision,31-Oct-22,5105837376,ICT Revolutions Ltd,"2,362.50"
Manchester City Council,Regeneration Finance,I T Provision,28-Oct-22,5105840359,Blue Soft Limited,"1,949.00"
Manchester City Council,Manchester Leisure,I T Provision,21-Oct-22,5105839238,Frost and Sullivan,"7,500.00"
Manchester City Council,Chief Executives,I T Provision,13-Oct-22,5105837904,euNetworks The Loop Limited,"12,240.00"
Manchester City Council,Manchester Leisure,I T Provision,28-Oct-22,5105840494,Eldercare (UK) Ltd,"1,365.63"
Manchester City Council,Manchester Leisure,I T Provision,05-Oct-22,5105836804,Upland Software UK Ltd,"9,585.00"
Manchester City Council,Regeneration Finance,I T Provision,26-Oct-22,5105840006,DMS Group,"3,455.10"
Manchester City Council,Regeneration Finance,I T Provision,26-Oct-22,5105840007,DMS Group,"3,455.10"
Manchester City Council,Regeneration Finance,I T Provision,26-Oct-22,5105840009,DMS Group,"3,455.10"
Manchester City Council,Highways Services,I T Provision,12-Oct-22,5105837390,ThinkProject UK Limited,"1,395.00"
Manchester City Council,Environment and Operations,Infrastructure Fees,05-Oct-22,1907897380,Bevan Brittan LLP,"1,110.00"
Manchester City Council,Insurance Fund,Insurance,10-Oct-22,1907894252,Accountant General of the Senior,"24,500.00"
Manchester City Council,Insurance Fund,Insurance,06-Oct-22,1907862852,Department For Work & Pensions,743.00
Manchester City Council,Insurance Fund,Insurance,31-Oct-22,1907915985,Civil Costs Specialist Ltd,"1,068.00"
Manchester City Council,Manchester Leisure,Internal Repairs and Maintenance for buildings,21-Oct-22,5105839121,Event Technical Support,"1,095.27"
Manchester City Council,Hospitality + Trading Services,Internal Repairs and Maintenance for buildings,06-Oct-22,5105836963,WMB (Installations) Ltd,"-1,963.53"
Manchester City Council,Regeneration Finance,Internal Repairs and Maintenance for buildings,14-Oct-22,5105836939,EQUANS Services Limited,"68,179.81"
Manchester City Council,Regeneration Finance,Internal Repairs and Maintenance for buildings,17-Oct-22,5105837486,EQUANS Services Limited,"63,469.57"
Manchester City Council,Regeneration Finance,Internal Repairs and Maintenance for buildings,31-Oct-22,5105839488,EQUANS Services Limited,"49,209.03"
Manchester City Council,Regeneration Finance,Internal Repairs and Maintenance for buildings,24-Oct-22,5105838286,EQUANS Services Limited,"24,875.04"
Manchester City Council,Regeneration Finance,Taxi Vehicle Materia,04-Oct-22,5105836727,VIP-System Ltd,"6,396.14"
Manchester City Council,Regeneration Finance,Taxi Vehicle Materia,31-Oct-22,5105839625,VIP-System Ltd,"3,685.35"
Manchester City Council,Regeneration Finance,Taxi Vehicle Materia,27-Oct-22,5105840163,VIP-System Ltd,662.05
Manchester City Council,Childrens & Education Services,Storage Costs,13-Oct-22,5105837991,Iron Mountain,"2,698.07"
Manchester City Council,Childrens & Education Services,Storage Costs,14-Oct-22,5105838039,Iron Mountain,"1,295.62"
Manchester City Council,Chief Executives,Postage,13-Oct-22,5105837482,Royal Mail Group Plc,"25,230.35"
Manchester City Council,Corporate Services,Postage,04-Oct-22,5105836555,Royal Mail Group Plc,"12,786.90"
Manchester City Council,Corporate Services,Postage,04-Oct-22,5105836556,Royal Mail Group Plc,"11,355.52"
Manchester City Council,Corporate Services,Postage,14-Oct-22,5105838287,Royal Mail Group Plc,"8,590.76"
Manchester City Council,Corporate Services,Postage,06-Oct-22,5105836856,Royal Mail Group Plc,"8,344.22"
Manchester City Council,Corporate Services,Postage,31-Oct-22,5105840770,Royal Mail Group Plc,"7,354.41"
Manchester City Council,Corporate Services,Postage,25-Oct-22,5105839635,Royal Mail Group Plc,"1,504.57"
Manchester City Council,Chief Executives,Postage,13-Oct-22,5105837899,Royal Mail Group Plc,"1,494.72"
Manchester City Council,Chief Executives,Postage,27-Oct-22,5105839114,Royal Mail Group Plc,"1,164.00"
Manchester City Council,Corporate Services,Postage,13-Oct-22,5105836897,Royal Mail Group Plc,"1,114.95"
Manchester City Council,Chief Executives,Postage,31-Oct-22,5105840845,Royal Mail Group Plc,"1,062.92"
Manchester City Council,Corporate Services,Postage,04-Oct-22,5105836775,Royal Mail Group Plc,"-9,826.00"
Manchester City Council,Corporate Services,Postage,04-Oct-22,5105836776,Royal Mail Group Plc,"-10,693.00"
Manchester City Council,Manchester Leisure,Equipment,20-Oct-22,5105839046,Nacro,500.00
Manchester City Council,Childrens & Education Services,Furniture,18-Oct-22,5105838933,Eps Supplies Ltd,"1,043.07"
Manchester City Council,Highways Services,Legal Fees,25-Oct-22,1907912916,Tranter Cleere & Co,"5,190.90"
Manchester City Council,Housing Revenue Account,West Gorton Mgmt Fee,11-Oct-22,5105837528,The Guinness Partnership Ltd,"16,666.00"
Manchester City Council,Chief Executives,Advertising,21-Oct-22,5105839112,Haymarket Publishing Services Ltd,895.00
Manchester City Council,Adult Social Care,Equipment,24-Oct-22,5105839419,Mangar International Ltd/Winncare,816.00
Manchester City Council,Adult Social Care,Equipment,25-Oct-22,5105839456,Mangar International Ltd/Winncare,816.00
Manchester City Council,Manchester Leisure,Equipment,10-Oct-22,5105837271,Conservation By Design Ltd,583.12
Manchester City Council,Adult Social Care,Equipment,31-Oct-22,5105840649,Sarabec Limited,749.75
Manchester City Council,Chief Executives,Publications,24-Oct-22,5105839344,Lexis Nexis Uk,"24,702.00"
Manchester City Council,Childrens & Education Services,Electricity,20-Oct-22,1907910684,Total Gas & Power,"1,143.40"
Manchester City Council,Adult Social Care,Rents,25-Oct-22,5105839715,Johnnie Johnson Housing,"3,071.08"
Manchester City Council,Adult Social Care,Rents,25-Oct-22,5105839712,Johnnie Johnson Housing,"3,044.53"
Manchester City Council,Adult Social Care,Rents,25-Oct-22,5105839713,Johnnie Johnson Housing,"2,857.54"
Manchester City Council,Adult Social Care,Rents,25-Oct-22,5105839716,Johnnie Johnson Housing,"2,406.57"
Manchester City Council,Adult Social Care,Gas,27-Oct-22,1907915201,Scottish & Southern Energy Plc,"1,110.14"
Manchester City Council,Adult Social Care,Gas,27-Oct-22,1907915197,Scottish & Southern Energy Plc,"1,068.90"
Manchester City Council,Manchester Leisure,Gas,27-Oct-22,1907915196,Scottish & Southern Energy Plc,882.60
Manchester City Council,Adult Social Care,Gas,27-Oct-22,1907915198,Scottish & Southern Energy Plc,863.85
Manchester City Council,Adult Social Care,Gas,27-Oct-22,1907915199,Scottish & Southern Energy Plc,842.99
Manchester City Council,Manchester Leisure,Gas,27-Oct-22,1907915195,Scottish & Southern Energy Plc,783.06
Manchester City Council,Adult Social Care,Gas,27-Oct-22,1907915206,Scottish & Southern Energy Plc,743.14
Manchester City Council,Manchester Leisure,Gas,27-Oct-22,1907915191,Scottish & Southern Energy Plc,589.47
Manchester City Council,Adult Social Care,Gas,27-Oct-22,1700140406,Scottish & Southern Energy Plc,-512.05
Manchester City Council,Adult Social Care,Gas,27-Oct-22,1700140405,Scottish & Southern Energy Plc,"-1,067.34"
Manchester City Council,Manchester Leisure,Electricity,13-Oct-22,1907903298,Scottish & Southern Energy Plc,"5,866.23"
Manchester City Council,Regeneration Finance,Electricity,13-Oct-22,1907903321,Scottish & Southern Energy Plc,"3,961.63"
Manchester City Council,Childrens & Education Services,Electricity,13-Oct-22,1907903367,Scottish & Southern Energy Plc,"3,051.10"
Manchester City Council,Regeneration Finance,Electricity,13-Oct-22,1907903471,Scottish & Southern Energy Plc,"3,003.35"
Manchester City Council,Regeneration Finance,Electricity,13-Oct-22,1907903473,Scottish & Southern Energy Plc,"2,895.71"
Manchester City Council,Regeneration Finance,Electricity,13-Oct-22,1907903402,Scottish & Southern Energy Plc,"1,969.56"
Manchester City Council,Childrens & Education Services,Electricity,13-Oct-22,1907903302,Scottish & Southern Energy Plc,"1,888.30"
Manchester City Council,Regeneration Finance,Electricity,13-Oct-22,1907903376,Scottish & Southern Energy Plc,"1,769.83"
Manchester City Council,Regeneration Finance,Electricity,13-Oct-22,1907903365,Scottish & Southern Energy Plc,"1,730.36"
Manchester City Council,Manchester Leisure,Electricity,13-Oct-22,1907903439,Scottish & Southern Energy Plc,"1,713.66"
Manchester City Council,Regeneration Finance,Electricity,13-Oct-22,1907903400,Scottish & Southern Energy Plc,"1,688.91"
Manchester City Council,Regeneration Finance,Electricity,13-Oct-22,1907903554,Scottish & Southern Energy Plc,"1,485.43"
Manchester City Council,Regeneration Finance,Electricity,13-Oct-22,1907903330,Scottish & Southern Energy Plc,"1,485.31"
Manchester City Council,Manchester Leisure,Electricity,13-Oct-22,1907903349,Scottish & Southern Energy Plc,"1,478.96"
Manchester City Council,Manchester Leisure,Electricity,13-Oct-22,1907903442,Scottish & Southern Energy Plc,"1,400.40"
Manchester City Council,Adult Social Care,Electricity,13-Oct-22,1907903347,Scottish & Southern Energy Plc,"1,368.05"
Manchester City Council,Regeneration Finance,Electricity,13-Oct-22,1907903304,Scottish & Southern Energy Plc,"1,358.90"
Manchester City Council,Manchester Leisure,Electricity,13-Oct-22,1907903354,Scottish & Southern Energy Plc,"1,305.05"
Manchester City Council,Regeneration Finance,Electricity,13-Oct-22,1907903567,Scottish & Southern Energy Plc,"1,250.44"
Manchester City Council,Manchester Leisure,Electricity,13-Oct-22,1907903299,Scottish & Southern Energy Plc,"1,234.60"
Manchester City Council,Adult Social Care,Electricity,13-Oct-22,1907903266,Scottish & Southern Energy Plc,"1,196.32"
Manchester City Council,Manchester Leisure,Electricity,13-Oct-22,1907903352,Scottish & Southern Energy Plc,"1,192.19"
Manchester City Council,Manchester Leisure,Electricity,13-Oct-22,1907903353,Scottish & Southern Energy Plc,"1,181.41"
Manchester City Council,Manchester Leisure,Electricity,13-Oct-22,1907903250,Scottish & Southern Energy Plc,"1,111.85"
Manchester City Council,Regeneration Finance,Electricity,13-Oct-22,1907903419,Scottish & Southern Energy Plc,"1,073.52"
Manchester City Council,Manchester Leisure,Electricity,13-Oct-22,1907903351,Scottish & Southern Energy Plc,"1,055.41"
Manchester City Council,Adult Social Care,Electricity,13-Oct-22,1907903260,Scottish & Southern Energy Plc,"1,051.83"
Manchester City Council,Manchester Leisure,Electricity,13-Oct-22,1907903449,Scottish & Southern Energy Plc,"1,044.65"
Manchester City Council,Regeneration Finance,Electricity,13-Oct-22,1907903415,Scottish & Southern Energy Plc,"1,039.78"
Manchester City Council,Manchester Leisure,Electricity,13-Oct-22,1907903249,Scottish & Southern Energy Plc,"1,034.76"
Manchester City Council,Adult Social Care,Electricity,13-Oct-22,1907903262,Scottish & Southern Energy Plc,"1,030.81"
Manchester City Council,Regeneration Finance,Electricity,13-Oct-22,1907903357,Scottish & Southern Energy Plc,"1,030.30"
Manchester City Council,Adult Social Care,Electricity,13-Oct-22,1907903274,Scottish & Southern Energy Plc,"1,019.17"
Manchester City Council,Highways Services,Electricity,13-Oct-22,1907903457,Scottish & Southern Energy Plc,"1,017.65"
Manchester City Council,Regeneration Finance,Electricity,13-Oct-22,1907903409,Scottish & Southern Energy Plc,983.60
Manchester City Council,Regeneration Finance,Electricity,13-Oct-22,1907903490,Scottish & Southern Energy Plc,982.78
Manchester City Council,Manchester Leisure,Electricity,13-Oct-22,1907903440,Scottish & Southern Energy Plc,959.99
Manchester City Council,Regeneration Finance,Electricity,13-Oct-22,1907903472,Scottish & Southern Energy Plc,955.29
Manchester City Council,Adult Social Care,Electricity,13-Oct-22,1907903273,Scottish & Southern Energy Plc,933.58
Manchester City Council,Adult Social Care,Electricity,13-Oct-22,1907903418,Scottish & Southern Energy Plc,926.55
Manchester City Council,Manchester Leisure,Electricity,13-Oct-22,1907903345,Scottish & Southern Energy Plc,916.35
Manchester City Council,Regeneration Finance,Electricity,13-Oct-22,1907903309,Scottish & Southern Energy Plc,910.20
Manchester City Council,Regeneration Finance,Electricity,13-Oct-22,1907903343,Scottish & Southern Energy Plc,891.55
Manchester City Council,Adult Social Care,Electricity,13-Oct-22,1907903271,Scottish & Southern Energy Plc,864.44
Manchester City Council,Adult Social Care,Electricity,13-Oct-22,1907903258,Scottish & Southern Energy Plc,855.30
Manchester City Council,Manchester Leisure,Electricity,13-Oct-22,1907903223,Scottish & Southern Energy Plc,848.92
Manchester City Council,Regeneration Finance,Electricity,13-Oct-22,1907903358,Scottish & Southern Energy Plc,829.54
Manchester City Council,Manchester Leisure,Electricity,13-Oct-22,1907903257,Scottish & Southern Energy Plc,816.68
Manchester City Council,Regeneration Finance,Electricity,13-Oct-22,1907903427,Scottish & Southern Energy Plc,809.85
Manchester City Council,Childrens & Education Services,Electricity,13-Oct-22,1907903441,Scottish & Southern Energy Plc,796.89
Manchester City Council,Manchester Leisure,Electricity,13-Oct-22,1907903414,Scottish & Southern Energy Plc,776.71
Manchester City Council,Corporate Services,Electricity,13-Oct-22,1907903232,Scottish & Southern Energy Plc,776.51
Manchester City Council,Adult Social Care,Electricity,13-Oct-22,1907903264,Scottish & Southern Energy Plc,760.13
Manchester City Council,Manchester Leisure,Electricity,13-Oct-22,1907903408,Scottish & Southern Energy Plc,756.97
Manchester City Council,Manchester Leisure,Electricity,13-Oct-22,1907903277,Scottish & Southern Energy Plc,752.22
Manchester City Council,Regeneration Finance,Electricity,13-Oct-22,1907903311,Scottish & Southern Energy Plc,748.71
Manchester City Council,Manchester Leisure,Electricity,13-Oct-22,1907903371,Scottish & Southern Energy Plc,742.37
Manchester City Council,Adult Social Care,Electricity,13-Oct-22,1907903268,Scottish & Southern Energy Plc,735.20
Manchester City Council,Adult Social Care,Electricity,13-Oct-22,1907903282,Scottish & Southern Energy Plc,712.10
Manchester City Council,Manchester Leisure,Electricity,13-Oct-22,1907903390,Scottish & Southern Energy Plc,704.45
Manchester City Council,Regeneration Finance,Electricity,13-Oct-22,1907903491,Scottish & Southern Energy Plc,689.50
Manchester City Council,Adult Social Care,Electricity,13-Oct-22,1907903265,Scottish & Southern Energy Plc,686.07
Manchester City Council,Adult Social Care,Electricity,13-Oct-22,1907903487,Scottish & Southern Energy Plc,680.78
Manchester City Council,Adult Social Care,Electricity,13-Oct-22,1907903401,Scottish & Southern Energy Plc,669.64
Manchester City Council,Adult Social Care,Electricity,13-Oct-22,1907903195,Scottish & Southern Energy Plc,669.17
Manchester City Council,Manchester Leisure,Electricity,13-Oct-22,1907903484,Scottish & Southern Energy Plc,668.85
Manchester City Council,Regeneration Finance,Electricity,13-Oct-22,1907903559,Scottish & Southern Energy Plc,638.09
Manchester City Council,Highways Services,Electricity,13-Oct-22,1907903462,Scottish & Southern Energy Plc,613.08
Manchester City Council,Manchester Leisure,Electricity,13-Oct-22,1907903350,Scottish & Southern Energy Plc,612.35
Manchester City Council,Highways Services,Electricity,13-Oct-22,1907903456,Scottish & Southern Energy Plc,606.91
Manchester City Council,Adult Social Care,Electricity,13-Oct-22,1907903240,Scottish & Southern Energy Plc,606.87
Manchester City Council,Regeneration Finance,Electricity,13-Oct-22,1907903560,Scottish & Southern Energy Plc,592.29
Manchester City Council,Adult Social Care,Electricity,13-Oct-22,1907903276,Scottish & Southern Energy Plc,588.43
Manchester City Council,Adult Social Care,Electricity,13-Oct-22,1907903218,Scottish & Southern Energy Plc,588.03
Manchester City Council,Regeneration Finance,Electricity,13-Oct-22,1907903392,Scottish & Southern Energy Plc,567.63
Manchester City Council,Regeneration Finance,Electricity,13-Oct-22,1907903568,Scottish & Southern Energy Plc,567.56
Manchester City Council,Adult Social Care,Electricity,13-Oct-22,1907903293,Scottish & Southern Energy Plc,567.07
Manchester City Council,Regeneration Finance,Electricity,13-Oct-22,1907903306,Scottish & Southern Energy Plc,562.52
Manchester City Council,Regeneration Finance,Electricity,13-Oct-22,1907903561,Scottish & Southern Energy Plc,561.67
Manchester City Council,Adult Social Care,Electricity,13-Oct-22,1907903287,Scottish & Southern Energy Plc,560.21
Manchester City Council,Manchester Leisure,Electricity,13-Oct-22,1907903340,Scottish & Southern Energy Plc,556.92
Manchester City Council,Adult Social Care,Electricity,13-Oct-22,1907903489,Scottish & Southern Energy Plc,552.84
Manchester City Council,Adult Social Care,Electricity,13-Oct-22,1907903243,Scottish & Southern Energy Plc,540.84
Manchester City Council,Regeneration Finance,Electricity,13-Oct-22,1907903492,Scottish & Southern Energy Plc,540.28
Manchester City Council,Adult Social Care,Electricity,13-Oct-22,1907903348,Scottish & Southern Energy Plc,534.02
Manchester City Council,Adult Social Care,Electricity,13-Oct-22,1907903420,Scottish & Southern Energy Plc,519.51
Manchester City Council,Regeneration Finance,Electricity,13-Oct-22,1907903428,Scottish & Southern Energy Plc,517.65
Manchester City Council,Adult Social Care,Electricity,13-Oct-22,1907903270,Scottish & Southern Energy Plc,517.36
Manchester City Council,Regeneration Finance,Electricity,13-Oct-22,1907903377,Scottish & Southern Energy Plc,513.95
Manchester City Council,Adult Social Care,Electricity,13-Oct-22,1907903259,Scottish & Southern Energy Plc,513.65
Manchester City Council,Adult Social Care,Electricity,13-Oct-22,1907903267,Scottish & Southern Energy Plc,508.91
Manchester City Council,Childrens & Education Services,Electricity,13-Oct-22,1700140112,Scottish & Southern Energy Plc,-526.56
Manchester City Council,Regeneration Finance,Electricity,13-Oct-22,1700140124,Scottish & Southern Energy Plc,-542.31
Manchester City Council,Regeneration Finance,Electricity,13-Oct-22,1700140125,Scottish & Southern Energy Plc,-585.85
Manchester City Council,Regeneration Finance,Electricity,13-Oct-22,1700140085,Scottish & Southern Energy Plc,-598.98
Manchester City Council,Regeneration Finance,Electricity,13-Oct-22,1700140123,Scottish & Southern Energy Plc,-606.37
Manchester City Council,Regeneration Finance,Electricity,13-Oct-22,1700140082,Scottish & Southern Energy Plc,-730.71
Manchester City Council,Regeneration Finance,Electricity,13-Oct-22,1700140089,Scottish & Southern Energy Plc,-804.59
Manchester City Council,Regeneration Finance,Electricity,13-Oct-22,1700140081,Scottish & Southern Energy Plc,-807.26
Manchester City Council,Regeneration Finance,Electricity,13-Oct-22,1700140083,Scottish & Southern Energy Plc,-807.26
Manchester City Council,Regeneration Finance,Electricity,13-Oct-22,1700140086,Scottish & Southern Energy Plc,-857.54
Manchester City Council,Regeneration Finance,Electricity,13-Oct-22,1700140110,Scottish & Southern Energy Plc,-863.92
Manchester City Council,Regeneration Finance,Electricity,13-Oct-22,1700140087,Scottish & Southern Energy Plc,-883.80
Manchester City Council,Adult Social Care,Electricity,13-Oct-22,1700140080,Scottish & Southern Energy Plc,-976.84
Manchester City Council,Regeneration Finance,Electricity,13-Oct-22,1700140088,Scottish & Southern Energy Plc,"-1,011.26"
Manchester City Council,Regeneration Finance,Electricity,13-Oct-22,1700140108,Scottish & Southern Energy Plc,"-1,156.30"
Manchester City Council,Manchester Leisure,Electricity,13-Oct-22,1700140107,Scottish & Southern Energy Plc,"-1,181.41"
Manchester City Council,Regeneration Finance,Electricity,13-Oct-22,1700140109,Scottish & Southern Energy Plc,"-1,204.99"
Manchester City Council,Regeneration Finance,Electricity,13-Oct-22,1700140084,Scottish & Southern Energy Plc,"-1,215.58"
Manchester City Council,Regeneration Finance,Electricity,13-Oct-22,1700140076,Scottish & Southern Energy Plc,"-2,630.07"
Manchester City Council,Regeneration Finance,Electricity,13-Oct-22,1700140077,Scottish & Southern Energy Plc,"-2,908.17"
Manchester City Council,Regeneration Finance,Electricity,13-Oct-22,1700140079,Scottish & Southern Energy Plc,"-2,908.17"
Manchester City Council,Regeneration Finance,Electricity,13-Oct-22,1700140078,Scottish & Southern Energy Plc,"-3,001.07"
Manchester City Council,Manchester Leisure,ICT Sup & Maintnance,03-Oct-22,5105836449,Equisys Timemaster Ltd,"2,358.20"
Manchester City Council,Corporate Services,Hire of Equipment,04-Oct-22,5105836598,Flowbird Smart City Uk Ltd,"11,824.13"
Manchester City Council,Corporate Services,Hire of Equipment,25-Oct-22,5105839719,Flowbird Smart City Uk Ltd,"11,824.13"
Manchester City Council,Highways Services,Training-Day Release,24-Oct-22,5105838589,Veritas Safety Management Ltd,"2,810.00"
Manchester City Council,Hospitality + Trading Services,Vehicle Hire Costs,25-Oct-22,5105839665,F.R.Sharrock Ltd,"2,338.60"
Manchester City Council,Hospitality + Trading Services,Hire of Machinery,13-Oct-22,5105837921,F.R.Sharrock Ltd,"28,336.00"
Manchester City Council,Childrens & Education Services,Hire of Premises,17-Oct-22,5105838313,Luther King House Educational Trust,"1,000.00"
Manchester City Council,Adult Social Care,Rents,07-Oct-22,5105837177,B & A Properties,"40,550.29"
Manchester City Council,Adult Social Care,Rents,14-Oct-22,5105838281,B & A Properties,"37,104.29"
Manchester City Council,Hospitality + Trading Services,Equipment,26-Oct-22,5105839935,H Jenkinson & Co Ltd.,"2,118.00"
Manchester City Council,Chief Executives,Furniture,18-Oct-22,5105838180,H Jenkinson & Co Ltd.,"5,661.00"
Manchester City Council,Regeneration Finance,Furniture,26-Oct-22,5105839933,H Jenkinson & Co Ltd.,"3,320.00"
Manchester City Council,Chief Executives,Furniture,26-Oct-22,5105839918,H Jenkinson & Co Ltd.,"1,833.00"
Manchester City Council,Chief Executives,Hire of Equipment,07-Oct-22,5105837159,William G.Search Ltd,"1,450.00"
Manchester City Council,Corporate Services,Equipment,18-Oct-22,5105838938,Arco Group Ltd,565.20
Manchester City Council,Regeneration Finance,Stationery,27-Oct-22,5105839755,Digital ID Ltd,"1,505.93"
Manchester City Council,Regeneration Finance,Stationery,27-Oct-22,5105839756,Digital ID Ltd,"1,505.93"
Manchester City Council,Regeneration Finance,Stationery,27-Oct-22,5105839758,Digital ID Ltd,"1,505.93"
Manchester City Council,Regeneration Finance,Stationery,27-Oct-22,5105839761,Digital ID Ltd,"1,505.93"
Manchester City Council,Childrens & Education Services,Electricity,27-Oct-22,1907915176,British Gas Plc,611.72
Manchester City Council,Chief Executives,Equipment,18-Oct-22,5105838799,Orbis Protect Ltd,"3,524.31"
Manchester City Council,Chief Executives,Equipment,18-Oct-22,5105838815,Orbis Protect Ltd,"3,524.31"
Manchester City Council,Chief Executives,Equipment,18-Oct-22,5105838786,Orbis Protect Ltd,"3,355.02"
Manchester City Council,Chief Executives,Equipment,18-Oct-22,5105838788,Orbis Protect Ltd,"3,355.02"
Manchester City Council,Chief Executives,Equipment,18-Oct-22,5105838741,Orbis Protect Ltd,"-3,355.02"
Manchester City Council,Chief Executives,Equipment,18-Oct-22,5105838742,Orbis Protect Ltd,"-3,355.02"
Manchester City Council,Chief Executives,Equipment,18-Oct-22,5105838750,Orbis Protect Ltd,"-3,524.31"
Manchester City Council,Chief Executives,Equipment,18-Oct-22,5105838778,Orbis Protect Ltd,"-3,524.31"
Manchester City Council,Chief Executives,Advertising,31-Oct-22,5105840750,Hemming Group Ltd,675.00
Manchester City Council,Manchester Leisure,Landline Telephone,31-Oct-22,1907914969,BT PLC,"1,746.17"
Manchester City Council,Manchester Leisure,Landline Telephone,27-Oct-22,1907914968,BT PLC,"1,623.77"
Manchester City Council,Manchester Leisure,Landline Telephone,27-Oct-22,1907914966,BT PLC,"1,368.29"
Manchester City Council,Regeneration Finance,Rents,20-Oct-22,1907904145,CBRE Ltd (Glasgow),"38,815.75"
Manchester City Council,Chief Executives,Publications,27-Oct-22,5105840213,NLA Media Access Ltd,"13,610.81"
Manchester City Council,Adult Social Care,Furniture,14-Oct-22,5105838077,Back Care Solutions Ltd,"1,821.95"
Manchester City Council,Adult Social Care,Furniture,13-Oct-22,5105837903,Back Care Solutions Ltd,"1,202.90"
Manchester City Council,Regeneration Finance,Furniture,24-Oct-22,5105839360,Back Care Solutions Ltd,990.00
Manchester City Council,Adult Social Care,Furniture,14-Oct-22,5105838074,Back Care Solutions Ltd,"-1,821.95"
Manchester City Council,Chief Executives,Special Event,17-Oct-22,5105838095,Clearview Event Services Limited,"1,400.00"
Manchester City Council,Corporate Services,Storage Costs,04-Oct-22,5105836605,Apex Self Storage Ltd,590.97
Manchester City Council,Regeneration Finance,Rents,26-Oct-22,1907904157,Adam Geoffrey Management Ltd,"559,500.00"
Manchester City Council,Manchester Leisure,Electricity,10-Oct-22,5105837337,Switch2 Energey Limited,"8,229.40"
Manchester City Council,Manchester Leisure,Electricity,31-Oct-22,5105840407,Switch2 Energey Limited,729.08
Manchester City Council,Chief Executives,Hire of Equipment,10-Oct-22,5105837289,Tube UK Ltd,"4,841.00"
Manchester City Council,Chief Executives,Hire of Equipment,10-Oct-22,5105837306,Tube UK Ltd,"2,394.00"
Manchester City Council,Manchester Leisure,Hire of Equipment,05-Oct-22,5105836495,Tube UK Ltd,"1,836.60"
Manchester City Council,Manchester Leisure,Hire of Equipment,06-Oct-22,5105836646,Tube UK Ltd,"1,836.60"
Manchester City Council,Manchester Leisure,Hire of Equipment,07-Oct-22,5105837183,Tube UK Ltd,"1,091.30"
Manchester City Council,Manchester Leisure,Hire of Equipment,05-Oct-22,5105836645,Tube UK Ltd,"-1,836.60"
Manchester City Council,Hospitality + Trading Services,Hire of Machinery,27-Oct-22,5105840208,R & M Developments Ltd,"1,073.50"
Manchester City Council,Hospitality + Trading Services,Hire of Machinery,27-Oct-22,5105840211,R & M Developments Ltd,"1,073.50"
Manchester City Council,Hospitality + Trading Services,Hire of Machinery,27-Oct-22,5105840241,R & M Developments Ltd,"1,073.50"
Manchester City Council,Hospitality + Trading Services,Hire of Machinery,27-Oct-22,5105840269,R & M Developments Ltd,"1,073.50"
Manchester City Council,Hospitality + Trading Services,Hire of Machinery,05-Oct-22,5105836815,R & M Developments Ltd,858.80
Manchester City Council,Hospitality + Trading Services,Hire of Machinery,27-Oct-22,5105840278,R & M Developments Ltd,858.80
Manchester City Council,Hospitality + Trading Services,Hire of Machinery,28-Oct-22,5105840457,R & M Developments Ltd,858.80
Manchester City Council,Hospitality + Trading Services,Hire of Machinery,27-Oct-22,5105840271,R & M Developments Ltd,858.50
Manchester City Council,Hospitality + Trading Services,Hire of Machinery,25-Oct-22,5105839733,R & M Developments Ltd,606.67
Manchester City Council,Hospitality + Trading Services,Hire of Machinery,25-Oct-22,5105839737,R & M Developments Ltd,606.67
Manchester City Council,Hospitality + Trading Services,Hire of Machinery,25-Oct-22,5105839741,R & M Developments Ltd,606.67
Manchester City Council,Hospitality + Trading Services,Hire of Machinery,25-Oct-22,5105839749,R & M Developments Ltd,541.67
Manchester City Council,Hospitality + Trading Services,Hire of Machinery,25-Oct-22,5105839751,R & M Developments Ltd,541.67
Manchester City Council,Hospitality + Trading Services,Hire of Machinery,25-Oct-22,5105839731,R & M Developments Ltd,511.33
Manchester City Council,Hospitality + Trading Services,Hire of Machinery,25-Oct-22,5105839736,R & M Developments Ltd,511.33
Manchester City Council,Hospitality + Trading Services,Hire of Machinery,25-Oct-22,5105839740,R & M Developments Ltd,511.33
Manchester City Council,Hospitality + Trading Services,Hire of Machinery,25-Oct-22,5105839743,R & M Developments Ltd,511.33
Manchester City Council,Hospitality + Trading Services,Hire of Machinery,25-Oct-22,5105839744,R & M Developments Ltd,511.33
Manchester City Council,Hospitality + Trading Services,Hire of Machinery,28-Oct-22,5105840456,R & M Developments Ltd,-858.50
Manchester City Council,Childrens & Education Services,Catering,31-Oct-22,5105836683,Spie Limited,"24,312.50"
Manchester City Council,Childrens & Education Services,Catering,31-Oct-22,5105839224,Spie Limited,"-13,565.00"
Manchester City Council,Manchester Leisure,Legal Fees,18-Oct-22,1907891291,Sph Costing Services Ltd,603.59
Manchester City Council,Manchester Leisure,Publications,10-Oct-22,5105837347,Askews and Holts,694.01
Manchester City Council,Corporate Services,Bank Charges,17-Oct-22,1907904114,Capita Business Services Ltd,"10,184.17"
Manchester City Council,Chief Executives,Advertising,04-Oct-22,5105836667,Clear Channel Uk Ltd,"4,559.50"
Manchester City Council,Chief Executives,Advertising,04-Oct-22,5105836668,Clear Channel Uk Ltd,515.95
Manchester City Council,Adult Social Care,Legal Fees,31-Oct-22,5105840575,Kings Chambers,753.33
Manchester City Council,Adult Social Care,Legal Fees,04-Oct-22,5105836573,Kings Chambers,660.00
Manchester City Council,Chief Executives,Paper & Envelopes,31-Oct-22,5105840865,Premier Paper Group Ltd,"1,921.07"
Manchester City Council,Chief Executives,Paper & Envelopes,28-Oct-22,5105840339,Premier Paper Group Ltd,704.92
Manchester City Council,Chief Executives,Paper & Envelopes,07-Oct-22,5105837190,Premier Paper Group Ltd,569.45
Manchester City Council,Chief Executives,Paper & Envelopes,07-Oct-22,5105837341,Premier Paper Group Ltd,526.68
Manchester City Council,Adult Social Care,Rents,21-Oct-22,5105839263,Mosscare Housing Ltd,"1,737.84"
Manchester City Council,Adult Social Care,Rents,24-Oct-22,5105839264,Mosscare Housing Ltd,"1,737.84"
Manchester City Council,Regeneration Finance,Hire of Premises,31-Oct-22,5105840704,Manchester Metropolitan University,"4,431.08"
Manchester City Council,Manchester Leisure,Equipment,18-Oct-22,5105838196,Clean-Up UK Limited,800.00
Manchester City Council,Manchester Leisure,Hire of Equipment,31-Oct-22,5105840857,Biffa Waste Services Ltd,"7,735.20"
Manchester City Council,Manchester Leisure,Grounds Maintenance,31-Oct-22,5105840454,Rigby Taylor Ltd,"4,408.69"
Manchester City Council,Manchester Leisure,Grounds Maintenance,31-Oct-22,5105840453,Rigby Taylor Ltd,"3,342.50"
Manchester City Council,Manchester Leisure,Equipment,31-Oct-22,5105840172,Sutcliffe Play Ltd,"3,891.16"
Manchester City Council,Regeneration Finance,Hire of Equipment,25-Oct-22,5105839574,Siemens Financial Services Ltd,501.02
Manchester City Council,Corporate Services,Tracing fees,18-Oct-22,5105838595,Experian Limited,"2,100.02"
Manchester City Council,Childrens & Education Services,Hire of Premises,19-Oct-22,5105838688,Moss Side Millennium Powerhouse Ltd,874.70
Manchester City Council,Childrens & Education Services,Hire of Premises,31-Oct-22,5105840715,Moss Side Millennium Powerhouse Ltd,800.00
Manchester City Council,Manchester Leisure,Equipment,05-Oct-22,5105836788,Earth Anchors Ltd,"1,610.00"
Manchester City Council,Manchester Leisure,Equipment,24-Oct-22,5105839398,Earth Anchors Ltd,753.00
Manchester City Council,Manchester Leisure,Equipment,21-Oct-22,5105839072,Groundwork Landscapes Ltd,"2,320.00"
Manchester City Council,Manchester Leisure,Equipment,04-Oct-22,5105836493,Groundwork Landscapes Ltd,"1,990.00"
Manchester City Council,Manchester Leisure,Equipment,31-Oct-22,5105839256,Groundwork Landscapes Ltd,"1,885.00"
Manchester City Council,Manchester Leisure,Equipment,18-Oct-22,5105838642,Groundwork Landscapes Ltd,"1,750.00"
Manchester City Council,Manchester Leisure,Equipment,04-Oct-22,5105836491,Groundwork Landscapes Ltd,"1,125.00"
Manchester City Council,Manchester Leisure,Equipment,31-Oct-22,5105840684,Groundwork Landscapes Ltd,900.00
Manchester City Council,Manchester Leisure,Equipment,26-Oct-22,5105839792,Groundwork Landscapes Ltd,750.00
Manchester City Council,Adult Social Care,Equipment,25-Oct-22,5105839661,NRS Healthcare,"4,376.00"
Manchester City Council,Adult Social Care,Equipment,14-Oct-22,5105838308,NRS Healthcare,"1,342.80"
Manchester City Council,Adult Social Care,Stationery,28-Oct-22,5105840383,Findel Education Ltd,513.73
Manchester City Council,Adult Social Care,Stationery,19-Oct-22,5105838986,Findel Education Ltd,-513.73
Manchester City Council,Adult Social Care,Catering Provisions,20-Oct-22,1907911257,Brake Bros Foodservice Ltd,767.97
Manchester City Council,Highways Services,Training-Day Release,11-Oct-22,5105837494,Trafford College,"3,600.00"
Manchester City Council,Hospitality + Trading Services,Hire of Machinery,20-Oct-22,5105839201,H & C Plant Hire Ltd,"3,077.00"
Manchester City Council,Hospitality + Trading Services,Hire of Equipment,20-Oct-22,5105839223,Mastacab LLP,510.40
Manchester City Council,Regeneration Finance,Grounds Maintenance,18-Oct-22,5105838587,Arboricultural Services Treework,"2,000.00"
Manchester City Council,Regeneration Finance,Grounds Maintenance,25-Oct-22,5105839457,Arboricultural Services Treework,"2,000.00"
Manchester City Council,Regeneration Finance,Grounds Maintenance,25-Oct-22,5105839443,Arboricultural Services Treework,"1,950.00"
Manchester City Council,Regeneration Finance,Grounds Maintenance,10-Oct-22,5105837052,Arboricultural Services Treework,800.00
Manchester City Council,Regeneration Finance,Grounds Maintenance,31-Oct-22,5105837053,Arboricultural Services Treework,600.00
Manchester City Council,Corporate Services,Legal Fees,05-Oct-22,1907897384,Peasegoods,"5,800.00"
Manchester City Council,Corporate Services,Legal Fees,07-Oct-22,1907899358,Peasegoods,"3,750.00"
Manchester City Council,Corporate Services,Legal Fees,07-Oct-22,1907899004,Peasegoods,"3,200.00"
Manchester City Council,Corporate Services,Legal Fees,20-Oct-22,1907911355,Peasegoods,"1,500.00"
Manchester City Council,Highways Services,Grounds Maintenance,20-Oct-22,5105839220,Central Locksmiths,761.25
Manchester City Council,Highways Services,Grounds Maintenance,20-Oct-22,5105839218,Central Locksmiths,717.50
Manchester City Council,Chief Executives,Advertising,25-Oct-22,5105839594,Reach Publishing Services Ltd,"21,138.79"
Manchester City Council,Chief Executives,Advertising,25-Oct-22,5105839594,Reach Publishing Services Ltd,"5,681.21"
Manchester City Council,Chief Executives,Advertising,31-Oct-22,5105840870,Reach Publishing Services Ltd,"2,974.00"
Manchester City Council,Chief Executives,Advertising,31-Oct-22,5105840881,Reach Publishing Services Ltd,"1,568.55"
Manchester City Council,Regeneration Finance,Legal Fees,04-Oct-22,5105836570,No 5 Chambers Ltd,"1,000.00"
Manchester City Council,Manchester Leisure,Hire of Premises,25-Oct-22,5105839718,Halle Concerts Society,800.00
Manchester City Council,Chief Executives,Printing,31-Oct-22,5105838888,Astra Signs,"8,090.00"
Manchester City Council,Chief Executives,Printing,31-Oct-22,5105838892,Astra Signs,"6,743.75"
Manchester City Council,Chief Executives,Printing,31-Oct-22,5105838889,Astra Signs,"2,766.00"
Manchester City Council,Chief Executives,Printing,31-Oct-22,5105838894,Astra Signs,"1,280.00"
Manchester City Council,Chief Executives,Printing,31-Oct-22,5105838893,Astra Signs,575.00
Manchester City Council,Chief Executives,Examination Fees,27-Oct-22,5105840303,Uni Hospital of South Mcr,"1,050.00"
Manchester City Council,Corporate Services,Legal Fees,28-Oct-22,1907916061,Antony Hodari Holding Ltd,"12,000.00"
Manchester City Council,Corporate Services,Legal Fees,31-Oct-22,1907916073,Antony Hodari Holding Ltd,"3,000.00"
Manchester City Council,Corporate Services,Legal Fees,14-Oct-22,1907903971,Antony Hodari Holding Ltd,"1,500.00"
Manchester City Council,Manchester Leisure,Special Event,14-Oct-22,5105838124,HOME,"1,400.00"
Manchester City Council,Adult Social Care,Signers/Interpreters,24-Oct-22,5105839352,Language Line Ltd,"10,281.95"
Manchester City Council,Corporate Services,Signers/Interpreters,24-Oct-22,5105839352,Language Line Ltd,"1,113.78"
Manchester City Council,Adult Social Care,Signers/Interpreters,18-Oct-22,5105838686,Language Line Ltd,908.80
Manchester City Council,Adult Social Care,Signers/Interpreters,25-Oct-22,5105839495,Language Line Ltd,828.80
Manchester City Council,Corporate Services,Signers/Interpreters,31-Oct-22,5105840589,Language Line Ltd,-786.53
Manchester City Council,Adult Social Care,Signers/Interpreters,31-Oct-22,5105840589,Language Line Ltd,"-9,984.54"
Manchester City Council,Corporate Services,Profit Recovered,26-Oct-22,1700140391,Central Mcr Uni Hospital t/a,"-3,859.00"
Manchester City Council,Manchester Leisure,Special Event,05-Oct-22,5105836781,Ahmed Iqbal Ullah Education Trust,"2,500.00"
Manchester City Council,Regeneration Finance,Water - Metered,25-Oct-22,5105839605,Wythenshawe Forum Trust Ltd,"14,069.44"
Manchester City Council,Adult Social Care,Hire of Premises,14-Oct-22,5105838373,Manchester City Football Club Plc,"10,310.00"
Manchester City Council,Childrens & Education Services,Hire of Premises,13-Oct-22,5105837977,Manchester City Football Club Plc,"3,830.00"
Manchester City Council,Adult Social Care,Catering,07-Oct-22,5105837136,Manchester City Football Club Plc,625.50
Manchester City Council,Adult Social Care,Hire of Premises,27-Oct-22,5105840036,Quaker Trading Ltd,"1,192.54"
Manchester City Council,Childrens & Education Services,Hire of Premises,28-Oct-22,5105840533,Quaker Trading Ltd,703.34
Manchester City Council,Childrens & Education Services,Hire of Premises,06-Oct-22,5105836877,Quaker Trading Ltd,583.33
Manchester City Council,Corporate Services,Travel Season TLS,11-Oct-22,5105837433,Transport for Greater Manchester,870.30
Manchester City Council,Corporate Services,Travel Season TLS,12-Oct-22,5105837599,Transport for Greater Manchester,870.30
Manchester City Council,Corporate Services,Travel Season TLS,12-Oct-22,5105837601,Transport for Greater Manchester,870.30
Manchester City Council,Manchester Leisure,Special Event,31-Oct-22,5105840787,Transport for Greater Manchester,975.00
Manchester City Council,Manchester Leisure,Special Event,31-Oct-22,5105840785,Transport for Greater Manchester,740.20
Manchester City Council,Childrens & Education Services,COVID - 19,17-Oct-22,5105838497,4CT Limited,"2,000.00"
Manchester City Council,Childrens & Education Services,COVID - 19,17-Oct-22,5105838526,4CT Limited,"-2,000.00"
Manchester City Council,Manchester Leisure,Hire of Machinery,31-Oct-22,5105840884,Wythenshawe Community Farm,500.00
Manchester City Council,Childrens & Education Services,Rents,24-Oct-22,1907902795,Partners Of Prisoners & Families,"3,921.83"
Manchester City Council,Childrens & Education Services,Gas,06-Oct-22,5105837011,Manchester School Services Limited,"81,813.37"
Manchester City Council,Regeneration Finance,Recruitment Expenses,07-Oct-22,5105837248,Turner & Townsend Cost,"17,432.97"
Manchester City Council,Manchester Leisure,Grounds Maintenance,03-Oct-22,5105836472,Redgate Holdings Ltd,"11,557.80"
Manchester City Council,Manchester Leisure,Grounds Maintenance,28-Oct-22,5105840464,Redgate Holdings Ltd,"10,214.60"
Manchester City Council,Manchester Leisure,Equipment,07-Oct-22,5105837272,Redgate Holdings Ltd,"9,884.63"
Manchester City Council,Manchester Leisure,Disposables,04-Oct-22,5105836480,Redgate Holdings Ltd,"68,859.70"
Manchester City Council,Manchester Leisure,Disposables,28-Oct-22,5105840461,Redgate Holdings Ltd,"65,761.60"
Manchester City Council,Manchester Leisure,Liquid Contnr Recycl,28-Oct-22,5105840463,Redgate Holdings Ltd,"7,139.90"
Manchester City Council,Manchester Leisure,Tipping - Tonnage,28-Oct-22,5105840465,Redgate Holdings Ltd,"86,350.29"
Manchester City Council,Manchester Leisure,Tipping - Tonnage,04-Oct-22,5105836478,Redgate Holdings Ltd,"85,246.51"
Manchester City Council,Manchester Leisure,Tipping - Skips,28-Oct-22,5105840459,Redgate Holdings Ltd,"43,311.44"
Manchester City Council,Manchester Leisure,Tipping - Skips,03-Oct-22,5105836474,Redgate Holdings Ltd,"39,525.54"
Manchester City Council,Manchester Leisure,Hire of Premises,03-Oct-22,5105836496,Timpson Ltd,"2,199.75"
Manchester City Council,Adult Social Care,Rents,28-Oct-22,5105840319,Jigsaw Homes North,"13,375.00"
Manchester City Council,Adult Social Care,Rents,19-Oct-22,5105838977,Jigsaw Homes North,"2,872.93"
Manchester City Council,Adult Social Care,Rents,19-Oct-22,5105838976,Jigsaw Homes North,"2,722.56"
Manchester City Council,Adult Social Care,Rents,19-Oct-22,5105838974,Jigsaw Homes North,"2,394.41"
Manchester City Council,Adult Social Care,Extra Care Sheltd HP,18-Oct-22,5105837359,Premier Care  Ltd,"47,743.03"
Manchester City Council,Adult Social Care,Extra Care Sheltd HP,21-Oct-22,5105839027,Premier Care  Ltd,"47,743.03"
Manchester City Council,Adult Social Care,Extra Care Sheltd HP,17-Oct-22,5105837360,Premier Care  Ltd,"29,047.54"
Manchester City Council,Adult Social Care,Extra Care Sheltd HP,20-Oct-22,5105839029,Premier Care  Ltd,"29,047.54"
Manchester City Council,Adult Social Care,Extra Care Sheltd HP,17-Oct-22,5105837355,Premier Care  Ltd,"22,635.45"
Manchester City Council,Adult Social Care,Extra Care Sheltd HP,20-Oct-22,5105839028,Premier Care  Ltd,"22,635.45"
Manchester City Council,Adult Social Care,Extra Care Sheltd HP,17-Oct-22,5105837371,Premier Care  Ltd,"21,090.37"
Manchester City Council,Adult Social Care,Extra Care Sheltd HP,20-Oct-22,5105839025,Premier Care  Ltd,"21,090.37"
Manchester City Council,Manchester Leisure,Hire of Premises,27-Oct-22,5105839961,Greater Manchester Police Sports &,577.20
Manchester City Council,Chief Executives,Printing,07-Oct-22,5105837119,Chapel Press Ltd,"5,877.00"
Manchester City Council,Chief Executives,Printing,26-Oct-22,5105839799,Chapel Press Ltd,"1,110.00"
Manchester City Council,Chief Executives,Printing,31-Oct-22,5105840685,Chapel Press Ltd,822.00
Manchester City Council,Adult Social Care,Rents,11-Oct-22,5105837179,Amco Management,"32,966.29"
Manchester City Council,Manchester Leisure,Hire of Machinery,12-Oct-22,5105837705,Bradshaw Lawnmover Engineers,"1,459.80"
Manchester City Council,Manchester Leisure,Hire of Machinery,13-Oct-22,5105837930,Bradshaw Lawnmover Engineers,541.91
Manchester City Council,Childrens & Education Services,Hire of Premises,25-Oct-22,5105839521,University Of Manchester,540.50
Manchester City Council,Chief Executives,Hire of Equipment,07-Oct-22,5105837092,The Manchester Light & Stage,"4,952.00"
Manchester City Council,Chief Executives,Hire of Equipment,20-Oct-22,5105839049,The Manchester Light & Stage,"1,319.00"
Manchester City Council,Chief Executives,Special Event,24-Oct-22,5105839246,Event Technical Support,810.00
Manchester City Council,Chief Executives,Special Event,24-Oct-22,5105839247,Event Technical Support,550.00
Manchester City Council,Hospitality + Trading Services,Electricity,20-Oct-22,1907910765,Npower,"56,205.05"
Manchester City Council,Manchester Leisure,Electricity,20-Oct-22,1907910763,Npower,"47,701.74"
Manchester City Council,Hospitality + Trading Services,Electricity,27-Oct-22,1907915140,Npower,"31,893.97"
Manchester City Council,Regeneration Finance,Electricity,20-Oct-22,1907910758,Npower,"29,010.50"
Manchester City Council,Regeneration Finance,Electricity,20-Oct-22,1907910706,Npower,"24,759.06"
Manchester City Council,Manchester Leisure,Electricity,27-Oct-22,1907915138,Npower,"24,118.64"
Manchester City Council,Manchester Leisure,Electricity,27-Oct-22,1907915130,Npower,"23,627.68"
Manchester City Council,Regeneration Finance,Electricity,20-Oct-22,1907910776,Npower,"23,251.88"
Manchester City Council,Hospitality + Trading Services,Electricity,20-Oct-22,1907910711,Npower,"21,482.30"
Manchester City Council,Regeneration Finance,Electricity,20-Oct-22,1907910781,Npower,"18,206.75"
Manchester City Council,Regeneration Finance,Electricity,27-Oct-22,1907915131,Npower,"17,108.99"
Manchester City Council,Manchester Leisure,Electricity,20-Oct-22,1907910762,Npower,"16,989.12"
Manchester City Council,Hospitality + Trading Services,Electricity,20-Oct-22,1907910733,Npower,"16,709.50"
Manchester City Council,Regeneration Finance,Electricity,27-Oct-22,1907915158,Npower,"16,041.29"
Manchester City Council,Manchester Leisure,Electricity,20-Oct-22,1907910725,Npower,"15,290.73"
Manchester City Council,Hospitality + Trading Services,Electricity,27-Oct-22,1907915074,Npower,"15,021.39"
Manchester City Council,Regeneration Finance,Electricity,20-Oct-22,1907910767,Npower,"13,813.70"
Manchester City Council,Manchester Leisure,Electricity,20-Oct-22,1907910757,Npower,"13,069.80"
Manchester City Council,Manchester Leisure,Electricity,20-Oct-22,1907910764,Npower,"12,468.02"
Manchester City Council,Regeneration Finance,Electricity,27-Oct-22,1907915067,Npower,"11,959.42"
Manchester City Council,Regeneration Finance,Electricity,20-Oct-22,1907910782,Npower,"11,244.44"
Manchester City Council,Manchester Leisure,Electricity,20-Oct-22,1907910713,Npower,"11,183.48"
Manchester City Council,Manchester Leisure,Electricity,27-Oct-22,1907915112,Npower,"10,862.79"
Manchester City Council,Regeneration Finance,Electricity,27-Oct-22,1907915163,Npower,"10,176.86"
Manchester City Council,Hospitality + Trading Services,Electricity,20-Oct-22,1907910730,Npower,"9,504.78"
Manchester City Council,Regeneration Finance,Electricity,20-Oct-22,1907910727,Npower,"9,058.03"
Manchester City Council,Manchester Leisure,Electricity,27-Oct-22,1907915076,Npower,"8,959.28"
Manchester City Council,Regeneration Finance,Electricity,27-Oct-22,1907915143,Npower,"8,925.12"
Manchester City Council,Manchester Leisure,Electricity,20-Oct-22,1907910766,Npower,"8,514.61"
Manchester City Council,Manchester Leisure,Electricity,27-Oct-22,1907915137,Npower,"8,322.63"
Manchester City Council,Manchester Leisure,Electricity,20-Oct-22,1907910746,Npower,"8,050.68"
Manchester City Council,Manchester Leisure,Electricity,27-Oct-22,1907915139,Npower,"8,004.14"
Manchester City Council,Manchester Leisure,Electricity,20-Oct-22,1907910710,Npower,"6,530.20"
Manchester City Council,Regeneration Finance,Electricity,27-Oct-22,1907915093,Npower,"6,327.56"
Manchester City Council,Manchester Leisure,Electricity,27-Oct-22,1907915141,Npower,"6,141.88"
Manchester City Council,Hospitality + Trading Services,Electricity,27-Oct-22,1907915098,Npower,"5,702.99"
Manchester City Council,Manchester Leisure,Electricity,20-Oct-22,1907910787,Npower,"5,584.45"
Manchester City Council,Manchester Leisure,Electricity,27-Oct-22,1907915116,Npower,"5,543.57"
Manchester City Council,Regeneration Finance,Electricity,27-Oct-22,1907915164,Npower,"5,481.13"
Manchester City Council,Manchester Leisure,Electricity,20-Oct-22,1907910742,Npower,"5,454.84"
Manchester City Council,Regeneration Finance,Electricity,20-Oct-22,1907910709,Npower,"5,262.29"
Manchester City Council,Regeneration Finance,Electricity,20-Oct-22,1907910732,Npower,"5,191.30"
Manchester City Council,Manchester Leisure,Electricity,27-Oct-22,1907915091,Npower,"5,163.64"
Manchester City Council,Manchester Leisure,Electricity,27-Oct-22,1907915136,Npower,"5,098.25"
Manchester City Council,Regeneration Finance,Electricity,20-Oct-22,1907910744,Npower,"4,938.32"
Manchester City Council,Highways Services,Electricity,20-Oct-22,1907910769,Npower,"4,638.24"
Manchester City Council,Regeneration Finance,Electricity,27-Oct-22,1907915099,Npower,"4,583.26"
Manchester City Council,Regeneration Finance,Electricity,20-Oct-22,1907910731,Npower,"4,513.01"
Manchester City Council,Manchester Leisure,Electricity,20-Oct-22,1907910743,Npower,"4,282.31"
Manchester City Council,Manchester Leisure,Electricity,20-Oct-22,1907910721,Npower,"4,276.16"
Manchester City Council,Manchester Leisure,Electricity,20-Oct-22,1907910783,Npower,"4,195.76"
Manchester City Council,Regeneration Finance,Electricity,20-Oct-22,1907910747,Npower,"4,147.15"
Manchester City Council,Manchester Leisure,Electricity,27-Oct-22,1907915073,Npower,"4,132.65"
Manchester City Council,Highways Services,Electricity,27-Oct-22,1907915147,Npower,"3,962.33"
Manchester City Council,Manchester Leisure,Electricity,20-Oct-22,1907910760,Npower,"3,917.82"
Manchester City Council,Highways Services,Electricity,27-Oct-22,1907915149,Npower,"3,840.90"
Manchester City Council,Regeneration Finance,Electricity,20-Oct-22,1907910740,Npower,"3,433.54"
Manchester City Council,Manchester Leisure,Electricity,27-Oct-22,1907915168,Npower,"3,227.84"
Manchester City Council,Manchester Leisure,Electricity,20-Oct-22,1907910805,Npower,"2,870.95"
Manchester City Council,Manchester Leisure,Electricity,20-Oct-22,1907910768,Npower,"2,862.93"
Manchester City Council,Regeneration Finance,Electricity,20-Oct-22,1907910754,Npower,"2,861.44"
Manchester City Council,Hospitality + Trading Services,Electricity,20-Oct-22,1907910756,Npower,"2,829.39"
Manchester City Council,Regeneration Finance,Electricity,27-Oct-22,1907915070,Npower,"2,808.19"
Manchester City Council,Hospitality + Trading Services,Electricity,20-Oct-22,1907910714,Npower,"2,802.16"
Manchester City Council,Regeneration Finance,Electricity,20-Oct-22,1907910745,Npower,"2,741.87"
Manchester City Council,Manchester Leisure,Electricity,27-Oct-22,1907915113,Npower,"2,739.55"
Manchester City Council,Regeneration Finance,Electricity,27-Oct-22,1907915114,Npower,"2,695.79"
Manchester City Council,Manchester Leisure,Electricity,20-Oct-22,1907910759,Npower,"2,540.02"
Manchester City Council,Manchester Leisure,Electricity,27-Oct-22,1907915086,Npower,"2,528.24"
Manchester City Council,Regeneration Finance,Electricity,27-Oct-22,1907915101,Npower,"2,464.51"
Manchester City Council,Manchester Leisure,Electricity,27-Oct-22,1907915062,Npower,"2,364.75"
Manchester City Council,Regeneration Finance,Electricity,27-Oct-22,1907915100,Npower,"2,335.47"
Manchester City Council,Manchester Leisure,Electricity,27-Oct-22,1907915165,Npower,"2,292.33"
Manchester City Council,Regeneration Finance,Electricity,20-Oct-22,1907910737,Npower,"2,245.61"
Manchester City Council,Regeneration Finance,Electricity,20-Oct-22,1907910738,Npower,"2,202.71"
Manchester City Council,Regeneration Finance,Electricity,27-Oct-22,1907915117,Npower,"2,197.96"
Manchester City Council,Regeneration Finance,Electricity,20-Oct-22,1907910734,Npower,"2,102.29"
Manchester City Council,Hospitality + Trading Services,Electricity,27-Oct-22,1907915172,Npower,"1,914.12"
Manchester City Council,Regeneration Finance,Electricity,20-Oct-22,1907910735,Npower,"1,913.71"
Manchester City Council,Regeneration Finance,Electricity,27-Oct-22,1907915107,Npower,"1,859.69"
Manchester City Council,Regeneration Finance,Electricity,27-Oct-22,1907915111,Npower,"1,833.46"
Manchester City Council,Regeneration Finance,Electricity,27-Oct-22,1907915115,Npower,"1,806.07"
Manchester City Council,Hospitality + Trading Services,Electricity,20-Oct-22,1907910790,Npower,"1,736.43"
Manchester City Council,Regeneration Finance,Electricity,20-Oct-22,1907910755,Npower,"1,727.66"
Manchester City Council,Manchester Leisure,Electricity,27-Oct-22,1907915135,Npower,"1,714.57"
Manchester City Council,Highways Services,Electricity,20-Oct-22,1907910728,Npower,"1,707.27"
Manchester City Council,Manchester Leisure,Electricity,20-Oct-22,1907910707,Npower,"1,647.52"
Manchester City Council,Adult Social Care,Electricity,20-Oct-22,1907910814,Npower,"1,644.80"
Manchester City Council,Manchester Leisure,Electricity,20-Oct-22,1907910752,Npower,"1,635.09"
Manchester City Council,Regeneration Finance,Electricity,27-Oct-22,1907915127,Npower,"1,590.62"
Manchester City Council,Hospitality + Trading Services,Electricity,27-Oct-22,1907915129,Npower,"1,588.23"
Manchester City Council,Adult Social Care,Electricity,20-Oct-22,1907910788,Npower,"1,580.72"
Manchester City Council,Manchester Leisure,Electricity,20-Oct-22,1907910751,Npower,"1,549.73"
Manchester City Council,Highways Services,Electricity,27-Oct-22,1907915148,Npower,"1,538.64"
Manchester City Council,Manchester Leisure,Electricity,20-Oct-22,1907910716,Npower,"1,478.67"
Manchester City Council,Manchester Leisure,Electricity,27-Oct-22,1907915124,Npower,"1,473.04"
Manchester City Council,Manchester Leisure,Electricity,27-Oct-22,1907915125,Npower,"1,447.44"
Manchester City Council,Regeneration Finance,Electricity,20-Oct-22,1907910722,Npower,"1,439.10"
Manchester City Council,Manchester Leisure,Electricity,20-Oct-22,1907910723,Npower,"1,433.51"
Manchester City Council,Highways Services,Electricity,27-Oct-22,1907915146,Npower,"1,426.32"
Manchester City Council,Adult Social Care,Electricity,20-Oct-22,1907910753,Npower,"1,423.89"
Manchester City Council,Manchester Leisure,Electricity,27-Oct-22,1907915145,Npower,"1,420.76"
Manchester City Council,Regeneration Finance,Electricity,27-Oct-22,1907915128,Npower,"1,397.01"
Manchester City Council,Manchester Leisure,Electricity,20-Oct-22,1907910813,Npower,"1,391.87"
Manchester City Council,Regeneration Finance,Electricity,20-Oct-22,1907910773,Npower,"1,315.11"
Manchester City Council,Manchester Leisure,Electricity,20-Oct-22,1907910775,Npower,"1,303.15"
Manchester City Council,Manchester Leisure,Electricity,20-Oct-22,1907910812,Npower,"1,300.08"
Manchester City Council,Highways Services,Electricity,27-Oct-22,1907915094,Npower,"1,292.12"
Manchester City Council,Manchester Leisure,Electricity,20-Oct-22,1907910749,Npower,"1,275.01"
Manchester City Council,Adult Social Care,Electricity,20-Oct-22,1907910771,Npower,"1,274.92"
Manchester City Council,Regeneration Finance,Electricity,20-Oct-22,1907910748,Npower,"1,255.82"
Manchester City Council,Manchester Leisure,Electricity,20-Oct-22,1907910780,Npower,"1,254.53"
Manchester City Council,Manchester Leisure,Electricity,20-Oct-22,1907910808,Npower,"1,243.06"
Manchester City Council,Regeneration Finance,Electricity,27-Oct-22,1907915104,Npower,"1,232.03"
Manchester City Council,Manchester Leisure,Electricity,20-Oct-22,1907910810,Npower,"1,228.40"
Manchester City Council,Regeneration Finance,Electricity,27-Oct-22,1907915106,Npower,"1,215.98"
Manchester City Council,Manchester Leisure,Electricity,27-Oct-22,1907915068,Npower,"1,214.99"
Manchester City Council,Regeneration Finance,Electricity,20-Oct-22,1907910736,Npower,"1,196.60"
Manchester City Council,Regeneration Finance,Electricity,27-Oct-22,1907915102,Npower,"1,134.84"
Manchester City Council,Regeneration Finance,Electricity,20-Oct-22,1907910739,Npower,"1,119.28"
Manchester City Council,Regeneration Finance,Electricity,20-Oct-22,1907910708,Npower,"1,106.39"
Manchester City Council,Manchester Leisure,Electricity,20-Oct-22,1907910724,Npower,"1,099.21"
Manchester City Council,Manchester Leisure,Electricity,20-Oct-22,1907910779,Npower,"1,086.75"
Manchester City Council,Manchester Leisure,Electricity,20-Oct-22,1907910786,Npower,"1,085.34"
Manchester City Council,Manchester Leisure,Electricity,20-Oct-22,1907910811,Npower,"1,084.89"
Manchester City Council,Highways Services,Electricity,20-Oct-22,1907910717,Npower,"1,070.89"
Manchester City Council,Manchester Leisure,Electricity,20-Oct-22,1907910800,Npower,"1,057.38"
Manchester City Council,Childrens & Education Services,Electricity,20-Oct-22,1907910719,Npower,"1,022.62"
Manchester City Council,Regeneration Finance,Electricity,20-Oct-22,1907910715,Npower,"1,012.35"
Manchester City Council,Regeneration Finance,Electricity,20-Oct-22,1907910741,Npower,981.37
Manchester City Council,Childrens & Education Services,Electricity,20-Oct-22,1907910774,Npower,954.48
Manchester City Council,Manchester Leisure,Electricity,20-Oct-22,1907910801,Npower,902.71
Manchester City Council,Highways Services,Electricity,20-Oct-22,1907910784,Npower,901.29
Manchester City Council,Adult Social Care,Electricity,27-Oct-22,1907915126,Npower,895.37
Manchester City Council,Childrens & Education Services,Electricity,20-Oct-22,1907910789,Npower,884.46
Manchester City Council,Adult Social Care,Electricity,27-Oct-22,1907915169,Npower,860.01
Manchester City Council,Manchester Leisure,Electricity,20-Oct-22,1907910761,Npower,858.27
Manchester City Council,Regeneration Finance,Electricity,27-Oct-22,1907915103,Npower,856.15
Manchester City Council,Regeneration Finance,Electricity,27-Oct-22,1907915110,Npower,849.65
Manchester City Council,Childrens & Education Services,Electricity,27-Oct-22,1907915155,Npower,845.13
Manchester City Council,Manchester Leisure,Electricity,27-Oct-22,1907915063,Npower,833.65
Manchester City Council,Regeneration Finance,Electricity,27-Oct-22,1907915119,Npower,832.33
Manchester City Council,Manchester Leisure,Electricity,20-Oct-22,1907910809,Npower,799.33
Manchester City Council,Regeneration Finance,Electricity,20-Oct-22,1907910777,Npower,757.09
Manchester City Council,Manchester Leisure,Electricity,27-Oct-22,1907915122,Npower,751.17
Manchester City Council,Manchester Leisure,Electricity,27-Oct-22,1907915154,Npower,728.48
Manchester City Council,Regeneration Finance,Electricity,27-Oct-22,1907915153,Npower,723.79
Manchester City Council,Adult Social Care,Electricity,27-Oct-22,1907915150,Npower,698.68
Manchester City Council,Hospitality + Trading Services,Electricity,20-Oct-22,1907910726,Npower,696.73
Manchester City Council,Childrens & Education Services,Electricity,27-Oct-22,1907915082,Npower,683.12
Manchester City Council,Regeneration Finance,Electricity,20-Oct-22,1907910791,Npower,676.64
Manchester City Council,Highways Services,Electricity,27-Oct-22,1907915081,Npower,672.10
Manchester City Council,Highways Services,Electricity,20-Oct-22,1907910770,Npower,671.97
Manchester City Council,Regeneration Finance,Electricity,27-Oct-22,1907915105,Npower,659.52
Manchester City Council,Manchester Leisure,Electricity,27-Oct-22,1907915089,Npower,658.34
Manchester City Council,Housing Revenue Account,Electricity,20-Oct-22,1907910797,Npower,651.32
Manchester City Council,Manchester Leisure,Electricity,27-Oct-22,1907915167,Npower,648.57
Manchester City Council,Regeneration Finance,Electricity,27-Oct-22,1907915069,Npower,631.20
Manchester City Council,Regeneration Finance,Electricity,27-Oct-22,1907915087,Npower,626.40
Manchester City Council,Regeneration Finance,Electricity,27-Oct-22,1907915109,Npower,616.28
Manchester City Council,Childrens & Education Services,Electricity,27-Oct-22,1907915132,Npower,610.95
Manchester City Council,Manchester Leisure,Electricity,27-Oct-22,1907915120,Npower,598.58
Manchester City Council,Regeneration Finance,Electricity,27-Oct-22,1907915078,Npower,590.04
Manchester City Council,Regeneration Finance,Electricity,20-Oct-22,1907910778,Npower,577.55
Manchester City Council,Manchester Leisure,Electricity,20-Oct-22,1907910720,Npower,549.84
Manchester City Council,Regeneration Finance,Electricity,20-Oct-22,1907910792,Npower,547.87
Manchester City Council,Manchester Leisure,Electricity,27-Oct-22,1907915108,Npower,541.66
Manchester City Council,Manchester Leisure,Electricity,27-Oct-22,1907915156,Npower,539.88
Manchester City Council,Manchester Leisure,Electricity,27-Oct-22,1907915159,Npower,536.76
Manchester City Council,Manchester Leisure,Electricity,27-Oct-22,1907915162,Npower,535.77
Manchester City Council,Manchester Leisure,Electricity,27-Oct-22,1907915118,Npower,534.40
Manchester City Council,Childrens & Education Services,Electricity,27-Oct-22,1907915170,Npower,529.35
Manchester City Council,Manchester Leisure,Electricity,27-Oct-22,1907915144,Npower,511.29
Manchester City Council,Regeneration Finance,Electricity,20-Oct-22,1907910772,Npower,508.52
Manchester City Council,Childrens & Education Services,Electricity,27-Oct-22,1700140399,Npower,-671.28
Manchester City Council,Regeneration Finance,Electricity,27-Oct-22,1700140398,Npower,"-1,220.78"
Manchester City Council,Highways Services,Electricity,27-Oct-22,1700140402,Npower,"-1,350.38"
Manchester City Council,Manchester Leisure,Electricity,27-Oct-22,1700140397,Npower,"-1,456.86"
Manchester City Council,Regeneration Finance,Electricity,27-Oct-22,1700140396,Npower,"-2,471.10"
Manchester City Council,Highways Services,Electricity,27-Oct-22,1700140403,Npower,"-3,962.33"
Manchester City Council,Hospitality + Trading Services,Electricity,27-Oct-22,1700140401,Npower,"-31,361.46"
Manchester City Council,Manchester Leisure,Grounds Maintenance,31-Oct-22,5105839919,Community Security (North West),"4,088.73"
Manchester City Council,Childrens & Education Services,Court Fees,18-Oct-22,1907905152,Liberata,"11,780.00"
Manchester City Council,Childrens & Education Services,Court Fees,18-Oct-22,1907905149,Liberata,"11,359.00"
Manchester City Council,Chief Executives,Court Fees,18-Oct-22,1907905153,Liberata,"9,675.00"
Manchester City Council,Childrens & Education Services,Court Fees,18-Oct-22,1907905155,Liberata,"8,013.00"
Manchester City Council,Adult Social Care,Court Fees,28-Oct-22,1907916077,Liberata,"3,810.00"
Manchester City Council,Chief Executives,Court Fees,18-Oct-22,1907905156,Liberata,"3,058.00"
Manchester City Council,Childrens & Education Services,Court Fees,18-Oct-22,1907905148,Liberata,"2,581.00"
Manchester City Council,Childrens & Education Services,Court Fees,18-Oct-22,1907905154,Liberata,716.00
Manchester City Council,Manchester Leisure,Special Event,25-Oct-22,5105839434,Manchester Art Gallery Trust,500.00
Manchester City Council,Chief Executives,Printing,27-Oct-22,5105840098,Browns CTP Ltd,709.00
Manchester City Council,Chief Executives,Printing,12-Oct-22,5105837657,Browns CTP Ltd,698.00
Manchester City Council,Chief Executives,Printing,07-Oct-22,5105837051,Browns CTP Ltd,636.00
Manchester City Council,General Fund,BRP Top Up Payments,17.10.2022,1907606847,DCLG,"2,802,619.00"
Manchester City Council,Regeneration Finance,Storage Costs,04-Oct-22,5105836517,H.M. Land Registry,"2,546.00"
Manchester City Council,Regeneration Finance,Storage Costs,31-Oct-22,5105840689,H.M. Land Registry,"2,297.00"
Manchester City Council,Manchester Leisure,Legal Fees,28-Oct-22,1907906712,Department For Work & Pensions,969.00
Manchester City Council,Highways Services,Legal Fees,17-Oct-22,1907904126,Department For Work & Pensions,744.00
Manchester City Council,Manchester Leisure,Legal Fees,28-Oct-22,1907915479,Department For Work & Pensions,744.00
Manchester City Council,Highways Services,Legal Fees,13-Oct-22,1907901936,Department For Work & Pensions,743.00
Manchester City Council,Highways Services,Legal Fees,31-Oct-22,1907907807,Department For Work & Pensions,725.00
Manchester City Council,Highways Services,Legal Fees,31-Oct-22,1907909085,Department For Work & Pensions,725.00
Manchester City Council,Highways Services,Legal Fees,31-Oct-22,1907911377,Department For Work & Pensions,725.00
Manchester City Council,Highways Services,Legal Fees,31-Oct-22,1907914536,Department For Work & Pensions,688.00
Manchester City Council,Chief Executives,Advertising,07-Oct-22,5105837219,Ocean Media Group Ltd,"1,705.25"
Manchester City Council,Chief Executives,Legal Fees,31-Oct-22,1907915454,Otten Penna Solicitors,915.00
Manchester City Council,Chief Executives,ICT Sup & Maintnance,12-Oct-22,5105837539,Insight Direct (Uk) Ltd,"3,235.60"
Manchester City Council,Hospitality + Trading Services,Vehicle Hire Costs,05-Oct-22,5105836581,Winners Contract Hire Ltd,"75,249.30"
Manchester City Council,Hospitality + Trading Services,Vehicle Hire Costs,31-Oct-22,5105839891,Winners Contract Hire Ltd,"71,315.65"
Manchester City Council,Corporate Services,Furniture,28-Oct-22,5105840349,Bennett Workplace Solutions Ltd,"1,396.50"
Manchester City Council,Adult Social Care,Furniture,12-Oct-22,5105837839,Bennett Workplace Solutions Ltd,708.60
Manchester City Council,Manchester Leisure,Gas,06-Oct-22,1907898007,Corona Energy Ltd,"46,121.97"
Manchester City Council,Regeneration Finance,Gas,06-Oct-22,1907898055,Corona Energy Ltd,"33,407.11"
Manchester City Council,Housing Revenue Account,Gas,06-Oct-22,1907897915,Corona Energy Ltd,"14,429.15"
Manchester City Council,Housing Revenue Account,Gas,06-Oct-22,1907898056,Corona Energy Ltd,"13,037.56"
Manchester City Council,Manchester Leisure,Gas,06-Oct-22,1907898001,Corona Energy Ltd,"10,163.44"
Manchester City Council,Manchester Leisure,Gas,06-Oct-22,1907898058,Corona Energy Ltd,"9,632.02"
Manchester City Council,Manchester Leisure,Gas,06-Oct-22,1907897973,Corona Energy Ltd,"8,550.65"
Manchester City Council,Manchester Leisure,Gas,06-Oct-22,1907898012,Corona Energy Ltd,"4,928.32"
Manchester City Council,Regeneration Finance,Gas,06-Oct-22,1907897939,Corona Energy Ltd,"4,192.08"
Manchester City Council,Manchester Leisure,Gas,06-Oct-22,1907897920,Corona Energy Ltd,"4,187.86"
Manchester City Council,Manchester Leisure,Gas,06-Oct-22,1907897880,Corona Energy Ltd,"3,599.49"
Manchester City Council,Regeneration Finance,Gas,20-Oct-22,1907910841,Corona Energy Ltd,"3,277.84"
Manchester City Council,Regeneration Finance,Gas,06-Oct-22,1907898017,Corona Energy Ltd,"3,174.23"
Manchester City Council,Manchester Leisure,Gas,06-Oct-22,1907897879,Corona Energy Ltd,"3,169.10"
Manchester City Council,Regeneration Finance,Gas,06-Oct-22,1907897868,Corona Energy Ltd,"2,895.20"
Manchester City Council,Manchester Leisure,Gas,06-Oct-22,1907897983,Corona Energy Ltd,"2,280.83"
Manchester City Council,Manchester Leisure,Gas,06-Oct-22,1907897954,Corona Energy Ltd,"2,239.94"
Manchester City Council,Adult Social Care,Gas,06-Oct-22,1907897926,Corona Energy Ltd,"2,144.42"
Manchester City Council,Manchester Leisure,Gas,06-Oct-22,1907897953,Corona Energy Ltd,"2,034.12"
Manchester City Council,Manchester Leisure,Gas,06-Oct-22,1907897987,Corona Energy Ltd,"1,967.32"
Manchester City Council,Manchester Leisure,Gas,06-Oct-22,1907897899,Corona Energy Ltd,"1,908.22"
Manchester City Council,Manchester Leisure,Gas,06-Oct-22,1907897974,Corona Energy Ltd,"1,784.99"
Manchester City Council,Manchester Leisure,Gas,06-Oct-22,1907897975,Corona Energy Ltd,"1,761.04"
Manchester City Council,Regeneration Finance,Gas,06-Oct-22,1907897970,Corona Energy Ltd,"1,729.34"
Manchester City Council,Manchester Leisure,Gas,06-Oct-22,1907898029,Corona Energy Ltd,"1,622.10"
Manchester City Council,Hospitality + Trading Services,Gas,06-Oct-22,1907897883,Corona Energy Ltd,"1,577.38"
Manchester City Council,Manchester Leisure,Gas,06-Oct-22,1907897996,Corona Energy Ltd,"1,559.55"
Manchester City Council,Manchester Leisure,Gas,06-Oct-22,1907898035,Corona Energy Ltd,"1,548.04"
Manchester City Council,Manchester Leisure,Gas,06-Oct-22,1907897995,Corona Energy Ltd,"1,539.42"
Manchester City Council,Manchester Leisure,Gas,06-Oct-22,1907897877,Corona Energy Ltd,"1,430.85"
Manchester City Council,Manchester Leisure,Gas,06-Oct-22,1907898038,Corona Energy Ltd,"1,324.86"
Manchester City Council,Manchester Leisure,Gas,06-Oct-22,1907897878,Corona Energy Ltd,"1,287.99"
Manchester City Council,Manchester Leisure,Gas,06-Oct-22,1907897988,Corona Energy Ltd,"1,260.54"
Manchester City Council,Manchester Leisure,Gas,06-Oct-22,1907897922,Corona Energy Ltd,"1,165.20"
Manchester City Council,Regeneration Finance,Gas,06-Oct-22,1907898028,Corona Energy Ltd,"1,152.65"
Manchester City Council,Manchester Leisure,Gas,06-Oct-22,1907898005,Corona Energy Ltd,"1,124.57"
Manchester City Council,Regeneration Finance,Gas,06-Oct-22,1907897872,Corona Energy Ltd,"1,118.01"
Manchester City Council,Manchester Leisure,Gas,06-Oct-22,1907898008,Corona Energy Ltd,"1,074.11"
Manchester City Council,Regeneration Finance,Gas,06-Oct-22,1907897947,Corona Energy Ltd,979.70
Manchester City Council,Manchester Leisure,Gas,06-Oct-22,1907897934,Corona Energy Ltd,910.14
Manchester City Council,Regeneration Finance,Gas,27-Oct-22,1907915208,Corona Energy Ltd,903.46
Manchester City Council,Adult Social Care,Gas,06-Oct-22,1907898022,Corona Energy Ltd,868.29
Manchester City Council,Regeneration Finance,Gas,06-Oct-22,1907898053,Corona Energy Ltd,863.44
Manchester City Council,Regeneration Finance,Gas,06-Oct-22,1907897944,Corona Energy Ltd,832.79
Manchester City Council,Regeneration Finance,Gas,06-Oct-22,1907897946,Corona Energy Ltd,825.74
Manchester City Council,Regeneration Finance,Gas,06-Oct-22,1907897967,Corona Energy Ltd,820.45
Manchester City Council,Regeneration Finance,Gas,06-Oct-22,1907897957,Corona Energy Ltd,812.92
Manchester City Council,Adult Social Care,Gas,06-Oct-22,1907898066,Corona Energy Ltd,753.85
Manchester City Council,Regeneration Finance,Gas,06-Oct-22,1907897941,Corona Energy Ltd,750.41
Manchester City Council,Regeneration Finance,Gas,06-Oct-22,1907897965,Corona Energy Ltd,720.56
Manchester City Council,Adult Social Care,Gas,06-Oct-22,1907897979,Corona Energy Ltd,713.05
Manchester City Council,Hospitality + Trading Services,Gas,06-Oct-22,1907897882,Corona Energy Ltd,660.92
Manchester City Council,Manchester Leisure,Gas,06-Oct-22,1907898063,Corona Energy Ltd,657.03
Manchester City Council,Regeneration Finance,Gas,06-Oct-22,1907897933,Corona Energy Ltd,643.83
Manchester City Council,Regeneration Finance,Gas,06-Oct-22,1907898071,Corona Energy Ltd,630.91
Manchester City Council,Regeneration Finance,Gas,06-Oct-22,1907897906,Corona Energy Ltd,614.02
Manchester City Council,Childrens & Education Services,Gas,06-Oct-22,1907897903,Corona Energy Ltd,605.80
Manchester City Council,Manchester Leisure,Gas,06-Oct-22,1907898031,Corona Energy Ltd,590.79
Manchester City Council,Manchester Leisure,Gas,06-Oct-22,1907898003,Corona Energy Ltd,590.42
Manchester City Council,Regeneration Finance,Gas,06-Oct-22,1907897949,Corona Energy Ltd,588.27
Manchester City Council,Manchester Leisure,Gas,06-Oct-22,1907898000,Corona Energy Ltd,586.02
Manchester City Council,Manchester Leisure,Gas,06-Oct-22,1907898004,Corona Energy Ltd,572.44
Manchester City Council,Manchester Leisure,Gas,06-Oct-22,1907898064,Corona Energy Ltd,571.24
Manchester City Council,Housing Revenue Account,Gas,06-Oct-22,1907898026,Corona Energy Ltd,567.70
Manchester City Council,Adult Social Care,Gas,06-Oct-22,1907897860,Corona Energy Ltd,546.43
Manchester City Council,Regeneration Finance,Gas,06-Oct-22,1907897905,Corona Energy Ltd,518.45
Manchester City Council,Adult Social Care,Gas,06-Oct-22,1907898033,Corona Energy Ltd,513.22
Manchester City Council,Manchester Leisure,Gas,06-Oct-22,1907898052,Corona Energy Ltd,504.52
Manchester City Council,Manchester Leisure,Gas,06-Oct-22,1700140030,Corona Energy Ltd,"-1,101.78"
Manchester City Council,Manchester Leisure,Gas,06-Oct-22,1700140031,Corona Energy Ltd,"-2,580.82"
Manchester City Council,Manchester Leisure,Gas,06-Oct-22,1700140032,Corona Energy Ltd,"-45,115.22"
Manchester City Council,Chief Executives,Courier Costs,18-Oct-22,5105838684,Speed Couriers (Northern) Ltd,"1,057.03"
Manchester City Council,Chief Executives,Courier Costs,25-Oct-22,5105839618,Speed Couriers (Northern) Ltd,917.43
Manchester City Council,Chief Executives,Courier Costs,25-Oct-22,5105839616,Speed Couriers (Northern) Ltd,581.77
Manchester City Council,Collection Fund,Bus Rate - Preceptor,18.10.2022,1907607428,GMCA,"162,768.00"
Manchester City Council,Corporate Services,Travel Season TLS,14-Oct-22,5105837962,Stagecoach Manchester,635.00
Manchester City Council,Corporate Services,Travel Season TLS,14-Oct-22,5105837963,Stagecoach Manchester,635.00
Manchester City Council,Corporate Services,Travel Season TLS,20-Oct-22,5105839022,Stagecoach Manchester,635.00
Manchester City Council,Corporate Services,Travel Season TLS,26-Oct-22,5105839579,Stagecoach Manchester,635.00
Manchester City Council,Corporate Services,Travel Season TLS,26-Oct-22,5105839580,Stagecoach Manchester,635.00
Manchester City Council,Corporate Services,Travel Season TLS,26-Oct-22,5105839621,Stagecoach Manchester,635.00
Manchester City Council,Corporate Services,Travel Season TLS,26-Oct-22,5105839622,Stagecoach Manchester,635.00
Manchester City Council,Corporate Services,Travel Season TLS,31-Oct-22,5105840792,Stagecoach Manchester,635.00
Manchester City Council,Corporate Services,Travel Season TLS,31-Oct-22,5105840793,Stagecoach Manchester,635.00
Manchester City Council,Corporate Services,Travel Season TLS,10-Oct-22,5105836898,Stagecoach Manchester,600.00
Manchester City Council,Regeneration Finance,Grounds Maintenance,14-Oct-22,5105836588,Countrywide Grounds Maintenance Ltd,"1,695.00"
Manchester City Council,Regeneration Finance,Grounds Maintenance,18-Oct-22,5105837696,Countrywide Grounds Maintenance Ltd,"1,595.00"
Manchester City Council,Regeneration Finance,Grounds Maintenance,06-Oct-22,5105836553,Countrywide Grounds Maintenance Ltd,"1,500.00"
Manchester City Council,Regeneration Finance,Grounds Maintenance,12-Oct-22,5105837695,Countrywide Grounds Maintenance Ltd,"1,495.00"
Manchester City Council,Regeneration Finance,Grounds Maintenance,04-Oct-22,5105836590,Countrywide Grounds Maintenance Ltd,995.00
Manchester City Council,Regeneration Finance,Grounds Maintenance,14-Oct-22,5105836587,Countrywide Grounds Maintenance Ltd,595.00
Manchester City Council,Regeneration Finance,Grounds Maintenance,14-Oct-22,5105836589,Countrywide Grounds Maintenance Ltd,595.00
Manchester City Council,Regeneration Finance,Grounds Maintenance,14-Oct-22,5105836592,Countrywide Grounds Maintenance Ltd,595.00
Manchester City Council,Adult Social Care,Equipment,25-Oct-22,5105839659,Invacare Limited,"2,340.00"
Manchester City Council,Adult Social Care,Equipment,04-Oct-22,5105836664,Invacare Limited,920.00
Manchester City Council,Adult Social Care,Equipment,27-Oct-22,5105840220,Invacare Limited,624.00
Manchester City Council,Adult Social Care,Extra Care Sheltd HP,03-Oct-22,5105836408,Sevacare (U K ) lTD,"36,586.81"
Manchester City Council,Adult Social Care,Extra Care Sheltd HP,18-Oct-22,5105836773,Sevacare (U K ) lTD,"36,586.81"
Manchester City Council,Chief Executives,Legal Fees,04-Oct-22,5105836627,Amion Consulting Ltd,"-4,627.10"
Manchester City Council,Chief Executives,Legal Fees,04-Oct-22,5105836628,Amion Consulting Ltd,"-29,723.90"
Manchester City Council,Hospitality + Trading Services,Hire of Machinery,20-Oct-22,5105839204,Fast Hire UK,"9,048.20"
Manchester City Council,Regeneration Finance,Hire of Premises,20-Oct-22,5105839054,Brunswick Parish Church,525.00
Manchester City Council,Chief Executives,ICT Sup & Maintnance,31-Oct-22,5105840868,Finastra,690.00
Manchester City Council,Manchester Leisure,Equipment,13-Oct-22,5105838191,Alliance Disposables Ltd,"4,260.00"
Manchester City Council,Regeneration Finance,Legal Fees,24-Oct-22,5105839345,Pinsent Masons LLP,"13,006.00"
Manchester City Council,Regeneration Finance,Legal Fees,31-Oct-22,5105839055,Pinsent Masons LLP,"12,537.35"
Manchester City Council,Regeneration Finance,Legal Fees,31-Oct-22,5105840632,Pinsent Masons LLP,"12,530.50"
Manchester City Council,Regeneration Finance,Legal Fees,20-Oct-22,5105839056,Pinsent Masons LLP,"3,500.50"
Manchester City Council,Regeneration Finance,Legal Fees,24-Oct-22,5105839353,Pinsent Masons LLP,"-13,006.00"
Manchester City Council,Adult Social Care,Equipment,24-Oct-22,5105839265,Drive Devilbiss Healthcare Ltd,"5,878.00"
Manchester City Council,Adult Social Care,Equipment,05-Oct-22,5105836840,Drive Devilbiss Healthcare Ltd,"2,382.60"
Manchester City Council,Adult Social Care,Equipment,24-Oct-22,5105839282,Drive Devilbiss Healthcare Ltd,"2,299.50"
Manchester City Council,Adult Social Care,Legal Fees,25-Oct-22,5105839431,Gray's Inn Square Chambers Ltd,"1,250.00"
Manchester City Council,Childrens & Education Services,Day Care Payments,25-Oct-22,5105839497,Tiddlywinks Day Nursery Ltd,966.00
Manchester City Council,Childrens & Education Services,Day Care Payments,03-Oct-22,5105836470,Tiddlywinks Day Nursery Ltd,932.00
Manchester City Council,Chief Executives,ICT Sup & Maintnance,10-Oct-22,5105836753,Microsoft Ltd,"128,639.00"
Manchester City Council,Chief Executives,Postage,31-Oct-22,5105840800,Whistl North Ltd,"4,849.93"
Manchester City Council,Chief Executives,Counsel Costs,12-Oct-22,1907897395,18 St John Street Chambers,"1,820.00"
Manchester City Council,Chief Executives,Counsel Costs,26-Oct-22,1907914532,18 St John Street Chambers,950.00
Manchester City Council,Chief Executives,Counsel Costs,12-Oct-22,1907900198,18 St John Street Chambers,770.00
Manchester City Council,Chief Executives,Counsel Costs,26-Oct-22,1907914339,18 St John Street Chambers,750.00
Manchester City Council,Chief Executives,Counsel Costs,04-Oct-22,1907889162,18 St John Street Chambers,680.00
Manchester City Council,Chief Executives,Counsel Costs,04-Oct-22,1907891343,18 St John Street Chambers,680.00
Manchester City Council,Chief Executives,Counsel Costs,04-Oct-22,1907889257,18 St John Street Chambers,650.00
Manchester City Council,Chief Executives,Counsel Costs,10-Oct-22,1907899315,18 St John Street Chambers,650.00
Manchester City Council,Chief Executives,Counsel Costs,10-Oct-22,1907899320,18 St John Street Chambers,650.00
Manchester City Council,Chief Executives,Counsel Costs,18-Oct-22,1907903939,18 St John Street Chambers,650.00
Manchester City Council,Chief Executives,Counsel Costs,25-Oct-22,1907912596,18 St John Street Chambers,650.00
Manchester City Council,Childrens & Education Services,Hire of Premises,06-Oct-22,5105836649,The Monastery Manchester Ltd,657.50
Manchester City Council,Manchester Leisure,Mobilephone Charges,07-Oct-22,5105837231,O2 (UK) Ltd,"1,649.11"
Manchester City Council,Housing Revenue Account,Legal Fees,13-Oct-22,1907903964,Countrywide Legal Indemnities,"6,500.00"
Manchester City Council,Manchester Leisure,Legal Fees,07-Oct-22,1907899337,Slater Heelis Collier Littler Solic,"2,622.00"
Manchester City Council,Manchester Leisure,Special Event,07-Oct-22,5105837066,T 3 Events,"30,000.00"
Manchester City Council,Chief Executives,Hire of Equipment,27-Oct-22,5105840129,FTS Event Power Ltd,"1,450.00"
Manchester City Council,Childrens & Education Services,Rates,27-Oct-22,5105840155,Tiddlywinks Day Nursery,669.51
Manchester City Council,Adult Social Care,Rents,31-Oct-22,5105840024,Accommodation Links Ltd,"79,738.29"
Manchester City Council,Adult Social Care,Rents,28-Oct-22,5105839493,Accommodation Links Ltd,"79,444.57"
Manchester City Council,Adult Social Care,Rents,17-Oct-22,5105837900,Accommodation Links Ltd,"78,707.43"
Manchester City Council,Adult Social Care,Rents,13-Oct-22,5105836917,Accommodation Links Ltd,"77,775.71"
Manchester City Council,Adult Social Care,Rents,03-Oct-22,5105836405,Accommodation Links Ltd,"67,085.71"
Manchester City Council,Chief Executives,Rents,18-Oct-22,5105838178,Manchester Central,"10,888.52"
Manchester City Council,Chief Executives,Catering,28-Oct-22,5105840484,Manchester Central,901.96
Manchester City Council,Regeneration Finance,Grounds Maintenance,25-Oct-22,5105839657,Jacobs UK Ltd,742.00
Manchester City Council,Regeneration Finance,Legal Fees,31-Oct-22,5105839837,Jacobs UK Ltd,715.50
Manchester City Council,Chief Executives,Legal Fees,13-Oct-22,5105837925,Weightmans LLP Solicitors,"39,457.17"
Manchester City Council,Chief Executives,Legal Fees,27-Oct-22,5105840083,Weightmans LLP Solicitors,"8,250.94"
Manchester City Council,Chief Executives,Legal Fees,27-Oct-22,5105840070,Weightmans LLP Solicitors,"6,684.39"
Manchester City Council,Chief Executives,Legal Fees,27-Oct-22,5105840069,Weightmans LLP Solicitors,"5,849.03"
Manchester City Council,Chief Executives,Legal Fees,27-Oct-22,5105840086,Weightmans LLP Solicitors,"5,840.00"
Manchester City Council,Chief Executives,Legal Fees,27-Oct-22,5105840052,Weightmans LLP Solicitors,"5,314.86"
Manchester City Council,Chief Executives,Legal Fees,27-Oct-22,5105840093,Weightmans LLP Solicitors,"3,990.00"
Manchester City Council,Chief Executives,Legal Fees,27-Oct-22,5105840056,Weightmans LLP Solicitors,"3,302.50"
Manchester City Council,Chief Executives,Legal Fees,27-Oct-22,5105840063,Weightmans LLP Solicitors,"3,256.25"
Manchester City Council,Chief Executives,Legal Fees,27-Oct-22,5105840066,Weightmans LLP Solicitors,"3,145.05"
Manchester City Council,Chief Executives,Legal Fees,27-Oct-22,5105840046,Weightmans LLP Solicitors,"3,077.75"
Manchester City Council,Chief Executives,Legal Fees,27-Oct-22,5105840051,Weightmans LLP Solicitors,"2,751.07"
Manchester City Council,Chief Executives,Legal Fees,27-Oct-22,5105840088,Weightmans LLP Solicitors,"2,393.75"
Manchester City Council,Chief Executives,Legal Fees,27-Oct-22,5105840045,Weightmans LLP Solicitors,"2,167.00"
Manchester City Council,Chief Executives,Legal Fees,27-Oct-22,5105840081,Weightmans LLP Solicitors,"2,116.25"
Manchester City Council,Chief Executives,Legal Fees,27-Oct-22,5105840067,Weightmans LLP Solicitors,"2,073.38"
Manchester City Council,Chief Executives,Legal Fees,27-Oct-22,5105840053,Weightmans LLP Solicitors,"2,068.75"
Manchester City Council,Chief Executives,Legal Fees,27-Oct-22,5105840092,Weightmans LLP Solicitors,"2,010.50"
Manchester City Council,Chief Executives,Legal Fees,27-Oct-22,5105840060,Weightmans LLP Solicitors,"1,800.50"
Manchester City Council,Chief Executives,Legal Fees,27-Oct-22,5105840068,Weightmans LLP Solicitors,"1,787.50"
Manchester City Council,Chief Executives,Legal Fees,27-Oct-22,5105840042,Weightmans LLP Solicitors,"1,745.50"
Manchester City Council,Chief Executives,Legal Fees,27-Oct-22,5105840089,Weightmans LLP Solicitors,"1,693.75"
Manchester City Council,Chief Executives,Legal Fees,27-Oct-22,5105840064,Weightmans LLP Solicitors,"1,600.00"
Manchester City Council,Chief Executives,Legal Fees,27-Oct-22,5105840087,Weightmans LLP Solicitors,"1,468.75"
Manchester City Council,Chief Executives,Legal Fees,27-Oct-22,5105840094,Weightmans LLP Solicitors,"1,443.75"
Manchester City Council,Chief Executives,Legal Fees,27-Oct-22,5105840047,Weightmans LLP Solicitors,"1,437.50"
Manchester City Council,Chief Executives,Legal Fees,27-Oct-22,5105840057,Weightmans LLP Solicitors,"1,325.00"
Manchester City Council,Chief Executives,Legal Fees,27-Oct-22,5105840091,Weightmans LLP Solicitors,"1,262.50"
Manchester City Council,Chief Executives,Legal Fees,27-Oct-22,5105840082,Weightmans LLP Solicitors,"1,221.34"
Manchester City Council,Chief Executives,Legal Fees,27-Oct-22,5105840061,Weightmans LLP Solicitors,"1,193.75"
Manchester City Council,Chief Executives,Legal Fees,27-Oct-22,5105840044,Weightmans LLP Solicitors,825.00
Manchester City Council,Chief Executives,Legal Fees,27-Oct-22,5105840085,Weightmans LLP Solicitors,700.00
Manchester City Council,Chief Executives,Legal Fees,27-Oct-22,5105838560,Weightmans LLP Solicitors,631.25
Manchester City Council,Chief Executives,Legal Fees,27-Oct-22,5105840084,Weightmans LLP Solicitors,500.00
Manchester City Council,Chief Executives,Advertising,31-Oct-22,5105840707,Global Radio Services Ltd,"1,900.00"
Manchester City Council,Chief Executives,Advertising,12-Oct-22,5105837678,Global Radio Services Ltd,"1,360.00"
Manchester City Council,Adult Social Care,Equipment,27-Oct-22,5105840239,Aidapt Bathrooms Ltd,"29,693.50"
Manchester City Council,Adult Social Care,Equipment,12-Oct-22,5105837686,Aidapt Bathrooms Ltd,"3,136.00"
Manchester City Council,Adult Social Care,Equipment,25-Oct-22,5105839429,Aidapt Bathrooms Ltd,"1,610.00"
Manchester City Council,Adult Social Care,Equipment,25-Oct-22,5105839477,Aidapt Bathrooms Ltd,"-29,693.50"
Manchester City Council,Childrens & Education Services,Hire of Premises,04-Oct-22,5105836638,FC United of Manchester,"2,476.17"
Manchester City Council,Regeneration Finance,Storage Costs,04-Oct-22,5105836688,XXXData Space Ltd (use 30021328),986.60
Manchester City Council,Regeneration Finance,Storage Costs,27-Oct-22,5105840174,XXXData Space Ltd (use 30021328),879.45
Manchester City Council,Regeneration Finance,Storage Costs,18-Oct-22,5105838553,XXXData Space Ltd (use 30021328),843.05
Manchester City Council,Regeneration Finance,Storage Costs,04-Oct-22,5105836689,XXXData Space Ltd (use 30021328),566.06
Manchester City Council,Regeneration Finance,Storage Costs,27-Oct-22,5105840175,XXXData Space Ltd (use 30021328),523.71
Manchester City Council,Regeneration Finance,Storage Costs,18-Oct-22,5105838554,XXXData Space Ltd (use 30021328),504.45
Manchester City Council,Regeneration Finance,Storage Costs,27-Oct-22,5105840096,XXXData Space Ltd (use 30021328),-523.71
Manchester City Council,Regeneration Finance,Storage Costs,27-Oct-22,5105840095,XXXData Space Ltd (use 30021328),-879.45
Manchester City Council,Manchester Leisure,Equipment,18-Oct-22,5105838804,MGB Plastics Limited,"16,200.00"
Manchester City Council,Manchester Leisure,Equipment,18-Oct-22,5105838805,MGB Plastics Limited,"16,200.00"
Manchester City Council,Manchester Leisure,Equipment,18-Oct-22,5105838807,MGB Plastics Limited,"16,200.00"
Manchester City Council,Manchester Leisure,Equipment,11-Oct-22,5105837490,MGB Plastics Limited,"13,500.00"
Manchester City Council,Manchester Leisure,Equipment,11-Oct-22,5105837501,MGB Plastics Limited,"-1,368.00"
Manchester City Council,Hospitality + Trading Services,Hire of Equipment,27-Oct-22,5105840243,One Stop Hire Limited,"1,720.00"
Manchester City Council,Chief Executives,Landline Telephone,06-Oct-22,1907894242,Daisy Corporate Services Trading,"1,368.96"
Manchester City Council,Chief Executives,Landline Telephone,26-Oct-22,1907905029,Daisy Corporate Services Trading,974.48
Manchester City Council,Corporate Services,Storage Costs,26-Oct-22,5105839426,Oasis UK formerly Box-It (NW),"6,324.84"
Manchester City Council,Chief Executives,Storage Costs,25-Oct-22,5105839647,Oasis UK formerly Box-It (NW),636.59
Manchester City Council,Adult Social Care,Rents,18-Oct-22,5105838594,United Property Management Ltd,"23,399.28"
Manchester City Council,Adult Social Care,Rents,26-Oct-22,5105839809,United Property Management Ltd,"13,734.00"
Manchester City Council,Adult Social Care,Rents,27-Oct-22,5105840109,United Property Management Ltd,"13,734.00"
Manchester City Council,Adult Social Care,Rents,11-Oct-22,5105836891,United Property Management Ltd,"12,434.00"
Manchester City Council,Adult Social Care,Rents,11-Oct-22,5105837470,United Property Management Ltd,"-31,896.81"
Manchester City Council,Housing Revenue Account,Peaks & Plains Mgmt,11-Oct-22,5105837607,Cheshire Peaks & Plains,"4,788.53"
Manchester City Council,Housing Revenue Account,Peaks & Plains Mgmt,31-Oct-22,5105840822,Cheshire Peaks & Plains,"3,544.11"
Manchester City Council,Housing Revenue Account,Peaks & Plains Mgmt,11-Oct-22,5105837605,Cheshire Peaks & Plains,"-3,150.18"
Manchester City Council,Manchester Leisure,Special Event,21-Oct-22,5105839193,Televideo Limited,"71,327.00"
Manchester City Council,Childrens & Education Services,Catering Provisions,20-Oct-22,1907911278,Ralph Livesey Ltd,"43,152.90"
Manchester City Council,GMIST (Greater Mcr Integrated),Storage Costs,25-Oct-22,5105839539,DeepStore,"3,610.88"
Manchester City Council,GMIST (Greater Mcr Integrated),Storage Costs,25-Oct-22,5105839536,DeepStore,641.49
Manchester City Council,Manchester Leisure,Special Event,06-Oct-22,5105836988,Hatton Traffic Management Ltd,"3,845.28"
Manchester City Council,Manchester Leisure,Special Event,06-Oct-22,5105836987,Hatton Traffic Management Ltd,"-3,845.28"
Manchester City Council,Regeneration Finance,Equipment,20-Oct-22,1907911323,Cooleraid Ltd,"1,320.00"
Manchester City Council,Adult Social Care,Extra Care Sheltd HP,03-Oct-22,5105836379,DH Homecare Ltd (Direct Health),"45,536.68"
Manchester City Council,Adult Social Care,Extra Care Sheltd HP,18-Oct-22,5105838129,DH Homecare Ltd (Direct Health),"39,159.31"
Manchester City Council,Adult Social Care,Extra Care Sheltd HP,03-Oct-22,5105836378,DH Homecare Ltd (Direct Health),"27,675.70"
Manchester City Council,Adult Social Care,Extra Care Sheltd HP,18-Oct-22,5105838131,DH Homecare Ltd (Direct Health),"23,799.74"
Manchester City Council,Adult Social Care,Extra Care Sheltd HP,18-Oct-22,5105838129,DH Homecare Ltd (Direct Health),"11,277.91"
Manchester City Council,Adult Social Care,Extra Care Sheltd HP,18-Oct-22,5105838131,DH Homecare Ltd (Direct Health),"6,854.32"
Manchester City Council,Chief Executives,Examination Fees,13-Oct-22,5105837909,ROAR Forensics Ltd,"4,835.50"
Manchester City Council,Chief Executives,Examination Fees,25-Oct-22,5105839650,ROAR Forensics Ltd,"2,669.50"
Manchester City Council,Chief Executives,Examination Fees,27-Oct-22,5105840300,ROAR Forensics Ltd,"2,327.50"
Manchester City Council,Chief Executives,Examination Fees,25-Oct-22,5105839651,ROAR Forensics Ltd,"1,520.00"
Manchester City Council,Chief Executives,Examination Fees,27-Oct-22,5105840298,ROAR Forensics Ltd,"1,410.75"
Manchester City Council,Manchester Leisure,Equipment,31-Oct-22,5105840496,Talurit (UK) Ltd,593.00
Manchester City Council,Chief Executives,Postage,14-Oct-22,5105838311,Quadient Ltd (Credifon),"10,219.31"
Manchester City Council,Hospitality + Trading Services,Rents,31-Oct-22,1700138983,St Modwen Corporate Services Ltd,"-3,043.43"
Manchester City Council,Hospitality + Trading Services,Vehicle Hire Costs,25-Oct-22,5105839671,Peter Douglass Platforms,"2,000.00"
Manchester City Council,Hospitality + Trading Services,Vehicle Hire Costs,25-Oct-22,5105839672,Peter Douglass Platforms,"1,400.00"
Manchester City Council,Highways Services,Electricity,13-Oct-22,1907903190,Haven Power Ltd,"238,436.77"
Manchester City Council,Highways Services,Electricity,13-Oct-22,1907903189,Haven Power Ltd,"6,787.19"
Manchester City Council,Housing Revenue Account,Electricity,13-Oct-22,1907903186,Haven Power Ltd,"4,707.30"
Manchester City Council,Manchester Leisure,Electricity,13-Oct-22,1907903185,Haven Power Ltd,"3,813.49"
Manchester City Council,Insurance Fund,Legal Fees,07-Oct-22,1907897388,Civil Costs Specialist Ltd,890.00
Manchester City Council,Adult Social Care,Rents,11-Oct-22,5105836780,Cromwood Ltd,"109,380.57"
Manchester City Council,Manchester Leisure,Legal Fees,12-Oct-22,5105837635,11KBW,"3,815.00"
Manchester City Council,Manchester Leisure,Legal Fees,12-Oct-22,5105837635,11KBW,"1,715.00"
Manchester City Council,Chief Executives,Legal Fees,12-Oct-22,5105837961,11KBW,"-2,015.00"
Manchester City Council,Adult Social Care,Legal Fees,10-Oct-22,1907899332,39 Essex Street Chambers,"2,530.00"
Manchester City Council,Adult Social Care,Legal Fees,21-Oct-22,5105839160,39 Essex Street Chambers,950.00
Manchester City Council,Chief Executives,Printing,17-Oct-22,5105838444,Leeds Graphic Press Ltd,"1,430.00"
Manchester City Council,Corporate Services,Collection Commision,31-Oct-22,5105840495,Verrus (UK) T/A paybyphone,"10,256.80"
Manchester City Council,Corporate Services,Collection Commision,31-Oct-22,5105839567,Verrus (UK) T/A paybyphone,"10,256.80"
Manchester City Council,Hospitality + Trading Services,Vehicle Hire Costs,10-Oct-22,5105837453,Fleet Dynamic Consultancy Ltd,"3,048.96"
Manchester City Council,Hospitality + Trading Services,Vehicle Hire Costs,11-Oct-22,5105837609,Fleet Dynamic Consultancy Ltd,"2,814.18"
Manchester City Council,Adult Social Care,Rents,05-Oct-22,5105836821,MJ Rental Ltd,"83,902.19"
Manchester City Council,Corporate Services,Surveys Fees other,31-Oct-22,5105840645,Life Environmental Services,"3,568.00"
Manchester City Council,Corporate Services,HH Support Fund,05-Oct-22,1907897383,Manchester BME Network,"30,000.00"
Manchester City Council,Regeneration Finance,Legal Fees,07-Oct-22,1907899356,Bevan Brittan LLP,"3,785.00"
Manchester City Council,Hospitality + Trading Services,Hire of Machinery,26-Oct-22,5105839812,Gibsons Garden Machinery Limited,"20,063.40"
Manchester City Council,Highways Services,Legal Fees,17-Oct-22,1907904966,Scott Rees & Co,"4,085.50"
Manchester City Council,Manchester Leisure,Radio Charges,06-Oct-22,5105837055,DCS Two Way Radio Ltd,"1,974.00"
Manchester City Council,Housing Revenue Account,Other Insurance,04-Oct-22,5105836641,Avro Hallows TMO Ltd,"5,727.00"
Manchester City Council,Chief Executives,Rents,13-Oct-22,5105836955,ANS Group PLC,"31,000.00"
Manchester City Council,Chief Executives,Rents,13-Oct-22,5105836956,ANS Group PLC,"31,000.00"
Manchester City Council,Chief Executives,Rents,13-Oct-22,5105836957,ANS Group PLC,"31,000.00"
Manchester City Council,Chief Executives,Mobilephone Charges,18-Oct-22,1907905151,EE / Orange,"37,743.36"
Manchester City Council,Environment and Operations,Testing Fees,31-Oct-22,5105838635,County Scientific Services,"2,351.00"
Manchester City Council,Chief Executives,Data Links,03-Oct-22,5105836483,The Loop t/a Gamma Telecom Ltd,"2,833.34"
Manchester City Council,Chief Executives,Data Links,28-Oct-22,5105840466,The Loop t/a Gamma Telecom Ltd,"2,833.34"
Manchester City Council,Manchester Leisure,Equipment,26-Oct-22,5105840004,GL Events UK Ltd,"9,367.00"
Manchester City Council,Manchester Leisure,Equipment,26-Oct-22,5105840003,GL Events UK Ltd,"4,683.50"
Manchester City Council,Manchester Leisure,Special Event,05-Oct-22,5105836855,Chorlton Book Festival,"1,070.00"
Manchester City Council,Chief Executives,Counsel Costs,18-Oct-22,1907903955,Kenworthy's Chambers,"3,300.00"
Manchester City Council,Chief Executives,Counsel Costs,04-Oct-22,1907891464,Kenworthy's Chambers,550.00
Manchester City Council,Chief Executives,Counsel Costs,10-Oct-22,1907899235,Kenworthy's Chambers,550.00
Manchester City Council,Chief Executives,Counsel Costs,18-Oct-22,1907903954,Kenworthy's Chambers,550.00
Manchester City Council,Chief Executives,Counsel Costs,31-Oct-22,1907914974,Kenworthy's Chambers,550.00
Manchester City Council,Childrens & Education Services,Grounds Maintenance,26-Oct-22,5105839981,Tiddlywinks Nursery-Clayton No.4 Ac,"1,134.00"
Manchester City Council,Chief Executives,ICT Sup & Maintnance,12-Oct-22,5105837680,Axiell ALM Ltd,"1,000.00"
Manchester City Council,Adult Social Care,Rents,11-Oct-22,5105837509,Mack Residential Letting Ltd,"158,345.77"
Manchester City Council,Manchester Leisure,Grounds Maintenance,31-Oct-22,5105838298,Willfab Ltd,"1,400.00"
Manchester City Council,Manchester Leisure,Equipment,07-Oct-22,5105837132,Willfab Ltd,"1,750.00"
Manchester City Council,Manchester Leisure,Equipment,20-Oct-22,5105836736,Willfab Ltd,545.00
Manchester City Council,Manchester Leisure,Printing,05-Oct-22,5105836718,Willfab Ltd,"1,950.00"
Manchester City Council,Corporate Services,Gym Membership,03-Oct-22,1907891901,Greenwich Leisure Limited,957.60
Manchester City Council,Corporate Services,Gym Membership,20-Oct-22,1907909087,Greenwich Leisure Limited,623.63
Manchester City Council,Adult Social Care,Rents,14-Oct-22,5105838374,Wythenshawe Community Housing Group,"4,674.38"
Manchester City Council,Adult Social Care,Rents,14-Oct-22,5105838375,Wythenshawe Community Housing Group,"4,674.38"
Manchester City Council,Adult Social Care,Rents,14-Oct-22,5105838376,Wythenshawe Community Housing Group,"4,674.38"
Manchester City Council,Adult Social Care,Rents,14-Oct-22,5105838386,Wythenshawe Community Housing Group,"4,674.38"
Manchester City Council,Adult Social Care,Rents,14-Oct-22,5105838388,Wythenshawe Community Housing Group,"4,674.38"
Manchester City Council,Adult Social Care,Rents,10-Oct-22,1907899893,Wythenshawe Community Housing Group,"1,850.00"
Manchester City Council,Adult Social Care,Rents,19-Oct-22,5105838676,Wythenshawe Community Housing Group,"1,331.07"
Manchester City Council,Adult Social Care,Rents,25-Oct-22,5105839599,Wythenshawe Community Housing Group,"1,331.07"
Manchester City Council,Adult Social Care,Rents,25-Oct-22,5105839490,Mears Limited,"4,651.04"
Manchester City Council,Regeneration Finance,Legal Fees,31-Oct-22,5105838426,POS Enterprises Ltd,"1,830.20"
Manchester City Council,Chief Executives,Hire of Equipment,28-Oct-22,5105840275,Universal Live,"1,143.00"
Manchester City Council,Chief Executives,Hire of Equipment,28-Oct-22,5105840272,Universal Live,687.42
Manchester City Council,Chief Executives,ICT Sup & Maintnance,31-Oct-22,5105840817,Gate Seven Computers Ltd,950.00
Manchester City Council,Manchester Leisure,Cleaning Equipment,10-Oct-22,5105837399,Biffa Municipal Limited,"8,750.13"
Manchester City Council,Manchester Leisure,Equipment,11-Oct-22,5105837395,Biffa Municipal Limited,"4,986.00"
Manchester City Council,Manchester Leisure,Reuse credits,25-Oct-22,5105839414,Biffa Municipal Limited,"5,166.67"
Manchester City Council,Manchester Leisure,Special Event,11-Oct-22,5105837398,Biffa Municipal Limited,"2,784.60"
Manchester City Council,Manchester Leisure,Equipment,31-Oct-22,5105840722,One Green World,"1,375.00"
Manchester City Council,Manchester Leisure,ICT Sup & Maintnance,05-Oct-22,5105836816,Aareon UK Ltd,"22,744.00"
Manchester City Council,Highways Services,Grounds Maintenance,31-Oct-22,5105840695,Halcyon Conservation Ltd,903.00
Manchester City Council,Chief Executives,Printing,04-Oct-22,5105836700,John Baxter & Sons Ltd,580.00
Manchester City Council,Hospitality + Trading Services,Radio Charges,31-Oct-22,5105837600,North West Radio Communications Ltd,792.00
Manchester City Council,Adult Social Care,Rents,07-Oct-22,5105837241,T15 Consultancy Ltd,"110,014.17"
Manchester City Council,Manchester Leisure,Special Event,18-Oct-22,5105838618,Vixfacepainting,660.00
Manchester City Council,Manchester Leisure,Equipment,14-Oct-22,5105838100,Cromwell Polythene Limited,"13,286.00"
Manchester City Council,Manchester Leisure,Equipment,27-Oct-22,5105840147,Cromwell Polythene Limited,"13,286.00"
Manchester City Council,Regeneration Finance,Stationery,31-Oct-22,5105840483,Banner Group Limited,722.08
Manchester City Council,Regeneration Finance,Stationery,27-Oct-22,5105839199,Banner Group Limited,558.55
Manchester City Council,Regeneration Finance,Subvention Payments,28-Oct-22,5105839103,Manchester Creative Digital Assets,"254,237.00"
Manchester City Council,Regeneration Finance,Subvention Payments,28-Oct-22,5105839099,Manchester Creative Digital Assets,"197,742.00"
Manchester City Council,Regeneration Finance,Subvention Payments,28-Oct-22,5105839098,Manchester Creative Digital Assets,"184,607.00"
Manchester City Council,Regeneration Finance,Subvention Payments,28-Oct-22,5105839102,Manchester Creative Digital Assets,"40,338.00"
Manchester City Council,Regeneration Finance,Subvention Payments,28-Oct-22,5105839101,Manchester Creative Digital Assets,"34,991.00"
Manchester City Council,Adult Social Care,Rents,04-Oct-22,5105836697,K L Properties,"12,196.88"
Manchester City Council,Adult Social Care,Rents,10-Oct-22,5105837452,K L Properties,"11,892.22"
Manchester City Council,Adult Social Care,Rents,18-Oct-22,5105838704,K L Properties,"11,892.22"
Manchester City Council,Adult Social Care,Rents,26-Oct-22,5105839937,K L Properties,"11,782.25"
Manchester City Council,Chief Executives,Landline Telephone,14-Oct-22,5105836937,The Networking People (TNP) Ltd,"2,779.68"
Manchester City Council,Chief Executives,Data Links,14-Oct-22,5105836932,The Networking People (TNP) Ltd,"100,789.40"
Manchester City Council,Chief Executives,Data Links,14-Oct-22,5105836931,The Networking People (TNP) Ltd,"72,742.04"
Manchester City Council,Chief Executives,Data Links,14-Oct-22,5105836935,The Networking People (TNP) Ltd,"63,476.13"
Manchester City Council,Chief Executives,Data Links,14-Oct-22,5105836919,The Networking People (TNP) Ltd,"60,197.52"
Manchester City Council,Chief Executives,Data Links,06-Oct-22,5105836934,The Networking People (TNP) Ltd,"50,630.51"
Manchester City Council,Chief Executives,Data Links,14-Oct-22,5105836981,The Networking People (TNP) Ltd,"50,630.51"
Manchester City Council,Chief Executives,Data Links,14-Oct-22,5105836920,The Networking People (TNP) Ltd,"50,412.21"
Manchester City Council,Chief Executives,Data Links,14-Oct-22,5105836918,The Networking People (TNP) Ltd,"39,460.08"
Manchester City Council,Chief Executives,Data Links,14-Oct-22,5105836933,The Networking People (TNP) Ltd,"15,376.44"
Manchester City Council,Manchester Leisure,Data Links,27-Oct-22,5105840119,The Networking People (TNP) Ltd,"5,143.83"
Manchester City Council,Chief Executives,Data Links,07-Oct-22,5105837199,The Networking People (TNP) Ltd,"2,582.96"
Manchester City Council,Chief Executives,Data Links,06-Oct-22,5105836960,The Networking People (TNP) Ltd,"-50,630.51"
Manchester City Council,Adult Social Care,Equipment,06-Oct-22,5105837002,Creative Care Limited,690.00
Manchester City Council,Adult Social Care,Rents,13-Oct-22,5105836938,Housing Social Ltd,"33,273.17"
Manchester City Council,Adult Social Care,Rents,20-Oct-22,5105837922,Housing Social Ltd,"32,081.07"
Manchester City Council,Adult Social Care,Rents,27-Oct-22,5105839334,Housing Social Ltd,"31,957.46"
Manchester City Council,Adult Social Care,Rents,11-Oct-22,5105837481,Housing Social Ltd,"31,896.81"
Manchester City Council,Adult Social Care,Rents,12-Oct-22,5105837787,Eeven Homes Ltd.,"14,907.49"
Manchester City Council,Adult Social Care,Rents,31-Oct-22,5105840674,Eeven Homes Ltd.,"14,619.72"
Manchester City Council,Adult Social Care,Rents,05-Oct-22,5105836639,Eeven Homes Ltd.,"13,943.27"
Manchester City Council,Adult Social Care,Rents,18-Oct-22,5105838627,Eeven Homes Ltd.,"13,905.43"
Manchester City Council,Manchester Leisure,Catering,25-Oct-22,5105839752,Manchester Art Gallery,792.50
Manchester City Council,Chief Executives,Hire of Equipment,20-Oct-22,5105838973,Niche Event Hire,"3,460.00"
Manchester City Council,Childrens & Education Services,Storage Costs,18-Oct-22,5105838689,Restore PLC,"3,692.55"
Manchester City Council,Childrens & Education Services,Storage Costs,18-Oct-22,5105838687,Restore PLC,"2,273.98"
Manchester City Council,Chief Executives,Printing,28-Oct-22,5105840523,Ricoh UK Ltd.,"55,800.16"
Manchester City Council,Chief Executives,Printing,28-Oct-22,5105840524,Ricoh UK Ltd.,"55,800.16"
Manchester City Council,Chief Executives,Printing,28-Oct-22,5105840525,Ricoh UK Ltd.,"55,800.16"
Manchester City Council,Chief Executives,Printing,28-Oct-22,5105840545,Ricoh UK Ltd.,"55,800.16"
Manchester City Council,Chief Executives,Printing,28-Oct-22,5105840527,Ricoh UK Ltd.,"21,858.42"
Manchester City Council,Chief Executives,Printing,20-Oct-22,5105839212,Ricoh UK Ltd.,"18,432.97"
Manchester City Council,Chief Executives,Printing,20-Oct-22,5105839215,Ricoh UK Ltd.,"2,708.30"
Manchester City Council,Adult Social Care,Rents,24-Oct-22,5105839365,AJD Property Limited,"8,586.85"
Manchester City Council,Hospitality + Trading Services,Equipment,18-Oct-22,5105838528,Manke Markets UK Ltd,"48,756.50"
Manchester City Council,Chief Executives,Printing,18-Oct-22,5105838683,Integrity Print Ltd,"5,440.00"
Manchester City Council,Adult Social Care,Rents,11-Oct-22,5105837567,District Homes Cic,"65,538.18"
Manchester City Council,Adult Social Care,Rents,25-Oct-22,5105839489,District Homes Cic,"51,266.90"
Manchester City Council,Regeneration Finance,Publications,26-Oct-22,5105840002,Tadtu Distribution Ltd,"5,261.00"
Manchester City Council,Adult Social Care,Rents,11-Oct-22,5105837593,Barret Gray Rentals,"1,150.00"
Manchester City Council,Adult Social Care,Rents,11-Oct-22,5105837595,Barret Gray Rentals,"1,150.00"
Manchester City Council,Adult Social Care,Rents,11-Oct-22,5105837596,Barret Gray Rentals,"1,150.00"
Manchester City Council,Adult Social Care,Rents,21-Oct-22,5105837592,Barret Gray Rentals,"1,150.00"
Manchester City Council,Adult Social Care,Rents,31-Oct-22,5105840629,Manchester Housing Group Ltd,"101,464.73"
Manchester City Council,Adult Social Care,Rents,17-Oct-22,5105838532,Manchester Housing Group Ltd,668.00
Manchester City Council,Chief Executives,Printing,12-Oct-22,5105837577,Impression (Bolton) Ltd,678.00
Manchester City Council,Chief Executives,ICT Sup & Maintnance,31-Oct-22,5105836681,Spacecraft Creative Limited,"128,900.00"
Manchester City Council,Chief Executives,Printing,12-Oct-22,5105837809,Geiger Limited,530.00
Manchester City Council,Chief Executives,Advertising,31-Oct-22,5105840869,Spacehouse Ltd,855.00
Manchester City Council,Manchester Leisure,Equipment,25-Oct-22,5105839748,Synectics Security Limited,"6,244.30"
Manchester City Council,Manchester Leisure,Grounds Maintenance,12-Oct-22,5105837587,Tivoli Group Ltd,"5,429.64"
Manchester City Council,Chief Executives,Catering,26-Oct-22,5105839855,Chapman Holmes,"1,935.00"
Manchester City Council,Regeneration Finance,Car Parking Expenses,06-Oct-22,5105837100,NCP Members Parking,947.92
Manchester City Council,Chief Executives,Counsel Costs,31-Oct-22,1907915461,Central Chambers,"1,500.00"
Manchester City Council,Chief Executives,Counsel Costs,31-Oct-22,1907911356,Central Chambers,"1,450.00"
Manchester City Council,Chief Executives,Counsel Costs,19-Oct-22,1907905091,Central Chambers,"1,000.00"
Manchester City Council,Chief Executives,Counsel Costs,31-Oct-22,1907916115,Central Chambers,"1,000.00"
Manchester City Council,Chief Executives,Counsel Costs,31-Oct-22,1907914978,Central Chambers,850.00
Manchester City Council,Chief Executives,Counsel Costs,26-Oct-22,1907914345,Central Chambers,750.00
Manchester City Council,Chief Executives,Counsel Costs,28-Oct-22,1907907811,Central Chambers,600.00
Manchester City Council,Chief Executives,Counsel Costs,18-Oct-22,1907903970,Central Chambers,550.00
Manchester City Council,Chief Executives,Counsel Costs,26-Oct-22,1907914340,Central Chambers,550.00
Manchester City Council,Chief Executives,Counsel Costs,19-Oct-22,1907905089,Central Chambers,500.00
Manchester City Council,Chief Executives,Counsel Costs,26-Oct-22,1907914343,Central Chambers,500.00
Manchester City Council,Chief Executives,Hire of Equipment,07-Oct-22,5105837089,dbnAudile Limited,"3,135.88"
Manchester City Council,Childrens & Education Services,Hire of Premises,07-Oct-22,5105837284,My Happy Place Management,500.00
Manchester City Council,Childrens & Education Services,Hire of Premises,13-Oct-22,5105837286,My Happy Place Management,500.00
Manchester City Council,Hospitality + Trading Services,Vehicle Fuel Costs,24-Oct-22,5105838752,Standard Fuels Oils,"30,199.96"
Manchester City Council,Hospitality + Trading Services,Vehicle Fuel Costs,19-Oct-22,5105838065,Standard Fuels Oils,"26,948.69"
Manchester City Council,Hospitality + Trading Services,Vehicle Fuel Costs,24-Oct-22,5105838746,Standard Fuels Oils,"26,948.69"
Manchester City Council,Hospitality + Trading Services,Vehicle Fuel Costs,10-Oct-22,5105836755,Standard Fuels Oils,"25,119.81"
Manchester City Council,Hospitality + Trading Services,Vehicle Fuel Costs,24-Oct-22,5105838757,Standard Fuels Oils,"22,645.10"
Manchester City Council,Hospitality + Trading Services,Vehicle Fuel Costs,07-Oct-22,5105837281,Standard Fuels Oils,"20,697.27"
Manchester City Council,Hospitality + Trading Services,Vehicle Fuel Costs,27-Oct-22,5105840134,Standard Fuels Oils,"15,538.30"
Manchester City Council,Hospitality + Trading Services,Vehicle Fuel Costs,27-Oct-22,5105840136,Standard Fuels Oils,"15,085.76"
Manchester City Council,Hospitality + Trading Services,Vehicle Fuel Costs,04-Oct-22,5105836703,Standard Fuels Oils,"14,354.34"
Manchester City Council,Hospitality + Trading Services,Vehicle Fuel Costs,04-Oct-22,5105836505,Standard Fuels Oils,"1,442.40"
Manchester City Council,Hospitality + Trading Services,Vehicle Fuel Costs,07-Oct-22,5105837087,Standard Fuels Oils,"1,389.89"
Manchester City Council,Hospitality + Trading Services,Vehicle Fuel Costs,07-Oct-22,5105837085,Standard Fuels Oils,"1,388.50"
Manchester City Council,Highways Services,Vehicle Fuel Costs,25-Oct-22,5105839691,Standard Fuels Oils,"1,126.22"
Manchester City Council,Highways Services,Vehicle Fuel Costs,06-Oct-22,5105837060,Standard Fuels Oils,931.13
Manchester City Council,Hospitality + Trading Services,Vehicle Fuel Costs,11-Oct-22,5105837469,Standard Fuels Oils,"-20,813.38"
Manchester City Council,Hospitality + Trading Services,Vehicle Fuel Costs,19-Oct-22,5105838743,Standard Fuels Oils,"-26,948.69"
Manchester City Council,Hospitality + Trading Services,Vehicle Hire Costs,31-Oct-22,5105840806,TIP Trailer Services UK Ltd,"2,715.77"
Manchester City Council,Chief Executives,ICT Sup & Maintnance,10-Oct-22,5105836904,ICT Revolutions Ltd,"32,450.00"
Manchester City Council,Adult Social Care,Bed & Breakfast Acc,06-Oct-22,5105837114,Hala Guest House,"7,170.00"
Manchester City Council,Adult Social Care,Bed & Breakfast Acc,11-Oct-22,5105837493,Hala Guest House,"7,165.00"
Manchester City Council,Adult Social Care,Bed & Breakfast Acc,18-Oct-22,5105838581,Hala Guest House,"7,100.00"
Manchester City Council,Adult Social Care,Bed & Breakfast Acc,27-Oct-22,5105840022,Hala Guest House,"6,975.00"
Manchester City Council,Childrens & Education Services,Bed & Breakfast Acc,12-Oct-22,5105837755,Hala Guest House,"4,125.00"
Manchester City Council,Childrens & Education Services,Storage Costs,06-Oct-22,5105837025,Manchester Conference Centre,"1,708.32"
Manchester City Council,Adult Social Care,Rents,25-Oct-22,5105839788,Furniture Resource Centre Ltd,"1,692.93"
Manchester City Council,Adult Social Care,Furniture,25-Oct-22,5105839784,Furniture Resource Centre Ltd,"1,752.50"
Manchester City Council,Adult Social Care,Furniture,20-Oct-22,5105839071,Furniture Resource Centre Ltd,"1,230.45"
Manchester City Council,Adult Social Care,Furniture,18-Oct-22,5105838658,Furniture Resource Centre Ltd,977.45
Manchester City Council,Adult Social Care,Furniture,25-Oct-22,5105839786,Furniture Resource Centre Ltd,731.03
Manchester City Council,Adult Social Care,Furniture,19-Oct-22,5105838945,Furniture Resource Centre Ltd,599.33
Manchester City Council,Adult Social Care,Furniture,19-Oct-22,5105838847,Furniture Resource Centre Ltd,584.50
Manchester City Council,Adult Social Care,Furniture,19-Oct-22,5105838824,Furniture Resource Centre Ltd,567.19
Manchester City Council,Adult Social Care,Furniture,19-Oct-22,5105838827,Furniture Resource Centre Ltd,500.27
Manchester City Council,Corporate Services,WPS Awards,17-Oct-22,5105838435,Furniture Resource Centre Ltd,"1,185.81"
Manchester City Council,Corporate Services,WPS Awards,03-Oct-22,5105836450,Furniture Resource Centre Ltd,"1,124.50"
Manchester City Council,Corporate Services,WPS Awards,21-Oct-22,5105838823,Furniture Resource Centre Ltd,"1,099.72"
Manchester City Council,Corporate Services,WPS Awards,14-Oct-22,5105838304,Furniture Resource Centre Ltd,"1,087.10"
Manchester City Council,Corporate Services,WPS Awards,14-Oct-22,5105838359,Furniture Resource Centre Ltd,"1,021.04"
Manchester City Council,Corporate Services,WPS Awards,21-Oct-22,5105838842,Furniture Resource Centre Ltd,952.68
Manchester City Council,Corporate Services,WPS Awards,28-Oct-22,5105838079,Furniture Resource Centre Ltd,952.68
Manchester City Council,Corporate Services,WPS Awards,31-Oct-22,5105838483,Furniture Resource Centre Ltd,952.68
Manchester City Council,Corporate Services,WPS Awards,31-Oct-22,5105840160,Furniture Resource Centre Ltd,940.06
Manchester City Council,Corporate Services,WPS Awards,20-Oct-22,5105838492,Furniture Resource Centre Ltd,924.31
Manchester City Council,Corporate Services,WPS Awards,26-Oct-22,5105839844,Furniture Resource Centre Ltd,901.15
Manchester City Council,Corporate Services,WPS Awards,28-Oct-22,5105838542,Furniture Resource Centre Ltd,878.05
Manchester City Council,Corporate Services,WPS Awards,25-Oct-22,5105839767,Furniture Resource Centre Ltd,858.26
Manchester City Council,Corporate Services,WPS Awards,31-Oct-22,5105839859,Furniture Resource Centre Ltd,814.27
Manchester City Council,Corporate Services,WPS Awards,14-Oct-22,5105838362,Furniture Resource Centre Ltd,775.29
Manchester City Council,Corporate Services,WPS Awards,19-Oct-22,5105838849,Furniture Resource Centre Ltd,741.99
Manchester City Council,Corporate Services,WPS Awards,26-Oct-22,5105839822,Furniture Resource Centre Ltd,733.67
Manchester City Council,Corporate Services,WPS Awards,28-Oct-22,5105838545,Furniture Resource Centre Ltd,720.05
Manchester City Council,Corporate Services,WPS Awards,03-Oct-22,5105836430,Furniture Resource Centre Ltd,715.25
Manchester City Council,Corporate Services,WPS Awards,03-Oct-22,5105836447,Furniture Resource Centre Ltd,660.05
Manchester City Council,Corporate Services,WPS Awards,19-Oct-22,5105838943,Furniture Resource Centre Ltd,659.21
Manchester City Council,Corporate Services,WPS Awards,26-Oct-22,5105839831,Furniture Resource Centre Ltd,655.49
Manchester City Council,Corporate Services,WPS Awards,06-Oct-22,5105836452,Furniture Resource Centre Ltd,649.04
Manchester City Council,Corporate Services,WPS Awards,25-Oct-22,5105839597,Furniture Resource Centre Ltd,605.22
Manchester City Council,Corporate Services,WPS Awards,26-Oct-22,5105839857,Furniture Resource Centre Ltd,586.63
Manchester City Council,Corporate Services,WPS Awards,19-Oct-22,5105838856,Furniture Resource Centre Ltd,585.39
Manchester City Council,Corporate Services,WPS Awards,19-Oct-22,5105838853,Furniture Resource Centre Ltd,546.57
Manchester City Council,Corporate Services,WPS Awards,25-Oct-22,5105839769,Furniture Resource Centre Ltd,538.14
Manchester City Council,Corporate Services,WPS Awards,26-Oct-22,5105839817,Furniture Resource Centre Ltd,515.89
Manchester City Council,Corporate Services,WPS Awards,14-Oct-22,5105838149,Furniture Resource Centre Ltd,510.36
Manchester City Council,Corporate Services,WPS Awards,20-Oct-22,5105838329,Furniture Resource Centre Ltd,507.42
Manchester City Council,Chief Executives,Printing,13-Oct-22,5105836983,Psycho Peacock Limited,893.94
Manchester City Council,Chief Executives,Printing,28-Oct-22,5105840346,Psycho Peacock Limited,745.00
Manchester City Council,Manchester Leisure,Special Event,12-Oct-22,5105837797,Drumroots Workshop Ltd,820.00
Manchester City Council,Manchester Leisure,Special Event,12-Oct-22,5105837796,Drumroots Workshop Ltd,660.00
Manchester City Council,Adult Social Care,Bed & Breakfast Acc,27-Oct-22,5105840039,Medlock House Ltd,"10,633.00"
Manchester City Council,Adult Social Care,Bed & Breakfast Acc,27-Oct-22,5105840283,Medlock House Ltd,"10,633.00"
Manchester City Council,Adult Social Care,Bed & Breakfast Acc,10-Oct-22,5105837445,Medlock House Ltd,"10,339.00"
Manchester City Council,Adult Social Care,Bed & Breakfast Acc,24-Oct-22,1700140380,Medlock House Ltd,"-22,981.00"
Manchester City Council,Adult Social Care,Rents,07-Oct-22,5105837333,Houses4Homes 4U Ltd,"5,288.30"
Manchester City Council,Adult Social Care,Rents,11-Oct-22,5105837477,Houses4Homes 4U Ltd,"5,288.30"
Manchester City Council,Adult Social Care,Rents,18-Oct-22,5105838685,Houses4Homes 4U Ltd,"5,288.30"
Manchester City Council,Adult Social Care,Rents,25-Oct-22,5105839450,Houses4Homes 4U Ltd,"5,288.30"
Manchester City Council,Chief Executives,Printing,27-Oct-22,5105839031,Wex Photographic,"4,809.36"
Manchester City Council,Chief Executives,Landline Telephone,12-Oct-22,5105837146,8x8 UK Ltd,"58,721.58"
Manchester City Council,Chief Executives,Landline Telephone,12-Oct-22,5105837521,8x8 UK Ltd,"-8,693.60"
Manchester City Council,Chief Executives,Landline Telephone,31-Oct-22,5105839575,8x8 UK Ltd,"-8,693.60"
Manchester City Council,Regeneration Finance,Grounds Maintenance,10-Oct-22,5105836747,Mitie Landscapes LTD,"4,038.71"
Manchester City Council,Regeneration Finance,Grounds Maintenance,10-Oct-22,5105836746,Mitie Landscapes LTD,"3,818.13"
Manchester City Council,Regeneration Finance,Grounds Maintenance,31-Oct-22,5105840548,Mitie Landscapes LTD,"2,637.82"
Manchester City Council,Regeneration Finance,Grounds Maintenance,28-Oct-22,5105840561,Mitie Landscapes LTD,"1,363.47"
Manchester City Council,Regeneration Finance,Grounds Maintenance,31-Oct-22,5105840563,Mitie Landscapes LTD,995.64
Manchester City Council,Regeneration Finance,Grounds Maintenance,05-Oct-22,5105836744,Mitie Landscapes LTD,"-3,802.13"
Manchester City Council,Regeneration Finance,Grounds Maintenance,05-Oct-22,5105836745,Mitie Landscapes LTD,"-4,076.72"
Manchester City Council,Manchester Leisure,Advertising,31-Oct-22,5105839047,Royal Flush Marketing Ltd,"1,250.00"
Manchester City Council,Manchester Leisure,Advertising,31-Oct-22,5105839048,Royal Flush Marketing Ltd,"1,250.00"
Manchester City Council,Highways Services,Hire of Machinery,25-Oct-22,5105839534,MTK Breaker Hire and Sales Ltd,550.00
Manchester City Council,Highways Services,Hire of Equipment,25-Oct-22,5105839534,MTK Breaker Hire and Sales Ltd,770.00
Manchester City Council,Adult Social Care,Equipment,25-Oct-22,5105839645,Herida Healthcare Plc,"2,100.40"
Manchester City Council,Adult Social Care,Equipment,25-Oct-22,5105839405,Herida Healthcare Plc,"1,820.00"
Manchester City Council,Adult Social Care,Equipment,25-Oct-22,5105839645,Herida Healthcare Plc,"1,333.65"
Manchester City Council,Childrens & Education Services,Electricity,12-Oct-22,1907899069,E.ON Next,"5,440.66"
Manchester City Council,Manchester Leisure,Electricity,07-Oct-22,5105837255,E.ON Next,674.00
Manchester City Council,Childrens & Education Services,Electricity,12-Oct-22,1907899070,E.ON Next,508.10
Manchester City Council,Highways Services,Training-Day Release,31-Oct-22,5105839295,Synergie Training,"3,213.00"
Manchester City Council,Highways Services,Training-Day Release,31-Oct-22,5105839296,Synergie Training,"3,213.00"
Manchester City Council,Highways Services,Training-Day Release,31-Oct-22,5105839298,Synergie Training,"3,213.00"
Manchester City Council,Highways Services,Training-Day Release,31-Oct-22,5105839299,Synergie Training,"3,213.00"
Manchester City Council,Highways Services,Training-Day Release,31-Oct-22,5105839300,Synergie Training,"3,213.00"
Manchester City Council,Hospitality + Trading Services,Water - Metered,20-Oct-22,1907910434,Anglian Water Business (National),"47,768.55"
Manchester City Council,Regeneration Finance,Water - Metered,20-Oct-22,1907910417,Anglian Water Business (National),"16,245.53"
Manchester City Council,Regeneration Finance,Water - Metered,20-Oct-22,1907910682,Anglian Water Business (National),"13,744.67"
Manchester City Council,Hospitality + Trading Services,Water - Metered,20-Oct-22,1907910534,Anglian Water Business (National),"10,795.94"
Manchester City Council,Regeneration Finance,Water - Metered,20-Oct-22,1907910635,Anglian Water Business (National),"9,112.20"
Manchester City Council,Hospitality + Trading Services,Water - Metered,20-Oct-22,1907910435,Anglian Water Business (National),"9,082.08"
Manchester City Council,Regeneration Finance,Water - Metered,20-Oct-22,1907910400,Anglian Water Business (National),"8,314.40"
Manchester City Council,Regeneration Finance,Water - Metered,20-Oct-22,1907910422,Anglian Water Business (National),"8,296.33"
Manchester City Council,Childrens & Education Services,Water - Metered,20-Oct-22,1907910641,Anglian Water Business (National),"5,746.28"
Manchester City Council,Regeneration Finance,Water - Metered,20-Oct-22,1907910302,Anglian Water Business (National),"4,269.39"
Manchester City Council,Regeneration Finance,Water - Metered,20-Oct-22,1907910405,Anglian Water Business (National),"3,931.50"
Manchester City Council,Regeneration Finance,Water - Metered,20-Oct-22,1907910650,Anglian Water Business (National),"3,755.46"
Manchester City Council,Manchester Leisure,Water - Metered,20-Oct-22,1907910367,Anglian Water Business (National),"2,691.67"
Manchester City Council,Regeneration Finance,Water - Metered,20-Oct-22,1907910656,Anglian Water Business (National),"2,610.20"
Manchester City Council,Manchester Leisure,Water - Metered,20-Oct-22,1907910676,Anglian Water Business (National),"2,605.38"
Manchester City Council,Highways Services,Water - Metered,20-Oct-22,1907910633,Anglian Water Business (National),"2,323.73"
Manchester City Council,Hospitality + Trading Services,Water - Metered,20-Oct-22,1907910344,Anglian Water Business (National),"2,085.22"
Manchester City Council,Regeneration Finance,Water - Metered,20-Oct-22,1907910657,Anglian Water Business (National),"1,709.54"
Manchester City Council,Childrens & Education Services,Water - Metered,20-Oct-22,1907910680,Anglian Water Business (National),"1,610.49"
Manchester City Council,Regeneration Finance,Water - Metered,20-Oct-22,1907910639,Anglian Water Business (National),"1,607.65"
Manchester City Council,Regeneration Finance,Water - Metered,20-Oct-22,1907910670,Anglian Water Business (National),"1,472.43"
Manchester City Council,Regeneration Finance,Water - Metered,20-Oct-22,1907910407,Anglian Water Business (National),"1,449.06"
Manchester City Council,Regeneration Finance,Water - Metered,20-Oct-22,1907910320,Anglian Water Business (National),"1,424.18"
Manchester City Council,Regeneration Finance,Water - Metered,20-Oct-22,1907910381,Anglian Water Business (National),"1,364.07"
Manchester City Council,Regeneration Finance,Water - Metered,20-Oct-22,1907910626,Anglian Water Business (National),"1,319.93"
Manchester City Council,Regeneration Finance,Water - Metered,20-Oct-22,1907910402,Anglian Water Business (National),"1,314.06"
Manchester City Council,Regeneration Finance,Water - Metered,20-Oct-22,1907910431,Anglian Water Business (National),"1,303.22"
Manchester City Council,Regeneration Finance,Water - Metered,20-Oct-22,1907910404,Anglian Water Business (National),"1,090.97"
Manchester City Council,Adult Social Care,Water - Metered,20-Oct-22,1907910624,Anglian Water Business (National),"1,062.15"
Manchester City Council,Regeneration Finance,Water - Metered,20-Oct-22,1907910325,Anglian Water Business (National),988.06
Manchester City Council,Hospitality + Trading Services,Water - Metered,20-Oct-22,1907910351,Anglian Water Business (National),968.15
Manchester City Council,Regeneration Finance,Water - Metered,20-Oct-22,1907910379,Anglian Water Business (National),880.71
Manchester City Council,Regeneration Finance,Water - Metered,20-Oct-22,1907910671,Anglian Water Business (National),778.70
Manchester City Council,Regeneration Finance,Water - Metered,20-Oct-22,1907910415,Anglian Water Business (National),765.73
Manchester City Council,Regeneration Finance,Water - Metered,20-Oct-22,1907910328,Anglian Water Business (National),764.10
Manchester City Council,Regeneration Finance,Water - Metered,20-Oct-22,1907910646,Anglian Water Business (National),742.94
Manchester City Council,Regeneration Finance,Water - Metered,20-Oct-22,1907910338,Anglian Water Business (National),737.78
